Body Name,Body,Service Area Categorisation,Service Division Categorisation,Responsible Unit,Expenses Type,Detailed Expenses Type,Payment Date,Transaction Number,Payment Amount,Supplier Type,Supplier Name,Supplier Id
Portsmouth City Council,PCC,Adult Social Care,Support with Memory and Cognition Older People (85+),Adult Services,Third Party Payments,Other establishments,25/03/2020,6354921,1547.17,VENDOR,ABBEYFIELD WEY VALLEY SOCIETY LTD,142755
Portsmouth City Council,PCC,Highways and Transport Services,Parking Services,Regeneration,Third Party Payments,Private contractors,04/03/2020,6351024,44,VENDOR,BOARHUNT GROUP LTD,103726
Portsmouth City Council,PCC,Highways and Transport Services,Parking Services,Regeneration,Third Party Payments,Private contractors,04/03/2020,6351024,50,VENDOR,BOARHUNT GROUP LTD,103726
Portsmouth City Council,PCC,Highways and Transport Services,Parking Services,Regeneration,Third Party Payments,Private contractors,04/03/2020,6351024,50,VENDOR,BOARHUNT GROUP LTD,103726
Portsmouth City Council,PCC,Highways and Transport Services,Parking Services,Regeneration,Third Party Payments,Private contractors,04/03/2020,6351024,44,VENDOR,BOARHUNT GROUP LTD,103726
Portsmouth City Council,PCC,Highways and Transport Services,Parking Services,Regeneration,Third Party Payments,Private contractors,04/03/2020,6351024,50,VENDOR,BOARHUNT GROUP LTD,103726
Portsmouth City Council,PCC,Highways and Transport Services,Parking Services,Regeneration,Third Party Payments,Private contractors,04/03/2020,6351024,50,VENDOR,BOARHUNT GROUP LTD,103726
Portsmouth City Council,PCC,Highways and Transport Services,Parking Services,Regeneration,Third Party Payments,Private contractors,04/03/2020,6351024,44,VENDOR,BOARHUNT GROUP LTD,103726
Portsmouth City Council,PCC,Highways and Transport Services,Parking Services,Regeneration,Third Party Payments,Private contractors,04/03/2020,6351024,50,VENDOR,BOARHUNT GROUP LTD,103726
Portsmouth City Council,PCC,Highways and Transport Services,Parking Services,Regeneration,Third Party Payments,Private contractors,04/03/2020,6351024,50,VENDOR,BOARHUNT GROUP LTD,103726
Portsmouth City Council,PCC,Highways and Transport Services,Parking Services,Regeneration,Third Party Payments,Private contractors,04/03/2020,6351024,50,VENDOR,BOARHUNT GROUP LTD,103726
Portsmouth City Council,PCC,Highways and Transport Services,Parking Services,Regeneration,Third Party Payments,Private contractors,04/03/2020,6351024,240,VENDOR,BOARHUNT GROUP LTD,103726
Portsmouth City Council,PCC,Highways and Transport Services,Parking Services,Regeneration,Third Party Payments,Private contractors,11/03/2020,6352151,50,VENDOR,BOARHUNT GROUP LTD,103726
Portsmouth City Council,PCC,Highways and Transport Services,Parking Services,Regeneration,Third Party Payments,Private contractors,11/03/2020,6352151,50,VENDOR,BOARHUNT GROUP LTD,103726
Portsmouth City Council,PCC,Highways and Transport Services,Parking Services,Regeneration,Third Party Payments,Private contractors,11/03/2020,6352151,44,VENDOR,BOARHUNT GROUP LTD,103726
Portsmouth City Council,PCC,Highways and Transport Services,Parking Services,Regeneration,Third Party Payments,Private contractors,11/03/2020,6352151,25,VENDOR,BOARHUNT GROUP LTD,103726
Portsmouth City Council,PCC,Highways and Transport Services,Parking Services,Regeneration,Third Party Payments,Private contractors,11/03/2020,6352151,50,VENDOR,BOARHUNT GROUP LTD,103726
Portsmouth City Council,PCC,Highways and Transport Services,Parking Services,Regeneration,Third Party Payments,Private contractors,11/03/2020,6352151,60,VENDOR,BOARHUNT GROUP LTD,103726
Portsmouth City Council,PCC,Highways and Transport Services,Parking Services,Regeneration,Third Party Payments,Private contractors,11/03/2020,6352151,50,VENDOR,BOARHUNT GROUP LTD,103726
Portsmouth City Council,PCC,Highways and Transport Services,Parking Services,Regeneration,Third Party Payments,Private contractors,11/03/2020,6352151,44,VENDOR,BOARHUNT GROUP LTD,103726
Portsmouth City Council,PCC,Highways and Transport Services,Parking Services,Regeneration,Third Party Payments,Private contractors,11/03/2020,6352151,50,VENDOR,BOARHUNT GROUP LTD,103726
Portsmouth City Council,PCC,Highways and Transport Services,Parking Services,Regeneration,Third Party Payments,Private contractors,11/03/2020,6352151,50,VENDOR,BOARHUNT GROUP LTD,103726
Portsmouth City Council,PCC,Highways and Transport Services,Parking Services,Regeneration,Third Party Payments,Private contractors,11/03/2020,6352151,50,VENDOR,BOARHUNT GROUP LTD,103726
Portsmouth City Council,PCC,Highways and Transport Services,Parking Services,Regeneration,Third Party Payments,Private contractors,19/03/2020,6353915,1600,VENDOR,BOARHUNT GROUP LTD,103726
Portsmouth City Council,PCC,Highways and Transport Services,Parking Services,Regeneration,Third Party Payments,Private contractors,19/03/2020,6353915,25,VENDOR,BOARHUNT GROUP LTD,103726
Portsmouth City Council,PCC,Highways and Transport Services,Parking Services,Regeneration,Third Party Payments,Private contractors,19/03/2020,6353915,50,VENDOR,BOARHUNT GROUP LTD,103726
Portsmouth City Council,PCC,Highways and Transport Services,Parking Services,Regeneration,Third Party Payments,Private contractors,19/03/2020,6353915,50,VENDOR,BOARHUNT GROUP LTD,103726
Portsmouth City Council,PCC,Highways and Transport Services,Parking Services,Regeneration,Third Party Payments,Private contractors,19/03/2020,6353915,50,VENDOR,BOARHUNT GROUP LTD,103726
Portsmouth City Council,PCC,Highways and Transport Services,Parking Services,Regeneration,Third Party Payments,Private contractors,19/03/2020,6353915,44,VENDOR,BOARHUNT GROUP LTD,103726
Portsmouth City Council,PCC,Highways and Transport Services,Parking Services,Regeneration,Third Party Payments,Private contractors,19/03/2020,6353915,60,VENDOR,BOARHUNT GROUP LTD,103726
Portsmouth City Council,PCC,Highways and Transport Services,Parking Services,Regeneration,Third Party Payments,Private contractors,19/03/2020,6353915,50,VENDOR,BOARHUNT GROUP LTD,103726
Portsmouth City Council,PCC,Highways and Transport Services,Parking Services,Regeneration,Third Party Payments,Private contractors,19/03/2020,6353915,50,VENDOR,BOARHUNT GROUP LTD,103726
Portsmouth City Council,PCC,Highways and Transport Services,Parking Services,Regeneration,Third Party Payments,Private contractors,19/03/2020,6353915,44,VENDOR,BOARHUNT GROUP LTD,103726
Portsmouth City Council,PCC,Highways and Transport Services,Parking Services,Regeneration,Third Party Payments,Private contractors,19/03/2020,6353915,60,VENDOR,BOARHUNT GROUP LTD,103726
Portsmouth City Council,PCC,Highways and Transport Services,Parking Services,Regeneration,Third Party Payments,Private contractors,19/03/2020,6353915,44,VENDOR,BOARHUNT GROUP LTD,103726
Portsmouth City Council,PCC,Highways and Transport Services,Parking Services,Regeneration,Third Party Payments,Private contractors,25/03/2020,6354938,44,VENDOR,BOARHUNT GROUP LTD,103726
Portsmouth City Council,PCC,Highways and Transport Services,Parking Services,Regeneration,Third Party Payments,Private contractors,25/03/2020,6354938,50,VENDOR,BOARHUNT GROUP LTD,103726
Portsmouth City Council,PCC,Highways and Transport Services,Parking Services,Regeneration,Third Party Payments,Private contractors,25/03/2020,6354938,90,VENDOR,BOARHUNT GROUP LTD,103726
Portsmouth City Council,PCC,Highways and Transport Services,Parking Services,Regeneration,Third Party Payments,Private contractors,25/03/2020,6354938,30,VENDOR,BOARHUNT GROUP LTD,103726
Portsmouth City Council,PCC,Highways and Transport Services,Parking Services,Regeneration,Third Party Payments,Private contractors,25/03/2020,6354938,60,VENDOR,BOARHUNT GROUP LTD,103726
Portsmouth City Council,PCC,Highways and Transport Services,Parking Services,Regeneration,Third Party Payments,Private contractors,25/03/2020,6354938,30,VENDOR,BOARHUNT GROUP LTD,103726
Portsmouth City Council,PCC,Highways and Transport Services,Parking Services,Regeneration,Third Party Payments,Private contractors,25/03/2020,6354938,25,VENDOR,BOARHUNT GROUP LTD,103726
Portsmouth City Council,PCC,Highways and Transport Services,Parking Services,Regeneration,Third Party Payments,Private contractors,25/03/2020,6354938,50,VENDOR,BOARHUNT GROUP LTD,103726
Portsmouth City Council,PCC,Highways and Transport Services,Parking Services,Regeneration,Third Party Payments,Private contractors,25/03/2020,6354938,65,VENDOR,BOARHUNT GROUP LTD,103726
Portsmouth City Council,PCC,Highways and Transport Services,Parking Services,Regeneration,Third Party Payments,Private contractors,06/03/2020,6351767,624,VENDOR,PRODUCT DEVELOPMENT CORPORATION,134173
Portsmouth City Council,PCC,Planning Services,Business support,Regeneration,Supplies and Services,Communications and computing,04/03/2020,6351532,668.78,VENDOR,TECHNOLOGY WITHIN LIMITED,143958
Portsmouth City Council,PCC,Children's and Education Services,Children Looked After,Children's Services and Education,Third Party Payments,Other establishments,04/03/2020,6351483,3030,VENDOR,KEYS PCE LIMITED,137236
Portsmouth City Council,PCC,Planning Services,Business support,Regeneration,Third Party Payments,Private contractors,04/03/2020,6351532,127,VENDOR,TECHNOLOGY WITHIN LIMITED,143958
Portsmouth City Council,PCC,Children's and Education Services,Children Looked After,Children's Services and Education,Third Party Payments,Other establishments,27/03/2020,6355330,17607.14,VENDOR,KEYS PCE LIMITED,137236
Portsmouth City Council,PCC,Children's and Education Services,Children Looked After,Children's Services and Education,Third Party Payments,Other establishments,27/03/2020,6355330,17607.14,VENDOR,KEYS PCE LIMITED,137236
Portsmouth City Council,PCC,Cultural and Related Services,Open Spaces,"Culture, Leisure & Regulatory Services",Premises-Related Expenditure,Grounds maintenance costs,12/03/2020,6352844,4966.79,COMPANY,J B CORRIE AND CO LTD,100911
Portsmouth City Council,PCC,Children's and Education Services,Children Looked After,Children's Services and Education,Third Party Payments,Other establishments,10/03/2020,6352077,2914.5,VENDOR,HORIZON CARE AND EDUCATION GROUP LTD,138450
Portsmouth City Council,PCC,Children's and Education Services,Children Looked After,Children's Services and Education,Third Party Payments,Other establishments,10/03/2020,6352077,2914.2,VENDOR,HORIZON CARE AND EDUCATION GROUP LTD,138450
Portsmouth City Council,PCC,Children's and Education Services,Children Looked After,Children's Services and Education,Third Party Payments,Other establishments,10/03/2020,6352077,2914.2,VENDOR,HORIZON CARE AND EDUCATION GROUP LTD,138450
Portsmouth City Council,PCC,Children's and Education Services,Asylum seekers,Children's Services and Education,Third Party Payments,Other establishments,10/03/2020,6352077,2914.2,VENDOR,HORIZON CARE AND EDUCATION GROUP LTD,138450
Portsmouth City Council,PCC,Children's and Education Services,Children Looked After,Children's Services and Education,Third Party Payments,Other establishments,10/03/2020,6352077,300,VENDOR,HORIZON CARE AND EDUCATION GROUP LTD,138450
Portsmouth City Council,PCC,Children's and Education Services,Children Looked After,Children's Services and Education,Third Party Payments,Other establishments,10/03/2020,6352077,3011.65,VENDOR,HORIZON CARE AND EDUCATION GROUP LTD,138450
Portsmouth City Council,PCC,Children's and Education Services,Children Looked After,Children's Services and Education,Third Party Payments,Other establishments,10/03/2020,6352077,3011.34,VENDOR,HORIZON CARE AND EDUCATION GROUP LTD,138450
Portsmouth City Council,PCC,Children's and Education Services,Children Looked After,Children's Services and Education,Third Party Payments,Other establishments,10/03/2020,6352077,3082.33,VENDOR,HORIZON CARE AND EDUCATION GROUP LTD,138450
Portsmouth City Council,PCC,Highways and Transport Services,Public Transport,Regeneration,Supplies and Services,Grants and subscriptions,10/03/2020,6352084,1145,VENDOR,ITSO LTD,136293
Portsmouth City Council,PCC,Children's and Education Services,Other Children and Family Services,Children's Services and Education,Employees,Indirect employee expenses,10/03/2020,6352081,3800,VENDOR,INCLINE TRAINING CONSULTANTS LTD,145785
Portsmouth City Council,PCC,Children's and Education Services,Children Looked After,Children's Services and Education,Third Party Payments,Other establishments,23/03/2020,6354687,18571.43,VENDOR,KEYS PCE LIMITED,137236
Portsmouth City Council,PCC,Children's and Education Services,Youth Justice,Children's Services and Education,Supplies and Services,Communications and computing,12/03/2020,6352909,32217.45,VENDOR,SERVELEC YOUTH SERVICES LIMITED T/A SERVELEC,129120
Portsmouth City Council,PCC,Children's and Education Services,Children Looked After,Children's Services and Education,Third Party Payments,Other establishments,02/03/2020,6350811,6644.31,VENDOR,FIVE RIVERS CHILD CARE LIMITED,106901
Portsmouth City Council,PCC,Adult Social Care,Assistive Equipment & Technology,"Housing, Neighbourhood and Building Services",Supplies and Services,"Equipment, furniture and materials",13/03/2020,6353114,558,VENDOR,TYNETEC B/U OF LEGRAND ELECTRIC LTD,140439
Portsmouth City Council,PCC,Adult Social Care,Assistive Equipment & Technology,"Housing, Neighbourhood and Building Services",Supplies and Services,"Equipment, furniture and materials",13/03/2020,6353114,137.1,VENDOR,TYNETEC B/U OF LEGRAND ELECTRIC LTD,140439
Portsmouth City Council,PCC,Adult Social Care,Assistive Equipment & Technology,"Housing, Neighbourhood and Building Services",Supplies and Services,"Equipment, furniture and materials",13/03/2020,6353114,117.8,VENDOR,TYNETEC B/U OF LEGRAND ELECTRIC LTD,140439
Portsmouth City Council,PCC,Adult Social Care,Assistive Equipment & Technology,"Housing, Neighbourhood and Building Services",Supplies and Services,"Equipment, furniture and materials",13/03/2020,6353114,228.18,VENDOR,TYNETEC B/U OF LEGRAND ELECTRIC LTD,140439
Portsmouth City Council,PCC,Adult Social Care,Assistive Equipment & Technology,"Housing, Neighbourhood and Building Services",Supplies and Services,"Equipment, furniture and materials",13/03/2020,6353114,37.5,VENDOR,TYNETEC B/U OF LEGRAND ELECTRIC LTD,140439
Portsmouth City Council,PCC,Adult Social Care,Assistive Equipment & Technology,"Housing, Neighbourhood and Building Services",Supplies and Services,"Equipment, furniture and materials",13/03/2020,6353114,573.92,VENDOR,TYNETEC B/U OF LEGRAND ELECTRIC LTD,140439
Portsmouth City Council,PCC,Support Service / Transparency Costs Unallocated,Personnel,Corporate Services,Supplies and Services,"Equipment, furniture and materials",16/03/2020,6353228,2898.28,VENDOR,PORTSDOWN OFFICE LTD,100059
Portsmouth City Council,PCC,Support Service / Transparency Costs Unallocated,AMS,"Housing, Neighbourhood and Building Services",Supplies and Services,"Equipment, furniture and materials",16/03/2020,6353228,148.57,VENDOR,PORTSDOWN OFFICE LTD,100059
Portsmouth City Council,PCC,Other,Suspense and Capital Schemes,"Capital - Health, Wellbeing & Social Care",Capital Charges,Capital Expenditure (WIP),16/03/2020,6353228,-148.57,VENDOR,PORTSDOWN OFFICE LTD,100059
Portsmouth City Council,PCC,Other,Suspense and Capital Schemes,"Capital - Health, Wellbeing & Social Care",Capital Charges,Capital Expenditure (WIP),16/03/2020,6353228,148.57,VENDOR,PORTSDOWN OFFICE LTD,100059
Portsmouth City Council,PCC,Support Service / Transparency Costs Unallocated,AMS,"Housing, Neighbourhood and Building Services",Supplies and Services,"Equipment, furniture and materials",30/03/2020,6355512,3019.77,VENDOR,PORTSDOWN OFFICE LTD,100059
Portsmouth City Council,PCC,Cultural and Related Services,Library Service,"Culture, Leisure & Regulatory Services",Supplies and Services,"Equipment, furniture and materials",17/03/2020,6353319,827.2,VENDOR,LONDIS NEWSMARKET,141197
Portsmouth City Council,PCC,Support Service / Transparency Costs Unallocated,Financial Services,Finance & Resources,Third Party Payments,Private contractors,26/03/2020,6355120,4863.6,VENDOR,CMA FINANCIAL RECRUITMENT LTD,101372
Portsmouth City Council,PCC,Support Service / Transparency Costs Unallocated,Financial Services,Finance & Resources,Third Party Payments,Private contractors,26/03/2020,6355120,4317.75,VENDOR,CMA FINANCIAL RECRUITMENT LTD,101372
Portsmouth City Council,PCC,Highways and Transport Services,"Transport Planning, Policy and Strategy",Regeneration,Employees,Direct employee expenses,23/03/2020,6354778,2697,VENDOR,TURNER & TOWNSEND GROUP LIMITED,132225
Portsmouth City Council,PCC,Children's and Education Services,Asylum seekers,Children's Services and Education,Third Party Payments,Other establishments,09/03/2020,6351983,2032.6,VENDOR,STILL WATERS CARE SERVICES LTD,146488
Portsmouth City Council,PCC,Cultural and Related Services,Open Spaces,"Culture, Leisure & Regulatory Services",Premises-Related Expenditure,Water Services,27/03/2020,6355254,1713.21,VENDOR,CASTLE WATER LIMITED,142798
Portsmouth City Council,PCC,Highways and Transport Services,"Transport Planning, Policy and Strategy",Regeneration,Supplies and Services,Services,20/03/2020,6354532,9050,VENDOR,INTEGRATED TRANSPORT PLANNING LTD,125772
Portsmouth City Council,PCC,Other,Suspense and Capital Schemes,Capital - Leader,Capital Charges,Capital Expenditure (WIP),12/03/2020,6352852,2875,VENDOR,LESLIE JONES ARCHITECTS LTD,146335
Portsmouth City Council,PCC,Housing Services,Supporting People,"Housing, Neighbourhood and Building Services",Third Party Payments,Other establishments,13/03/2020,6353113,49983.41,VENDOR,TWO SAINTS LTD,102584
Portsmouth City Council,PCC,Adult Social Care,Social Care Activities,Adult Services,Third Party Payments,Other establishments,16/03/2020,6353123,9958.2,VENDOR,ACCESS CARE LTD,106309
Portsmouth City Council,PCC,Housing Services,Supporting People,"Housing, Neighbourhood and Building Services",Third Party Payments,Other establishments,13/03/2020,6353113,34883.06,VENDOR,TWO SAINTS LTD,102584
Portsmouth City Council,PCC,Housing Services,Supporting People,"Housing, Neighbourhood and Building Services",Third Party Payments,Other establishments,13/03/2020,6353113,4166.67,VENDOR,TWO SAINTS LTD,102584
Portsmouth City Council,PCC,Housing Services,Homelessness,"Housing, Neighbourhood and Building Services",Supplies and Services,Grants and subscriptions,13/03/2020,6353113,25625,VENDOR,TWO SAINTS LTD,102584
Portsmouth City Council,PCC,Adult Social Care,Physical Support Adults (18 - 64),Adult Services,Third Party Payments,Other establishments,16/03/2020,6353123,486.36,VENDOR,ACCESS CARE LTD,106309
Portsmouth City Council,PCC,Housing Services,Supporting People,"Housing, Neighbourhood and Building Services",Third Party Payments,Other establishments,13/03/2020,6353113,49983.41,VENDOR,TWO SAINTS LTD,102584
Portsmouth City Council,PCC,Adult Social Care,Physical Support Adults (18 - 64),Adult Services,Third Party Payments,Other establishments,16/03/2020,6353123,3059,VENDOR,ACCESS CARE LTD,106309
Portsmouth City Council,PCC,Housing Services,Supporting People,"Housing, Neighbourhood and Building Services",Third Party Payments,Other establishments,13/03/2020,6353113,34883.06,VENDOR,TWO SAINTS LTD,102584
Portsmouth City Council,PCC,Housing Services,Supporting People,"Housing, Neighbourhood and Building Services",Third Party Payments,Other establishments,13/03/2020,6353113,4166.67,VENDOR,TWO SAINTS LTD,102584
Portsmouth City Council,PCC,Adult Social Care,Mental Health Support Older People (65 - 74),Adult Services,Third Party Payments,Other establishments,02/03/2020,6350738,101.28,VENDOR,ADMIRAL CARE LTD,138025
Portsmouth City Council,PCC,Other,Suspense and Capital Schemes,Capital - Traffic & Transportation,Capital Charges,Capital Expenditure (WIP),10/03/2020,6352083,5280,VENDOR,ITS PLANNERS & ENGINEERS (UK) LTD,144890
Portsmouth City Council,PCC,Other,Suspense and Capital Schemes,Capital - Housing General Fund,Capital Charges,REFCUS,31/03/2020,6355568,2360,VENDOR,ATLAS GROUNDWORKS AND BUILDING SOLUTIONS,143638
Portsmouth City Council,PCC,Corporate and Democratic Core,Corporate Management,Corporate Services,Supplies and Services,Miscellaneous expenses,27/03/2020,6355263,1260,VENDOR,CLEAR CHANNEL UK LTD,104057
Portsmouth City Council,PCC,Corporate and Democratic Core,Corporate Management,Corporate Services,Supplies and Services,Miscellaneous expenses,27/03/2020,6355263,1260,VENDOR,CLEAR CHANNEL UK LTD,104057
Portsmouth City Council,PCC,Adult Social Care,Mental Health Support Older People (65 - 74),Adult Services,Third Party Payments,Other establishments,02/03/2020,6350738,540.16,VENDOR,ADMIRAL CARE LTD,138025
Portsmouth City Council,PCC,Adult Social Care,Mental Health Support Older People (65 - 74),Adult Services,Third Party Payments,Other establishments,02/03/2020,6350738,945.28,VENDOR,ADMIRAL CARE LTD,138025
Portsmouth City Council,PCC,Adult Social Care,Mental Health Support Older People (65 - 74),Adult Services,Third Party Payments,Other establishments,02/03/2020,6350738,118.16,VENDOR,ADMIRAL CARE LTD,138025
Portsmouth City Council,PCC,Adult Social Care,Mental Health Support Older People (65 - 74),Adult Services,Third Party Payments,Other establishments,02/03/2020,6350738,16.88,VENDOR,ADMIRAL CARE LTD,138025
Portsmouth City Council,PCC,Adult Social Care,Mental Health Support Older People (65 - 74),Adult Services,Third Party Payments,Other establishments,02/03/2020,6350738,135.04,VENDOR,ADMIRAL CARE LTD,138025
Portsmouth City Council,PCC,Adult Social Care,Mental Health Support Older People (65 - 74),Adult Services,Third Party Payments,Other establishments,02/03/2020,6350738,33.76,VENDOR,ADMIRAL CARE LTD,138025
Portsmouth City Council,PCC,Adult Social Care,Mental Health Support Older People (65 - 74),Adult Services,Third Party Payments,Other establishments,02/03/2020,6350738,164.8,VENDOR,ADMIRAL CARE LTD,138025
Portsmouth City Council,PCC,Adult Social Care,Physical Support Adults (18 - 64),Adult Services,Third Party Payments,Other establishments,02/03/2020,6350738,1772.4,VENDOR,ADMIRAL CARE LTD,138025
Portsmouth City Council,PCC,Adult Social Care,Physical Support Adults (18 - 64),Adult Services,Third Party Payments,Other establishments,02/03/2020,6350738,2126.88,VENDOR,ADMIRAL CARE LTD,138025
Portsmouth City Council,PCC,Adult Social Care,Physical Support Adults (18 - 64),Adult Services,Third Party Payments,Other establishments,02/03/2020,6350738,151.92,VENDOR,ADMIRAL CARE LTD,138025
Portsmouth City Council,PCC,Adult Social Care,Physical Support Older People (85+),Adult Services,Third Party Payments,Other establishments,02/03/2020,6350738,472.64,VENDOR,ADMIRAL CARE LTD,138025
Portsmouth City Council,PCC,Adult Social Care,Physical Support Older People (85+),Adult Services,Third Party Payments,Other establishments,02/03/2020,6350738,725.84,VENDOR,ADMIRAL CARE LTD,138025
Portsmouth City Council,PCC,Adult Social Care,Physical Support Older People (85+),Adult Services,Third Party Payments,Other establishments,02/03/2020,6350738,945.28,VENDOR,ADMIRAL CARE LTD,138025
Portsmouth City Council,PCC,Adult Social Care,Support with Memory and Cognition Older People (85+),Adult Services,Third Party Payments,Other establishments,12/03/2020,6352712,430.32,VENDOR,AFFINITY TRUST LTD,135643
Portsmouth City Council,PCC,Adult Social Care,Learning Disability Support  Adults (18 - 64),Adult Services,Third Party Payments,Other establishments,12/03/2020,6352712,7294.3,VENDOR,AFFINITY TRUST LTD,135643
Portsmouth City Council,PCC,Adult Social Care,Learning Disability Support  Adults (18 - 64),Adult Services,Third Party Payments,Other establishments,12/03/2020,6352712,9192.43,VENDOR,AFFINITY TRUST LTD,135643
Portsmouth City Council,PCC,Adult Social Care,Learning Disability Support  Adults (18 - 64),Adult Services,Third Party Payments,Other establishments,12/03/2020,6352712,7214.94,VENDOR,AFFINITY TRUST LTD,135643
Portsmouth City Council,PCC,Adult Social Care,Learning Disability Support  Adults (18 - 64),Adult Services,Third Party Payments,Other establishments,12/03/2020,6352712,6739.09,VENDOR,AFFINITY TRUST LTD,135643
Portsmouth City Council,PCC,Adult Social Care,Learning Disability Support  Adults (18 - 64),Adult Services,Third Party Payments,Other establishments,12/03/2020,6352712,8644.04,VENDOR,AFFINITY TRUST LTD,135643
Portsmouth City Council,PCC,Adult Social Care,Learning Disability Support  Adults (18 - 64),Adult Services,Third Party Payments,Other establishments,12/03/2020,6352712,9192.43,VENDOR,AFFINITY TRUST LTD,135643
Portsmouth City Council,PCC,Adult Social Care,Learning Disability Support  Adults (18 - 64),Adult Services,Third Party Payments,Other establishments,12/03/2020,6352712,7048.78,VENDOR,AFFINITY TRUST LTD,135643
Portsmouth City Council,PCC,Adult Social Care,Physical Support Older People (85+),Adult Services,Third Party Payments,Other establishments,20/03/2020,6354471,3744.6,VENDOR,AGINCARE UK,134367
Portsmouth City Council,PCC,Adult Social Care,Physical Support Older People (85+),Adult Services,Third Party Payments,Other establishments,12/03/2020,6352713,2839.91,VENDOR,AGINCARE UK,134367
Portsmouth City Council,PCC,Adult Social Care,Learning Disability Support  Adults (18 - 64),Adult Services,Third Party Payments,Other establishments,12/03/2020,6352714,7537.03,VENDOR,AITCH CARE HOMES (LONDON) LIMITED,125606
Portsmouth City Council,PCC,Adult Social Care,Learning Disability Support  Adults (18 - 64),Adult Services,Third Party Payments,Other establishments,12/03/2020,6352714,7861.6,VENDOR,AITCH CARE HOMES (LONDON) LIMITED,125606
Portsmouth City Council,PCC,Adult Social Care,Learning Disability Support  Adults (18 - 64),Adult Services,Third Party Payments,Other establishments,12/03/2020,6352714,8582.04,VENDOR,AITCH CARE HOMES (LONDON) LIMITED,125606
Portsmouth City Council,PCC,Adult Social Care,Learning Disability Support  Adults (18 - 64),Adult Services,Third Party Payments,Other establishments,12/03/2020,6352715,6786.52,VENDOR,ALBANY FARM CARE (HAMPSHIRE) LTD,140215
Portsmouth City Council,PCC,Adult Social Care,Mental Health Support Adults (18 - 64),Adult Services,Third Party Payments,Other establishments,12/03/2020,6352715,2885.48,VENDOR,ALBANY FARM CARE (HAMPSHIRE) LTD,140215
Portsmouth City Council,PCC,Adult Social Care,Support with Memory and Cognition Older People (85+),Adult Services,Third Party Payments,Other establishments,12/03/2020,6352717,4208.25,VENDOR,ALEXANDRA ROSE RESIDENTIAL CARE HOME,101952
Portsmouth City Council,PCC,Adult Social Care,Support with Memory and Cognition Older People (85+),Adult Services,Third Party Payments,Other establishments,12/03/2020,6352717,4185,VENDOR,ALEXANDRA ROSE RESIDENTIAL CARE HOME,101952
Portsmouth City Council,PCC,Adult Social Care,Support with Memory and Cognition Older People (85+),Adult Services,Third Party Payments,Other establishments,12/03/2020,6352717,3985.67,VENDOR,ALEXANDRA ROSE RESIDENTIAL CARE HOME,101952
Portsmouth City Council,PCC,Adult Social Care,Support with Memory and Cognition Older People (85+),Adult Services,Third Party Payments,Other establishments,12/03/2020,6352717,1266.04,VENDOR,ALEXANDRA ROSE RESIDENTIAL CARE HOME,101952
Portsmouth City Council,PCC,Adult Social Care,Learning Disability Support  Adults (18 - 64),Adult Services,Third Party Payments,Other establishments,12/03/2020,6352718,4317.99,VENDOR,ALLIED CARE LTD,123734
Portsmouth City Council,PCC,Adult Social Care,Learning Disability Support  Adults (18 - 64),Adult Services,Third Party Payments,Other establishments,12/03/2020,6352719,6326.79,VENDOR,ALLIED CARE LTD,123734
Portsmouth City Council,PCC,Adult Social Care,Learning Disability Support  Adults (18 - 64),Adult Services,Third Party Payments,Other establishments,12/03/2020,6352720,4410.37,VENDOR,ALLIED CARE LTD,123734
Portsmouth City Council,PCC,Adult Social Care,Learning Disability Support  Adults (18 - 64),Adult Services,Third Party Payments,Other establishments,25/03/2020,6354924,1269.23,VENDOR,ALLIED CARE LTD,123734
Portsmouth City Council,PCC,Adult Social Care,Support with Memory and Cognition Older People (85+),Adult Services,Third Party Payments,Other establishments,12/03/2020,6352722,2724.9,VENDOR,ALTON HOUSE PARTNERSHIP,119112
Portsmouth City Council,PCC,Adult Social Care,Support with Memory and Cognition Older People (85+),Adult Services,Third Party Payments,Other establishments,12/03/2020,6352722,2724.9,VENDOR,ALTON HOUSE PARTNERSHIP,119112
Portsmouth City Council,PCC,Adult Social Care,Support with Memory and Cognition Older People (85+),Adult Services,Third Party Payments,Other establishments,12/03/2020,6352722,2724.9,VENDOR,ALTON HOUSE PARTNERSHIP,119112
Portsmouth City Council,PCC,Adult Social Care,Physical Support Older People (85+),Adult Services,Third Party Payments,Other establishments,12/03/2020,6352723,3000,VENDOR,ALTON MANOR CARE HOME,130289
Portsmouth City Council,PCC,Adult Social Care,Support with Memory and Cognition Older People (85+),Adult Services,Third Party Payments,Other establishments,12/03/2020,6352723,2244.4,VENDOR,ALTON MANOR CARE HOME,130289
Portsmouth City Council,PCC,Adult Social Care,Support with Memory and Cognition Older People (85+),Adult Services,Third Party Payments,Other establishments,12/03/2020,6352723,2244.4,VENDOR,ALTON MANOR CARE HOME,130289
Portsmouth City Council,PCC,Adult Social Care,Support with Memory and Cognition Older People (85+),Adult Services,Third Party Payments,Other establishments,12/03/2020,6352723,2244.4,VENDOR,ALTON MANOR CARE HOME,130289
Portsmouth City Council,PCC,Adult Social Care,Support with Memory and Cognition Older People (85+),Adult Services,Third Party Payments,Other establishments,12/03/2020,6352723,2244.4,VENDOR,ALTON MANOR CARE HOME,130289
Portsmouth City Council,PCC,Adult Social Care,Support with Memory and Cognition Older People (85+),Adult Services,Third Party Payments,Other establishments,12/03/2020,6352723,2524.33,VENDOR,ALTON MANOR CARE HOME,130289
Portsmouth City Council,PCC,Adult Social Care,Support with Memory and Cognition Older People (85+),Adult Services,Third Party Payments,Other establishments,12/03/2020,6352723,2244.4,VENDOR,ALTON MANOR CARE HOME,130289
Portsmouth City Council,PCC,Adult Social Care,Support with Memory and Cognition Older People (85+),Adult Services,Third Party Payments,Other establishments,12/03/2020,6352723,2435.67,VENDOR,ALTON MANOR CARE HOME,130289
Portsmouth City Council,PCC,Adult Social Care,Support with Memory and Cognition Older People (85+),Adult Services,Third Party Payments,Other establishments,12/03/2020,6352723,2244.4,VENDOR,ALTON MANOR CARE HOME,130289
Portsmouth City Council,PCC,Adult Social Care,Support with Memory and Cognition Older People (85+),Adult Services,Third Party Payments,Other establishments,12/03/2020,6352723,2244.4,VENDOR,ALTON MANOR CARE HOME,130289
Portsmouth City Council,PCC,Adult Social Care,Support with Memory and Cognition Older People (85+),Adult Services,Third Party Payments,Other establishments,12/03/2020,6352723,2244.4,VENDOR,ALTON MANOR CARE HOME,130289
Portsmouth City Council,PCC,Adult Social Care,Support with Memory and Cognition Older People (85+),Adult Services,Third Party Payments,Other establishments,12/03/2020,6352723,2244.4,VENDOR,ALTON MANOR CARE HOME,130289
Portsmouth City Council,PCC,Adult Social Care,Support with Memory and Cognition Older People (85+),Adult Services,Third Party Payments,Other establishments,12/03/2020,6352723,2244.4,VENDOR,ALTON MANOR CARE HOME,130289
Portsmouth City Council,PCC,Adult Social Care,Support with Memory and Cognition Older People (85+),Adult Services,Third Party Payments,Other establishments,12/03/2020,6352723,3100,VENDOR,ALTON MANOR CARE HOME,130289
Portsmouth City Council,PCC,Adult Social Care,Support with Memory and Cognition Older People (85+),Adult Services,Third Party Payments,Other establishments,12/03/2020,6352723,2244.4,VENDOR,ALTON MANOR CARE HOME,130289
Portsmouth City Council,PCC,Adult Social Care,Support with Memory and Cognition Older People (85+),Adult Services,Third Party Payments,Other establishments,12/03/2020,6352723,2244.4,VENDOR,ALTON MANOR CARE HOME,130289
Portsmouth City Council,PCC,Adult Social Care,Mental Health Support Adults (18 - 64),Adult Services,Third Party Payments,Other establishments,12/03/2020,6352723,2158.22,VENDOR,ALTON MANOR CARE HOME,130289
Portsmouth City Council,PCC,Adult Social Care,Support with Memory and Cognition Older People (85+),Adult Services,Third Party Payments,Other establishments,12/03/2020,6352725,2338.33,VENDOR,ANEXAS CARE LTD,146269
Portsmouth City Council,PCC,Adult Social Care,Social Care Activities,Adult Services,Third Party Payments,Other establishments,16/03/2020,6353126,811.35,VENDOR,APPLETREE SUPPORT LTD,126285
Portsmouth City Council,PCC,Adult Social Care,Social Care Activities,Adult Services,Third Party Payments,Other establishments,16/03/2020,6353126,4327.2,VENDOR,APPLETREE SUPPORT LTD,126285
Portsmouth City Council,PCC,Adult Social Care,Social Care Activities,Adult Services,Third Party Payments,Other establishments,16/03/2020,6353126,3510,VENDOR,APPLETREE SUPPORT LTD,126285
Portsmouth City Council,PCC,Adult Social Care,Social Care Activities,Adult Services,Third Party Payments,Other establishments,26/03/2020,6355105,703.17,VENDOR,APPLETREE SUPPORT LTD,126285
Portsmouth City Council,PCC,Adult Social Care,Social Care Activities,Adult Services,Third Party Payments,Other establishments,26/03/2020,6355105,4417.35,VENDOR,APPLETREE SUPPORT LTD,126285
Portsmouth City Council,PCC,Adult Social Care,Social Care Activities,Adult Services,Third Party Payments,Other establishments,26/03/2020,6355105,3240,VENDOR,APPLETREE SUPPORT LTD,126285
Portsmouth City Council,PCC,Adult Social Care,Learning Disability Support  Adults (18 - 64),Adult Services,Transport-Related Expenditure,Public transport,02/03/2020,6350742,2312.6,VENDOR,AQUA CARS LIMITED,100011
Portsmouth City Council,PCC,Adult Social Care,Social Care Activities,Adult Services,Transport-Related Expenditure,Direct transport costs,02/03/2020,6350742,18.6,VENDOR,AQUA CARS LIMITED,100011
Portsmouth City Council,PCC,Adult Social Care,Learning Disability Support  Adults (18 - 64),Adult Services,Transport-Related Expenditure,Public transport,09/03/2020,6351836,2412.5,VENDOR,AQUA CARS LIMITED,100011
Portsmouth City Council,PCC,Adult Social Care,Social Care Activities,Adult Services,Transport-Related Expenditure,Direct transport costs,09/03/2020,6351836,25.2,VENDOR,AQUA CARS LIMITED,100011
Portsmouth City Council,PCC,Adult Social Care,Learning Disability Support  Adults (18 - 64),Adult Services,Transport-Related Expenditure,Public transport,16/03/2020,6353127,2377.2,VENDOR,AQUA CARS LIMITED,100011
Portsmouth City Council,PCC,Other,Suspense and Capital Schemes,Capital - Traffic & Transportation,Capital Charges,Capital Expenditure (WIP),31/03/2020,6355641,4610,VENDOR,PLEYDELL TECHNOLOGY CONSULTING LTD,144609
Portsmouth City Council,PCC,Children's and Education Services,Children Looked After,Children's Services and Education,Third Party Payments,Other establishments,31/03/2020,6355635,9160.16,VENDOR,ORANGE GROVE FOSTERCARE LIMITED,140168
Portsmouth City Council,PCC,Children's and Education Services,Children Looked After,Children's Services and Education,Third Party Payments,Other establishments,31/03/2020,6355635,981.18,VENDOR,ORANGE GROVE FOSTERCARE LIMITED,140168
Portsmouth City Council,PCC,Adult Social Care,Social Care Activities,Adult Services,Transport-Related Expenditure,Direct transport costs,16/03/2020,6353127,18.6,VENDOR,AQUA CARS LIMITED,100011
Portsmouth City Council,PCC,Adult Social Care,Learning Disability Support  Adults (18 - 64),Adult Services,Transport-Related Expenditure,Public transport,23/03/2020,6354607,2146.3,VENDOR,AQUA CARS LIMITED,100011
Portsmouth City Council,PCC,Adult Social Care,Social Care Activities,Adult Services,Transport-Related Expenditure,Direct transport costs,23/03/2020,6354607,32,VENDOR,AQUA CARS LIMITED,100011
Portsmouth City Council,PCC,Adult Social Care,Learning Disability Support  Adults (18 - 64),Adult Services,Transport-Related Expenditure,Public transport,30/03/2020,6355427,2284.9,VENDOR,AQUA CARS LIMITED,100011
Portsmouth City Council,PCC,Adult Social Care,Social Care Activities,Adult Services,Transport-Related Expenditure,Direct transport costs,30/03/2020,6355427,7.5,VENDOR,AQUA CARS LIMITED,100011
Portsmouth City Council,PCC,Adult Social Care,Social Care Activities,Adult Services,Transport-Related Expenditure,Direct transport costs,30/03/2020,6355427,58.5,VENDOR,AQUA CARS LIMITED,100011
Portsmouth City Council,PCC,Adult Social Care,Learning Disability Support  Adults (18 - 64),Adult Services,Third Party Payments,Other establishments,12/03/2020,6352729,10031.6,VENDOR,ASPENS CHARITIES,119343
Portsmouth City Council,PCC,Adult Social Care,Learning Disability Support  Adults (18 - 64),Adult Services,Third Party Payments,Other establishments,12/03/2020,6352730,9297.21,VENDOR,ASSURE HEALTH CARE GROUP,140779
Portsmouth City Council,PCC,Adult Social Care,Learning Disability Support  Adults (18 - 64),Adult Services,Third Party Payments,Other establishments,12/03/2020,6352730,7334.6,VENDOR,ASSURE HEALTH CARE GROUP,140779
Portsmouth City Council,PCC,Adult Social Care,Social Care Activities,Adult Services,Third Party Payments,Other establishments,02/03/2020,6350744,11343.36,VENDOR,ASTER CARE LTD,130238
Portsmouth City Council,PCC,Adult Social Care,Social Care Activities,Adult Services,Third Party Payments,Other establishments,02/03/2020,6350744,11343.36,VENDOR,ASTER CARE LTD,130238
Portsmouth City Council,PCC,Adult Social Care,Social Care Activities,Adult Services,Third Party Payments,Other establishments,24/03/2020,6354802,11343.36,VENDOR,ASTER CARE LTD,130238
Portsmouth City Council,PCC,Adult Social Care,Social Care Activities,Adult Services,Third Party Payments,Other establishments,24/03/2020,6354802,11343.36,VENDOR,ASTER CARE LTD,130238
Portsmouth City Council,PCC,Adult Social Care,Physical Support Older People (85+),Adult Services,Third Party Payments,Other establishments,12/03/2020,6352731,2759.62,VENDOR,ATHENA CARE HOMES (UK) LIMITED,144812
Portsmouth City Council,PCC,Children's and Education Services,Other Children and Family Services,Children's Services and Education,Third Party Payments,Other establishments,23/03/2020,6354606,549.92,VENDOR,APPLETREE SUPPORT LTD,126285
Portsmouth City Council,PCC,Children's and Education Services,Other Children and Family Services,Children's Services and Education,Third Party Payments,Other establishments,16/03/2020,6353125,829.4,VENDOR,APPLETREE SUPPORT LTD,126285
Portsmouth City Council,PCC,Children's and Education Services,Other Children and Family Services,Children's Services and Education,Third Party Payments,Other establishments,16/03/2020,6353125,216.36,VENDOR,APPLETREE SUPPORT LTD,126285
Portsmouth City Council,PCC,Children's and Education Services,Other Children and Family Services,Children's Services and Education,Third Party Payments,Other establishments,16/03/2020,6353125,216.36,VENDOR,APPLETREE SUPPORT LTD,126285
Portsmouth City Council,PCC,Highways and Transport Services,"Airports, Harbours and Toll Facilities",Portsmouth International Port,Premises-Related Expenditure,"Repairs, alterations and maintenance of buildings",26/03/2020,6355166,41007.47,COMPANY,MOUNTJOY LIMITED,129869
Portsmouth City Council,PCC,Other,Suspense and Capital Schemes,Capital - Culture & City Development,Capital Charges,Capital Expenditure (WIP),24/03/2020,6354844,38647.19,VENDOR,HISTORIC BUILDINGS RESTORATION,138335
Portsmouth City Council,PCC,Children's and Education Services,Children Looked After,Children's Services and Education,Third Party Payments,Other establishments,27/03/2020,6355325,5108.64,VENDOR,INTEGRATED SERVICES PROGRAMME,136360
Portsmouth City Council,PCC,Children's and Education Services,Children Looked After,Children's Services and Education,Third Party Payments,Other establishments,27/03/2020,6355325,5108.64,VENDOR,INTEGRATED SERVICES PROGRAMME,136360
Portsmouth City Council,PCC,Children's and Education Services,Children Looked After,Children's Services and Education,Third Party Payments,Other establishments,27/03/2020,6355325,5108.64,VENDOR,INTEGRATED SERVICES PROGRAMME,136360
Portsmouth City Council,PCC,Children's and Education Services,Children Looked After,Children's Services and Education,Third Party Payments,Other establishments,27/03/2020,6355351,3480,VENDOR,ORANGE GROVE FOSTERCARE LIMITED,140168
Portsmouth City Council,PCC,Children's and Education Services,Children Looked After,Children's Services and Education,Third Party Payments,Other establishments,27/03/2020,6355351,3480,VENDOR,ORANGE GROVE FOSTERCARE LIMITED,140168
Portsmouth City Council,PCC,Children's and Education Services,Children Looked After,Children's Services and Education,Third Party Payments,Other establishments,27/03/2020,6355351,654.28,VENDOR,ORANGE GROVE FOSTERCARE LIMITED,140168
Portsmouth City Council,PCC,Costs below Net Cost of Services,Trading,Regeneration,Premises-Related Expenditure,Grounds maintenance costs,17/03/2020,6353331,1500,VENDOR,PRITCHARD ARCHITECTURE LIMITED,144062
Portsmouth City Council,PCC,Highways and Transport Services,Traffic Management and Road Safety,Regeneration,Employees,Indirect employee expenses,30/03/2020,6355519,420,VENDOR,ROYAL INSTITUTION OF CHARTERED SURVEYORS,100075
Portsmouth City Council,PCC,Highways and Transport Services,Traffic Management and Road Safety,Regeneration,Employees,Indirect employee expenses,30/03/2020,6355519,756,VENDOR,ROYAL INSTITUTION OF CHARTERED SURVEYORS,100075
Portsmouth City Council,PCC,Environmental and Regulatory Services,Regulatory Services,"Housing, Neighbourhood and Building Services",Employees,Indirect employee expenses,13/03/2020,6353071,1680,VENDOR,ROYAL INSTITUTION OF CHARTERED SURVEYORS,100075
Portsmouth City Council,PCC,Children's and Education Services,Children Looked After,Children's Services and Education,Supplies and Services,Services,30/03/2020,6355422,900,VENDOR,ALETHEIA ANGLICAN ACADEMIES TRUST,146513
Portsmouth City Council,PCC,Housing Services,Homelessness,"Housing, Neighbourhood and Building Services",Third Party Payments,Private contractors,06/03/2020,6351750,340,VENDOR,M J H REMOVALS LTD,105441
Portsmouth City Council,PCC,Housing Services,Homelessness,"Housing, Neighbourhood and Building Services",Third Party Payments,Private contractors,06/03/2020,6351750,380,VENDOR,M J H REMOVALS LTD,105441
Portsmouth City Council,PCC,Housing Services,Homelessness,"Housing, Neighbourhood and Building Services",Third Party Payments,Private contractors,06/03/2020,6351750,280,VENDOR,M J H REMOVALS LTD,105441
Portsmouth City Council,PCC,Adult Social Care,Learning Disability Support  Adults (18 - 64),Adult Services,Third Party Payments,Other establishments,12/03/2020,6352734,4981.7,VENDOR,AUCKLAND CARE LTD,100984
Portsmouth City Council,PCC,Adult Social Care,Mental Health Support Adults (18 - 64),Adult Services,Third Party Payments,Other establishments,25/03/2020,6354927,3654.37,VENDOR,AUCKLAND CARE LTD,100984
Portsmouth City Council,PCC,Adult Social Care,Learning Disability Support  Adults (18 - 64),Adult Services,Third Party Payments,Other establishments,23/03/2020,6354613,823.92,VENDOR,AUTISM HAMPSHIRE,139112
Portsmouth City Council,PCC,Adult Social Care,Social Care Activities,Adult Services,Third Party Payments,Other establishments,12/03/2020,6352735,15860.53,VENDOR,AUTISM HAMPSHIRE,139112
Portsmouth City Council,PCC,Adult Social Care,Learning Disability Support  Adults (18 - 64),Adult Services,Third Party Payments,Other establishments,12/03/2020,6352735,5964.71,VENDOR,AUTISM HAMPSHIRE,139112
Portsmouth City Council,PCC,Adult Social Care,Learning Disability Support  Adults (18 - 64),Adult Services,Third Party Payments,Other establishments,12/03/2020,6352735,5708.65,VENDOR,AUTISM HAMPSHIRE,139112
Portsmouth City Council,PCC,Adult Social Care,Learning Disability Support  Adults (18 - 64),Adult Services,Third Party Payments,Other establishments,12/03/2020,6352735,3863.22,VENDOR,AUTISM HAMPSHIRE,139112
Portsmouth City Council,PCC,Adult Social Care,Learning Disability Support  Adults (18 - 64),Adult Services,Third Party Payments,Other establishments,12/03/2020,6352735,8917.15,VENDOR,AUTISM HAMPSHIRE,139112
Portsmouth City Council,PCC,Adult Social Care,Mental Health Support Adults (18 - 64),Adult Services,Third Party Payments,Other establishments,12/03/2020,6352736,1305,VENDOR,AUTUMN VALE REST HOME,100551
Portsmouth City Council,PCC,Adult Social Care,Support with Memory and Cognition Older People (85+),Adult Services,Third Party Payments,Other establishments,12/03/2020,6352736,1551.55,VENDOR,AUTUMN VALE REST HOME,100551
Portsmouth City Council,PCC,Adult Social Care,Support with Memory and Cognition Older People (85+),Adult Services,Third Party Payments,Other establishments,12/03/2020,6352736,2380.49,VENDOR,AUTUMN VALE REST HOME,100551
Portsmouth City Council,PCC,Adult Social Care,Support with Memory and Cognition Older People (85+),Adult Services,Third Party Payments,Other establishments,12/03/2020,6352736,1860,VENDOR,AUTUMN VALE REST HOME,100551
Portsmouth City Council,PCC,Adult Social Care,Mental Health Support Adults (18 - 64),Adult Services,Third Party Payments,Other establishments,12/03/2020,6352736,3649.32,VENDOR,AUTUMN VALE REST HOME,100551
Portsmouth City Council,PCC,Adult Social Care,Mental Health Support Adults (18 - 64),Adult Services,Third Party Payments,Other establishments,12/03/2020,6352736,2125.36,VENDOR,AUTUMN VALE REST HOME,100551
Portsmouth City Council,PCC,Adult Social Care,Mental Health Support Adults (18 - 64),Adult Services,Third Party Payments,Other establishments,12/03/2020,6352736,1395,VENDOR,AUTUMN VALE REST HOME,100551
Portsmouth City Council,PCC,Adult Social Care,Mental Health Support Adults (18 - 64),Adult Services,Third Party Payments,Other establishments,12/03/2020,6352736,3488.43,VENDOR,AUTUMN VALE REST HOME,100551
Portsmouth City Council,PCC,Adult Social Care,Mental Health Support Adults (18 - 64),Adult Services,Third Party Payments,Other establishments,12/03/2020,6352736,2305.16,VENDOR,AUTUMN VALE REST HOME,100551
Portsmouth City Council,PCC,Adult Social Care,Mental Health Support Adults (18 - 64),Adult Services,Third Party Payments,Other establishments,12/03/2020,6352736,3352.65,VENDOR,AUTUMN VALE REST HOME,100551
Portsmouth City Council,PCC,Adult Social Care,Mental Health Support Adults (18 - 64),Adult Services,Third Party Payments,Other establishments,12/03/2020,6352736,2554.4,VENDOR,AUTUMN VALE REST HOME,100551
Portsmouth City Council,PCC,Adult Social Care,Mental Health Support Adults (18 - 64),Adult Services,Third Party Payments,Other establishments,12/03/2020,6352736,3256.86,VENDOR,AUTUMN VALE REST HOME,100551
Portsmouth City Council,PCC,Adult Social Care,Mental Health Support Adults (18 - 64),Adult Services,Third Party Payments,Other establishments,12/03/2020,6352736,2469.77,VENDOR,AUTUMN VALE REST HOME,100551
Portsmouth City Council,PCC,Adult Social Care,Support with Memory and Cognition Older People (85+),Adult Services,Third Party Payments,Other establishments,12/03/2020,6352737,2244.4,VENDOR,AVENUE CARE (FAREHAM) LIMITED,125285
Portsmouth City Council,PCC,Adult Social Care,Mental Health Support Older People (65 - 74),Adult Services,Third Party Payments,Other establishments,02/03/2020,6350745,607.68,VENDOR,B S CARE LTD,100114
Portsmouth City Council,PCC,Adult Social Care,Social Care Activities,Adult Services,Third Party Payments,Other establishments,02/03/2020,6350745,1046.56,VENDOR,B S CARE LTD,100114
Portsmouth City Council,PCC,Adult Social Care,Social Care Activities,Adult Services,Third Party Payments,Other establishments,02/03/2020,6350745,1055,VENDOR,B S CARE LTD,100114
Portsmouth City Council,PCC,Adult Social Care,Social Care Activities,Adult Services,Third Party Payments,Other establishments,02/03/2020,6350745,417.78,VENDOR,B S CARE LTD,100114
Portsmouth City Council,PCC,Adult Social Care,Social Care Activities,Adult Services,Third Party Payments,Other establishments,02/03/2020,6350745,58.08,VENDOR,B S CARE LTD,100114
Portsmouth City Council,PCC,Adult Social Care,Social Care Activities,Adult Services,Third Party Payments,Other establishments,02/03/2020,6350745,708.96,VENDOR,B S CARE LTD,100114
Portsmouth City Council,PCC,Adult Social Care,Social Care Activities,Adult Services,Third Party Payments,Other establishments,02/03/2020,6350745,116.16,VENDOR,B S CARE LTD,100114
Portsmouth City Council,PCC,Adult Social Care,Social Care Activities,Adult Services,Third Party Payments,Other establishments,02/03/2020,6350745,1063.44,VENDOR,B S CARE LTD,100114
Portsmouth City Council,PCC,Adult Social Care,Social Care Activities,Adult Services,Third Party Payments,Other establishments,02/03/2020,6350745,1063.44,VENDOR,B S CARE LTD,100114
Portsmouth City Council,PCC,Adult Social Care,Physical Support Adults (18 - 64),Adult Services,Third Party Payments,Other establishments,02/03/2020,6350745,236.32,VENDOR,B S CARE LTD,100114
Portsmouth City Council,PCC,Adult Social Care,Physical Support Adults (18 - 64),Adult Services,Third Party Payments,Other establishments,02/03/2020,6350745,236.32,VENDOR,B S CARE LTD,100114
Portsmouth City Council,PCC,Adult Social Care,Physical Support Adults (18 - 64),Adult Services,Third Party Payments,Other establishments,02/03/2020,6350745,75.96,VENDOR,B S CARE LTD,100114
Portsmouth City Council,PCC,Adult Social Care,Physical Support Adults (18 - 64),Adult Services,Third Party Payments,Other establishments,02/03/2020,6350745,649.88,VENDOR,B S CARE LTD,100114
Portsmouth City Council,PCC,Adult Social Care,Physical Support Adults (18 - 64),Adult Services,Third Party Payments,Other establishments,02/03/2020,6350745,708.96,VENDOR,B S CARE LTD,100114
Portsmouth City Council,PCC,Adult Social Care,Physical Support Adults (18 - 64),Adult Services,Third Party Payments,Other establishments,02/03/2020,6350745,708.96,VENDOR,B S CARE LTD,100114
Portsmouth City Council,PCC,Adult Social Care,Physical Support Adults (18 - 64),Adult Services,Third Party Payments,Other establishments,02/03/2020,6350745,270.08,VENDOR,B S CARE LTD,100114
Portsmouth City Council,PCC,Adult Social Care,Physical Support Adults (18 - 64),Adult Services,Third Party Payments,Other establishments,02/03/2020,6350745,354.48,VENDOR,B S CARE LTD,100114
Portsmouth City Council,PCC,Adult Social Care,Physical Support Adults (18 - 64),Adult Services,Third Party Payments,Other establishments,02/03/2020,6350745,725.84,VENDOR,B S CARE LTD,100114
Portsmouth City Council,PCC,Adult Social Care,Physical Support Adults (18 - 64),Adult Services,Third Party Payments,Other establishments,02/03/2020,6350745,725.84,VENDOR,B S CARE LTD,100114
Portsmouth City Council,PCC,Adult Social Care,Physical Support Adults (18 - 64),Adult Services,Third Party Payments,Other establishments,02/03/2020,6350745,400.9,VENDOR,B S CARE LTD,100114
Portsmouth City Council,PCC,Adult Social Care,Physical Support Adults (18 - 64),Adult Services,Third Party Payments,Other establishments,02/03/2020,6350745,219.44,VENDOR,B S CARE LTD,100114
Portsmouth City Council,PCC,Adult Social Care,Physical Support Adults (18 - 64),Adult Services,Third Party Payments,Other establishments,02/03/2020,6350745,253.2,VENDOR,B S CARE LTD,100114
Portsmouth City Council,PCC,Adult Social Care,Physical Support Older People (85+),Adult Services,Third Party Payments,Other establishments,02/03/2020,6350745,1046.56,VENDOR,B S CARE LTD,100114
Portsmouth City Council,PCC,Adult Social Care,Physical Support Older People (85+),Adult Services,Third Party Payments,Other establishments,02/03/2020,6350745,1046.56,VENDOR,B S CARE LTD,100114
Portsmouth City Council,PCC,Adult Social Care,Physical Support Older People (85+),Adult Services,Third Party Payments,Other establishments,02/03/2020,6350745,211,VENDOR,B S CARE LTD,100114
Portsmouth City Council,PCC,Adult Social Care,Physical Support Older People (85+),Adult Services,Third Party Payments,Other establishments,02/03/2020,6350745,590.8,VENDOR,B S CARE LTD,100114
Portsmouth City Council,PCC,Adult Social Care,Physical Support Older People (85+),Adult Services,Third Party Payments,Other establishments,02/03/2020,6350745,236.32,VENDOR,B S CARE LTD,100114
Portsmouth City Council,PCC,Adult Social Care,Physical Support Older People (85+),Adult Services,Third Party Payments,Other establishments,02/03/2020,6350745,827.12,VENDOR,B S CARE LTD,100114
Portsmouth City Council,PCC,Adult Social Care,Physical Support Older People (85+),Adult Services,Third Party Payments,Other establishments,02/03/2020,6350745,67.52,VENDOR,B S CARE LTD,100114
Portsmouth City Council,PCC,Adult Social Care,Physical Support Older People (85+),Adult Services,Third Party Payments,Other establishments,02/03/2020,6350745,506.4,VENDOR,B S CARE LTD,100114
Portsmouth City Council,PCC,Adult Social Care,Physical Support Older People (85+),Adult Services,Third Party Payments,Other establishments,02/03/2020,6350745,202.56,VENDOR,B S CARE LTD,100114
Portsmouth City Council,PCC,Adult Social Care,Physical Support Older People (85+),Adult Services,Third Party Payments,Other establishments,02/03/2020,6350745,1181.6,VENDOR,B S CARE LTD,100114
Portsmouth City Council,PCC,Adult Social Care,Physical Support Older People (85+),Adult Services,Third Party Payments,Other establishments,02/03/2020,6350745,1181.6,VENDOR,B S CARE LTD,100114
Portsmouth City Council,PCC,Adult Social Care,Physical Support Older People (85+),Adult Services,Third Party Payments,Other establishments,02/03/2020,6350745,270.08,VENDOR,B S CARE LTD,100114
Portsmouth City Council,PCC,Adult Social Care,Physical Support Older People (85+),Adult Services,Third Party Payments,Other establishments,02/03/2020,6350745,455.76,VENDOR,B S CARE LTD,100114
Portsmouth City Council,PCC,Adult Social Care,Physical Support Older People (85+),Adult Services,Third Party Payments,Other establishments,02/03/2020,6350745,135.04,VENDOR,B S CARE LTD,100114
Portsmouth City Council,PCC,Adult Social Care,Physical Support Older People (85+),Adult Services,Third Party Payments,Other establishments,02/03/2020,6350745,979.04,VENDOR,B S CARE LTD,100114
Portsmouth City Council,PCC,Adult Social Care,Physical Support Older People (85+),Adult Services,Third Party Payments,Other establishments,02/03/2020,6350745,236.32,VENDOR,B S CARE LTD,100114
Portsmouth City Council,PCC,Adult Social Care,Physical Support Older People (85+),Adult Services,Third Party Payments,Other establishments,02/03/2020,6350745,708.96,VENDOR,B S CARE LTD,100114
Portsmouth City Council,PCC,Adult Social Care,Physical Support Older People (85+),Adult Services,Third Party Payments,Other establishments,02/03/2020,6350745,468.42,VENDOR,B S CARE LTD,100114
Portsmouth City Council,PCC,Adult Social Care,Physical Support Older People (85+),Adult Services,Third Party Payments,Other establishments,02/03/2020,6350745,768.04,VENDOR,B S CARE LTD,100114
Portsmouth City Council,PCC,Adult Social Care,Physical Support Older People (85+),Adult Services,Third Party Payments,Other establishments,02/03/2020,6350745,1105.64,VENDOR,B S CARE LTD,100114
Portsmouth City Council,PCC,Adult Social Care,Physical Support Older People (85+),Adult Services,Third Party Payments,Other establishments,02/03/2020,6350745,270.08,VENDOR,B S CARE LTD,100114
Portsmouth City Council,PCC,Adult Social Care,Physical Support Older People (85+),Adult Services,Third Party Payments,Other establishments,02/03/2020,6350745,202.56,VENDOR,B S CARE LTD,100114
Portsmouth City Council,PCC,Adult Social Care,Physical Support Older People (85+),Adult Services,Third Party Payments,Other establishments,02/03/2020,6350745,1206.92,VENDOR,B S CARE LTD,100114
Portsmouth City Council,PCC,Adult Social Care,Physical Support Older People (85+),Adult Services,Third Party Payments,Other establishments,02/03/2020,6350745,1206.92,VENDOR,B S CARE LTD,100114
Portsmouth City Council,PCC,Adult Social Care,Physical Support Older People (85+),Adult Services,Third Party Payments,Other establishments,02/03/2020,6350745,350.26,VENDOR,B S CARE LTD,100114
Portsmouth City Council,PCC,Adult Social Care,Physical Support Older People (85+),Adult Services,Third Party Payments,Other establishments,02/03/2020,6350745,84.4,VENDOR,B S CARE LTD,100114
Portsmouth City Council,PCC,Adult Social Care,Physical Support Older People (85+),Adult Services,Third Party Payments,Other establishments,02/03/2020,6350745,236.32,VENDOR,B S CARE LTD,100114
Portsmouth City Council,PCC,Adult Social Care,Physical Support Older People (85+),Adult Services,Third Party Payments,Other establishments,02/03/2020,6350745,286.96,VENDOR,B S CARE LTD,100114
Portsmouth City Council,PCC,Adult Social Care,Physical Support Older People (85+),Adult Services,Third Party Payments,Other establishments,02/03/2020,6350745,666.76,VENDOR,B S CARE LTD,100114
Portsmouth City Council,PCC,Adult Social Care,Physical Support Older People (85+),Adult Services,Third Party Payments,Other establishments,02/03/2020,6350745,894.64,VENDOR,B S CARE LTD,100114
Portsmouth City Council,PCC,Adult Social Care,Physical Support Older People (85+),Adult Services,Third Party Payments,Other establishments,02/03/2020,6350745,236.32,VENDOR,B S CARE LTD,100114
Portsmouth City Council,PCC,Adult Social Care,Physical Support Older People (85+),Adult Services,Third Party Payments,Other establishments,02/03/2020,6350745,354.48,VENDOR,B S CARE LTD,100114
Portsmouth City Council,PCC,Adult Social Care,Physical Support Older People (85+),Adult Services,Third Party Payments,Other establishments,02/03/2020,6350745,531.72,VENDOR,B S CARE LTD,100114
Portsmouth City Council,PCC,Adult Social Care,Physical Support Older People (85+),Adult Services,Third Party Payments,Other establishments,02/03/2020,6350745,945.28,VENDOR,B S CARE LTD,100114
Portsmouth City Council,PCC,Other,Suspense and Capital Schemes,Capital - Leader,Capital Charges,Capital Expenditure (WIP),24/03/2020,6354896,2898.03,COMPANY,SSE CONTRACTING LTD,101806
Portsmouth City Council,PCC,Cultural and Related Services,Culture and Heritage,"Culture, Leisure & Regulatory Services",Third Party Payments,Private contractors,27/03/2020,6355386,1363.95,COMPANY,SSE CONTRACTING LTD,101806
Portsmouth City Council,PCC,Other,Suspense and Capital Schemes,Capital - Housing General Fund,Capital Charges,Capital Expenditure (WIP),04/03/2020,6351526,2098.75,COMPANY,SSE CONTRACTING LTD,101806
Portsmouth City Council,PCC,Costs below Net Cost of Services,Trading,Regeneration,Supplies and Services,Miscellaneous expenses,27/03/2020,6355386,148.9,COMPANY,SSE CONTRACTING LTD,101806
Portsmouth City Council,PCC,Housing Revenue Account,Repairs and Maintenance,"Housing, Neighbourhood and Building Services",Premises-Related Expenditure,"Repairs, alterations and maintenance of buildings",30/03/2020,6355530,70534.62,COMPANY,SSE CONTRACTING LTD,101806
Portsmouth City Council,PCC,Other,Suspense and Capital Schemes,"Housing, Neighbourhood and Building Services",Premises-Related Expenditure,"Repairs, alterations and maintenance of buildings",12/03/2020,6352922,2400,COMPANY,SSE CONTRACTING LTD,101806
Portsmouth City Council,PCC,Costs below Net Cost of Services,Trading,Regeneration,Premises-Related Expenditure,"Repairs, alterations and maintenance of buildings",26/03/2020,6355204,24437.79,COMPANY,SSE CONTRACTING LTD,101806
Portsmouth City Council,PCC,Adult Social Care,Physical Support Older People (85+),Adult Services,Third Party Payments,Other establishments,02/03/2020,6350745,945.28,VENDOR,B S CARE LTD,100114
Portsmouth City Council,PCC,Highways and Transport Services,Parking Services,Regeneration,Supplies and Services,"Clothes, uniform and laundry",23/03/2020,6354709,115,VENDOR,MC PRODUCTS UK LTD,142129
Portsmouth City Council,PCC,Highways and Transport Services,Parking Services,Regeneration,Supplies and Services,"Clothes, uniform and laundry",23/03/2020,6354709,115,VENDOR,MC PRODUCTS UK LTD,142129
Portsmouth City Council,PCC,Highways and Transport Services,Parking Services,Regeneration,Supplies and Services,"Clothes, uniform and laundry",23/03/2020,6354709,287.5,VENDOR,MC PRODUCTS UK LTD,142129
Portsmouth City Council,PCC,Highways and Transport Services,Parking Services,Regeneration,Supplies and Services,"Printing, stationery and general office expenses",23/03/2020,6354709,7.5,VENDOR,MC PRODUCTS UK LTD,142129
Portsmouth City Council,PCC,Adult Social Care,Physical Support Older People (85+),Adult Services,Third Party Payments,Other establishments,02/03/2020,6350745,101.28,VENDOR,B S CARE LTD,100114
Portsmouth City Council,PCC,Other,Suspense and Capital Schemes,Capital - Environment & Climate Change,Capital Charges,Capital Expenditure (WIP),03/03/2020,6351012,-300000,PARTNERSHIP,VSBW JOINT VENTURE,146068
Portsmouth City Council,PCC,Other,Suspense and Capital Schemes,Capital - Environment & Climate Change,Capital Charges,Capital Expenditure (WIP),03/03/2020,6351012,300000,PARTNERSHIP,VSBW JOINT VENTURE,146068
Portsmouth City Council,PCC,Other,Suspense and Capital Schemes,Capital - Environment & Climate Change,Capital Charges,Capital Expenditure (WIP),03/03/2020,6351012,300000,PARTNERSHIP,VSBW JOINT VENTURE,146068
Portsmouth City Council,PCC,Children's and Education Services,Other Education and Community Budget,Children's Services and Education,Transport-Related Expenditure,Car allowances,11/03/2020,6352158,1015,VENDOR,CITY WIDE TAXIS,103408
Portsmouth City Council,PCC,Children's and Education Services,Other Education and Community Budget,Children's Services and Education,Transport-Related Expenditure,Car allowances,11/03/2020,6352158,600,VENDOR,CITY WIDE TAXIS,103408
Portsmouth City Council,PCC,Children's and Education Services,Other Education and Community Budget,Children's Services and Education,Transport-Related Expenditure,Car allowances,11/03/2020,6352158,390,VENDOR,CITY WIDE TAXIS,103408
Portsmouth City Council,PCC,Children's and Education Services,Other Education and Community Budget,Children's Services and Education,Transport-Related Expenditure,Car allowances,11/03/2020,6352158,675,VENDOR,CITY WIDE TAXIS,103408
Portsmouth City Council,PCC,Children's and Education Services,Other Education and Community Budget,Children's Services and Education,Transport-Related Expenditure,Car allowances,11/03/2020,6352158,600,VENDOR,CITY WIDE TAXIS,103408
Portsmouth City Council,PCC,Children's and Education Services,Other Education and Community Budget,Children's Services and Education,Transport-Related Expenditure,Car allowances,11/03/2020,6352158,2250,VENDOR,CITY WIDE TAXIS,103408
Portsmouth City Council,PCC,Adult Social Care,Physical Support Older People (85+),Adult Services,Third Party Payments,Other establishments,02/03/2020,6350745,818.68,VENDOR,B S CARE LTD,100114
Portsmouth City Council,PCC,Children's and Education Services,Other Education and Community Budget,Children's Services and Education,Transport-Related Expenditure,Car allowances,27/03/2020,6355260,455,VENDOR,CITY WIDE TAXIS,103408
Portsmouth City Council,PCC,Children's and Education Services,Other Education and Community Budget,Children's Services and Education,Transport-Related Expenditure,Car allowances,27/03/2020,6355260,247.5,VENDOR,CITY WIDE TAXIS,103408
Portsmouth City Council,PCC,Children's and Education Services,Other Education and Community Budget,Children's Services and Education,Transport-Related Expenditure,Car allowances,27/03/2020,6355260,350,VENDOR,CITY WIDE TAXIS,103408
Portsmouth City Council,PCC,Children's and Education Services,Other Education and Community Budget,Children's Services and Education,Transport-Related Expenditure,Car allowances,27/03/2020,6355260,545,VENDOR,CITY WIDE TAXIS,103408
Portsmouth City Council,PCC,Children's and Education Services,Other Education and Community Budget,Children's Services and Education,Transport-Related Expenditure,Car allowances,27/03/2020,6355260,210,VENDOR,CITY WIDE TAXIS,103408
Portsmouth City Council,PCC,Children's and Education Services,Other Education and Community Budget,Children's Services and Education,Transport-Related Expenditure,Car allowances,27/03/2020,6355260,315,VENDOR,CITY WIDE TAXIS,103408
Portsmouth City Council,PCC,Children's and Education Services,Other Education and Community Budget,Children's Services and Education,Transport-Related Expenditure,Car allowances,27/03/2020,6355260,463.8,VENDOR,CITY WIDE TAXIS,103408
Portsmouth City Council,PCC,Children's and Education Services,Other Education and Community Budget,Children's Services and Education,Transport-Related Expenditure,Car allowances,27/03/2020,6355260,465,VENDOR,CITY WIDE TAXIS,103408
Portsmouth City Council,PCC,Children's and Education Services,Other Education and Community Budget,Children's Services and Education,Transport-Related Expenditure,Car allowances,27/03/2020,6355260,1050,VENDOR,CITY WIDE TAXIS,103408
Portsmouth City Council,PCC,Adult Social Care,Physical Support Older People (85+),Adult Services,Third Party Payments,Other establishments,02/03/2020,6350745,87.12,VENDOR,B S CARE LTD,100114
Portsmouth City Council,PCC,Adult Social Care,Physical Support Older People (85+),Adult Services,Third Party Payments,Other establishments,02/03/2020,6350745,844,VENDOR,B S CARE LTD,100114
Portsmouth City Council,PCC,Other,Suspense and Capital Schemes,Capital - Environment & Climate Change,Capital Charges,Capital Expenditure (WIP),27/03/2020,6355413,99593.62,PARTNERSHIP,VSBW JOINT VENTURE,146068
Portsmouth City Council,PCC,Adult Social Care,Physical Support Older People (85+),Adult Services,Third Party Payments,Other establishments,02/03/2020,6350745,253.2,VENDOR,B S CARE LTD,100114
Portsmouth City Council,PCC,Adult Social Care,Physical Support Older People (85+),Adult Services,Third Party Payments,Other establishments,02/03/2020,6350745,236.32,VENDOR,B S CARE LTD,100114
Portsmouth City Council,PCC,Environmental and Regulatory Services,Waste Collection,"Housing, Neighbourhood and Building Services",Supplies and Services,"Equipment, furniture and materials",09/03/2020,6351822,3278.4,VENDOR,A & C WEBER UK LTD,137513
Portsmouth City Council,PCC,Environmental and Regulatory Services,Waste Collection,"Housing, Neighbourhood and Building Services",Supplies and Services,"Equipment, furniture and materials",09/03/2020,6351822,396.5,VENDOR,A & C WEBER UK LTD,137513
Portsmouth City Council,PCC,Environmental and Regulatory Services,Waste Collection,"Housing, Neighbourhood and Building Services",Supplies and Services,"Equipment, furniture and materials",09/03/2020,6351822,180,VENDOR,A & C WEBER UK LTD,137513
Portsmouth City Council,PCC,Children's and Education Services,Children Looked After,Children's Services and Education,Third Party Payments,Other establishments,23/03/2020,6354603,28000,VENDOR,ADVANCED ADOLESCENT CARE SOLUTIONS LTD,145305
Portsmouth City Council,PCC,Cultural and Related Services,Library Service,"Culture, Leisure & Regulatory Services",Third Party Payments,Private contractors,31/03/2020,6355691,750,SOLETRADER,Classified as 'personal data' (under the Data Protection Act 2018),128526
Portsmouth City Council,PCC,Other,Suspense and Capital Schemes,Capital - Housing General Fund,Capital Charges,REFCUS,05/03/2020,6351608,6774,COMPANY,L DEVINE AND CO LIMITED,111002
Portsmouth City Council,PCC,Cultural and Related Services,Culture and Heritage,Finance & Resources,Supplies and Services,Services,12/03/2020,6352870,450,VENDOR,NT CONSULTANCY LTD,146675
Portsmouth City Council,PCC,Adult Social Care,Physical Support Older People (85+),Adult Services,Third Party Payments,Other establishments,02/03/2020,6350745,1059.22,VENDOR,B S CARE LTD,100114
Portsmouth City Council,PCC,Children's and Education Services,Children Looked After,Children's Services and Education,Third Party Payments,Private contractors,30/03/2020,6355497,855,VENDOR,JIGSAW OCCUPATIONAL THERAPY,144751
Portsmouth City Council,PCC,Highways and Transport Services,"Airports, Harbours and Toll Facilities",Portsmouth International Port,Supplies and Services,"Equipment, furniture and materials",26/03/2020,6355157,16375,VENDOR,L3 COMMUNICATIONS UK LIMITED,108150
Portsmouth City Council,PCC,Adult Social Care,Physical Support Older People (85+),Adult Services,Third Party Payments,Other establishments,02/03/2020,6350745,236.32,VENDOR,B S CARE LTD,100114
Portsmouth City Council,PCC,Highways and Transport Services,"Airports, Harbours and Toll Facilities",Portsmouth International Port,Supplies and Services,Expenses,19/03/2020,6353922,1302.15,VENDOR,COMPASS SERVICES UK & IRELAND LTD,103916
Portsmouth City Council,PCC,Housing Services,Homelessness,"Housing, Neighbourhood and Building Services",Third Party Payments,Private contractors,04/03/2020,6351501,380,VENDOR,PORTSMOUTH.COM REMOVALS LTD,137147
Portsmouth City Council,PCC,Housing Services,Homelessness,"Housing, Neighbourhood and Building Services",Third Party Payments,Private contractors,04/03/2020,6351501,380,VENDOR,PORTSMOUTH.COM REMOVALS LTD,137147
Portsmouth City Council,PCC,Solent LEP,Business support,OTHER,Supplies and Services,"Printing, stationery and general office expenses",09/03/2020,6351895,2345,VENDOR,DEEP SOUTH MEDIA LTD,143218
Portsmouth City Council,PCC,Solent LEP,Business support,OTHER,Supplies and Services,"Printing, stationery and general office expenses",09/03/2020,6351895,186,VENDOR,DEEP SOUTH MEDIA LTD,143218
Portsmouth City Council,PCC,Children's and Education Services,Family Support Services,Children's Services and Education,Third Party Payments,Private contractors,03/03/2020,6350989,1242,VENDOR,RESTORE - RECORD STORAGE MANAGEMENT LIMITED,142168
Portsmouth City Council,PCC,Highways and Transport Services,"Transport Planning, Policy and Strategy",Regeneration,Premises-Related Expenditure,"Repairs, alterations and maintenance of buildings",13/03/2020,6353083,3987.62,VENDOR,SMART VIDEO AND SENSING LTD,141106
Portsmouth City Council,PCC,Cultural and Related Services,Culture and Heritage,"Culture, Leisure & Regulatory Services",Supplies and Services,"Equipment, furniture and materials",06/03/2020,6351669,176.62,VENDOR,BFS GROUP LTD T/A BIDFOOD,100106
Portsmouth City Council,PCC,Other,Suspense and Capital Schemes,Capital - Traffic & Transportation,Capital Charges,Capital Expenditure (WIP),24/03/2020,6354889,8518.94,VENDOR,SMART VIDEO AND SENSING LTD,141106
Portsmouth City Council,PCC,Other,Suspense and Capital Schemes,Capital - Traffic & Transportation,Capital Charges,Capital Expenditure (WIP),24/03/2020,6354889,4779.11,VENDOR,SMART VIDEO AND SENSING LTD,141106
Portsmouth City Council,PCC,Other,Suspense and Capital Schemes,Capital - Traffic & Transportation,Capital Charges,Capital Expenditure (WIP),24/03/2020,6354889,4779.11,VENDOR,SMART VIDEO AND SENSING LTD,141106
Portsmouth City Council,PCC,Other,Suspense and Capital Schemes,Capital - Traffic & Transportation,Capital Charges,Capital Expenditure (WIP),24/03/2020,6354889,6445.52,VENDOR,SMART VIDEO AND SENSING LTD,141106
Portsmouth City Council,PCC,Support Service / Transparency Costs Unallocated,Information Services,Corporate Services,Employees,Direct employee expenses,02/03/2020,6350821,4218.75,VENDOR,HAYS SPECIALIST RECRUITMENT LIMITED,100045
Portsmouth City Council,PCC,Support Service / Transparency Costs Unallocated,Information Services,Corporate Services,Employees,Direct employee expenses,17/03/2020,6353307,4218.75,VENDOR,HAYS SPECIALIST RECRUITMENT LIMITED,100045
Portsmouth City Council,PCC,Support Service / Transparency Costs Unallocated,Information Services,Corporate Services,Employees,Direct employee expenses,17/03/2020,6353307,4218.75,VENDOR,HAYS SPECIALIST RECRUITMENT LIMITED,100045
Portsmouth City Council,PCC,Children's and Education Services,Family Support Services,Children's Services and Education,Third Party Payments,Private contractors,31/03/2020,6355653,1239.76,VENDOR,RESTORE - RECORD STORAGE MANAGEMENT LIMITED,142168
Portsmouth City Council,PCC,Solent LEP,Business support,OTHER,Supplies and Services,Services,31/03/2020,6355593,1270,VENDOR,DEEP SOUTH MEDIA LTD,143218
Portsmouth City Council,PCC,Solent LEP,Business support,OTHER,Supplies and Services,Services,31/03/2020,6355593,1259.8,VENDOR,DEEP SOUTH MEDIA LTD,143218
Portsmouth City Council,PCC,Planning Services,Business support,Regeneration,Premises-Related Expenditure,"Repairs, alterations and maintenance of buildings",12/03/2020,6352800,984.06,COMPANY,D & J MEADEN LIMITED,130022
Portsmouth City Council,PCC,Children's and Education Services,Safeguarding Children and Young Peoples Services,Children's Services and Education,Third Party Payments,Other establishments,30/03/2020,6355521,4023.53,VENDOR,SAKURA CARE LIMITED,144940
Portsmouth City Council,PCC,Children's and Education Services,Asylum seekers,Children's Services and Education,Third Party Payments,Other establishments,30/03/2020,6355521,4263.36,VENDOR,SAKURA CARE LIMITED,144940
Portsmouth City Council,PCC,Children's and Education Services,Asylum seekers,Children's Services and Education,Third Party Payments,Other establishments,10/03/2020,6352110,4263.36,VENDOR,SAKURA CARE LIMITED,144940
Portsmouth City Council,PCC,Children's and Education Services,Asylum seekers,Children's Services and Education,Third Party Payments,Other establishments,23/03/2020,6354744,5923.14,VENDOR,SAKURA CARE LIMITED,144940
Portsmouth City Council,PCC,Children's and Education Services,Safeguarding Children and Young Peoples Services,Children's Services and Education,Third Party Payments,Other establishments,23/03/2020,6354744,45.56,VENDOR,SAKURA CARE LIMITED,144940
Portsmouth City Council,PCC,Children's and Education Services,Safeguarding Children and Young Peoples Services,Children's Services and Education,Third Party Payments,Other establishments,23/03/2020,6354744,4270.67,VENDOR,SAKURA CARE LIMITED,144940
Portsmouth City Council,PCC,Children's and Education Services,Asylum seekers,Children's Services and Education,Third Party Payments,Other establishments,23/03/2020,6354744,4270.67,VENDOR,SAKURA CARE LIMITED,144940
Portsmouth City Council,PCC,Children's and Education Services,Asylum seekers,Children's Services and Education,Third Party Payments,Other establishments,23/03/2020,6354744,4527.04,VENDOR,SAKURA CARE LIMITED,144940
Portsmouth City Council,PCC,Children's and Education Services,Safeguarding Children and Young Peoples Services,Children's Services and Education,Third Party Payments,Other establishments,30/03/2020,6355521,4527.04,VENDOR,SAKURA CARE LIMITED,144940
Portsmouth City Council,PCC,Children's and Education Services,Asylum seekers,Children's Services and Education,Third Party Payments,Other establishments,27/03/2020,6355370,4218.88,VENDOR,SAKURA CARE LIMITED,144940
Portsmouth City Council,PCC,Children's and Education Services,Asylum seekers,Children's Services and Education,Third Party Payments,Other establishments,27/03/2020,6355370,4087.04,VENDOR,SAKURA CARE LIMITED,144940
Portsmouth City Council,PCC,Highways and Transport Services,"Airports, Harbours and Toll Facilities",Portsmouth International Port,Premises-Related Expenditure,Cleaning and domestic supplies,26/03/2020,6355173,-144,VENDOR,NVIRO LTD,124507
Portsmouth City Council,PCC,Other,Suspense and Capital Schemes,Capital - Traffic & Transportation,Capital Charges,Capital Expenditure (WIP),25/03/2020,6355050,3749.43,COMPANY,SIEMENS PLC,106546
Portsmouth City Council,PCC,Housing Revenue Account,Special Services,"Housing, Neighbourhood and Building Services",Supplies and Services,Catering,03/03/2020,6350926,412.21,VENDOR,BFS GROUP LTD T/A BIDFOOD,100106
Portsmouth City Council,PCC,Support Service / Transparency Costs Unallocated,Personnel,Corporate Services,Employees,Direct employee expenses,06/03/2020,6351683,73129.03,VENDOR,COMENSURA LTD,140265
Portsmouth City Council,PCC,Support Service / Transparency Costs Unallocated,Personnel,Corporate Services,Employees,Direct employee expenses,13/03/2020,6352987,85850.01,VENDOR,COMENSURA LTD,140265
Portsmouth City Council,PCC,Support Service / Transparency Costs Unallocated,Personnel,Corporate Services,Employees,Direct employee expenses,20/03/2020,6354496,54636.23,VENDOR,COMENSURA LTD,140265
Portsmouth City Council,PCC,Support Service / Transparency Costs Unallocated,Personnel,Corporate Services,Employees,Direct employee expenses,27/03/2020,6355265,61998.48,VENDOR,COMENSURA LTD,140265
Portsmouth City Council,PCC,Children's and Education Services,Children Looked After,Children's Services and Education,Transport-Related Expenditure,Direct transport costs,06/03/2020,6351757,560.83,VENDOR,NATIONAL CAR PARKS LIMITED,141274
Portsmouth City Council,PCC,Housing Revenue Account,Special Services,"Housing, Neighbourhood and Building Services",Supplies and Services,Catering,03/03/2020,6350926,372.18,VENDOR,BFS GROUP LTD T/A BIDFOOD,100106
Portsmouth City Council,PCC,Children's and Education Services,Family Support Services,Children's Services and Education,Premises-Related Expenditure,"Repairs, alterations and maintenance of buildings",26/03/2020,6355143,1150,COMPANY,H MONFARED (BUILDERS) LIMITED,126008
Portsmouth City Council,PCC,Cultural and Related Services,Recreation and Sport,"Culture, Leisure & Regulatory Services",Premises-Related Expenditure,"Repairs, alterations and maintenance of buildings",04/03/2020,6351488,1850,VENDOR,LUMISPHERE PRODUCTS LTD,100203
Portsmouth City Council,PCC,Cultural and Related Services,Recreation and Sport,"Culture, Leisure & Regulatory Services",Premises-Related Expenditure,"Repairs, alterations and maintenance of buildings",04/03/2020,6351488,990,VENDOR,LUMISPHERE PRODUCTS LTD,100203
Portsmouth City Council,PCC,Cultural and Related Services,Recreation and Sport,"Culture, Leisure & Regulatory Services",Premises-Related Expenditure,"Repairs, alterations and maintenance of buildings",04/03/2020,6351488,16.2,VENDOR,LUMISPHERE PRODUCTS LTD,100203
Portsmouth City Council,PCC,Cultural and Related Services,Recreation and Sport,"Culture, Leisure & Regulatory Services",Supplies and Services,"Printing, stationery and general office expenses",04/03/2020,6351488,25.5,VENDOR,LUMISPHERE PRODUCTS LTD,100203
Portsmouth City Council,PCC,Housing Services,Homelessness,"Housing, Neighbourhood and Building Services",Premises-Related Expenditure,Rents,25/03/2020,6354972,2490,VENDOR,DOLPHIN PROPERTY RENTAL,107182
Portsmouth City Council,PCC,Support Service / Transparency Costs Unallocated,Information Services,Corporate Services,Supplies and Services,Communications and computing,06/03/2020,6351679,9922.56,VENDOR,CIVICA UK LTD,104001
Portsmouth City Council,PCC,Support Service / Transparency Costs Unallocated,Information Services,Corporate Services,Supplies and Services,Communications and computing,06/03/2020,6351679,6029.76,VENDOR,CIVICA UK LTD,104001
Portsmouth City Council,PCC,Support Service / Transparency Costs Unallocated,Information Services,Corporate Services,Supplies and Services,Communications and computing,06/03/2020,6351679,11185.32,VENDOR,CIVICA UK LTD,104001
Portsmouth City Council,PCC,Support Service / Transparency Costs Unallocated,Information Services,Corporate Services,Supplies and Services,Communications and computing,06/03/2020,6351679,282,VENDOR,CIVICA UK LTD,104001
Portsmouth City Council,PCC,Support Service / Transparency Costs Unallocated,Information Services,Corporate Services,Supplies and Services,Communications and computing,06/03/2020,6351679,282,VENDOR,CIVICA UK LTD,104001
Portsmouth City Council,PCC,Support Service / Transparency Costs Unallocated,Information Services,Corporate Services,Supplies and Services,Communications and computing,06/03/2020,6351679,282,VENDOR,CIVICA UK LTD,104001
Portsmouth City Council,PCC,Support Service / Transparency Costs Unallocated,Information Services,Corporate Services,Supplies and Services,Communications and computing,06/03/2020,6351679,2256,VENDOR,CIVICA UK LTD,104001
Portsmouth City Council,PCC,Support Service / Transparency Costs Unallocated,Information Services,Corporate Services,Supplies and Services,Communications and computing,06/03/2020,6351679,518.28,VENDOR,CIVICA UK LTD,104001
Portsmouth City Council,PCC,Housing Revenue Account,Supervision and Management,"Housing, Neighbourhood and Building Services",Supplies and Services,Communications and computing,10/03/2020,6352032,865.72,VENDOR,CIVICA UK LTD,104001
Portsmouth City Council,PCC,Support Service / Transparency Costs Unallocated,Information Services,Corporate Services,Supplies and Services,Communications and computing,10/03/2020,6352032,459.13,VENDOR,CIVICA UK LTD,104001
Portsmouth City Council,PCC,Planning Services,Planning Policy,Regeneration,Supplies and Services,Communications and computing,13/03/2020,6352984,865.72,VENDOR,CIVICA UK LTD,104001
Portsmouth City Council,PCC,Highways and Transport Services,"Transport Planning, Policy and Strategy",Regeneration,Supplies and Services,Communications and computing,17/03/2020,6353285,432.86,VENDOR,CIVICA UK LTD,104001
Portsmouth City Council,PCC,Highways and Transport Services,Public Transport,Regeneration,Supplies and Services,Communications and computing,17/03/2020,6353285,432.86,VENDOR,CIVICA UK LTD,104001
Portsmouth City Council,PCC,Support Service / Transparency Costs Unallocated,Information Services,Corporate Services,Supplies and Services,Communications and computing,20/03/2020,6354493,657.96,VENDOR,CIVICA UK LTD,104001
Portsmouth City Council,PCC,Support Service / Transparency Costs Unallocated,Information Services,Corporate Services,Supplies and Services,Communications and computing,20/03/2020,6354493,137.04,VENDOR,CIVICA UK LTD,104001
Portsmouth City Council,PCC,Support Service / Transparency Costs Unallocated,Information Services,Corporate Services,Supplies and Services,Communications and computing,20/03/2020,6354493,155.04,VENDOR,CIVICA UK LTD,104001
Portsmouth City Council,PCC,Highways and Transport Services,"Transport Planning, Policy and Strategy",Regeneration,Supplies and Services,Communications and computing,20/03/2020,6354493,2597.16,VENDOR,CIVICA UK LTD,104001
Portsmouth City Council,PCC,Highways and Transport Services,"Transport Planning, Policy and Strategy",Regeneration,Supplies and Services,Communications and computing,23/03/2020,6354633,432.86,VENDOR,CIVICA UK LTD,104001
Portsmouth City Council,PCC,Support Service / Transparency Costs Unallocated,Financial Services,Finance & Resources,Supplies and Services,Communications and computing,24/03/2020,6354815,432.86,VENDOR,CIVICA UK LTD,104001
Portsmouth City Council,PCC,Housing Revenue Account,Special Services,"Housing, Neighbourhood and Building Services",Supplies and Services,Catering,03/03/2020,6350926,462.68,VENDOR,BFS GROUP LTD T/A BIDFOOD,100106
Portsmouth City Council,PCC,Adult Social Care,Physical Support Older People (85+),Adult Services,Third Party Payments,Other establishments,02/03/2020,6350745,135.04,VENDOR,B S CARE LTD,100114
Portsmouth City Council,PCC,Adult Social Care,Physical Support Older People (85+),Adult Services,Third Party Payments,Other establishments,02/03/2020,6350745,253.2,VENDOR,B S CARE LTD,100114
Portsmouth City Council,PCC,Adult Social Care,Physical Support Older People (85+),Adult Services,Third Party Payments,Other establishments,02/03/2020,6350745,708.96,VENDOR,B S CARE LTD,100114
Portsmouth City Council,PCC,Adult Social Care,Physical Support Older People (85+),Adult Services,Third Party Payments,Other establishments,02/03/2020,6350745,472.64,VENDOR,B S CARE LTD,100114
Portsmouth City Council,PCC,Highways and Transport Services,"Airports, Harbours and Toll Facilities",Portsmouth International Port,Premises-Related Expenditure,Cleaning and domestic supplies,26/03/2020,6355173,-238.67,VENDOR,NVIRO LTD,124507
Portsmouth City Council,PCC,Costs below Net Cost of Services,Trading,Regeneration,Supplies and Services,Services,10/03/2020,6352126,2074.66,VENDOR,THE OYSTER PARTNERSHIP,120530
Portsmouth City Council,PCC,Costs below Net Cost of Services,Trading,Regeneration,Supplies and Services,Services,10/03/2020,6352126,2226.5,VENDOR,THE OYSTER PARTNERSHIP,120530
Portsmouth City Council,PCC,Housing Revenue Account,Special Services,"Housing, Neighbourhood and Building Services",Supplies and Services,Catering,03/03/2020,6350926,488.5,VENDOR,BFS GROUP LTD T/A BIDFOOD,100106
Portsmouth City Council,PCC,Costs below Net Cost of Services,Trading,Regeneration,Supplies and Services,Services,24/03/2020,6354905,2695.16,VENDOR,THE OYSTER PARTNERSHIP,120530
Portsmouth City Council,PCC,Costs below Net Cost of Services,Trading,Regeneration,Supplies and Services,Services,24/03/2020,6354905,2579.09,VENDOR,THE OYSTER PARTNERSHIP,120530
Portsmouth City Council,PCC,Highways and Transport Services,"Airports, Harbours and Toll Facilities",Portsmouth International Port,Supplies and Services,Services,05/03/2020,6351604,19490,VENDOR,HASKONINGDHV UK LIMITED,109400
Portsmouth City Council,PCC,Other,Suspense and Capital Schemes,Capital - Environment & Climate Change,Capital Charges,Capital Expenditure (WIP),04/03/2020,6351477,75585.67,VENDOR,HASKONINGDHV UK LIMITED,109400
Portsmouth City Council,PCC,Other,Suspense and Capital Schemes,Capital - Traffic & Transportation,Capital Charges,Capital Expenditure (WIP),20/03/2020,6354544,1250,VENDOR,LYMINGTON TECHNICAL SERVICES LTD,129180
Portsmouth City Council,PCC,Other,Suspense and Capital Schemes,Capital - Environment & Climate Change,Capital Charges,Capital Expenditure (WIP),20/03/2020,6354525,69516.09,VENDOR,HASKONINGDHV UK LIMITED,109400
Portsmouth City Council,PCC,Other,Suspense and Capital Schemes,Capital - Environment & Climate Change,Capital Charges,Capital Expenditure (WIP),31/03/2020,6355606,36941.07,VENDOR,HASKONINGDHV UK LIMITED,109400
Portsmouth City Council,PCC,Cultural and Related Services,Allocation of Management & Admin,"Housing, Neighbourhood and Building Services",Supplies and Services,Catering,05/03/2020,6351563,619.9,VENDOR,BFS GROUP LTD T/A BIDFOOD,100106
Portsmouth City Council,PCC,Highways and Transport Services,"Airports, Harbours and Toll Facilities",Portsmouth International Port,Third Party Payments,Private contractors,05/03/2020,6351612,2500,VENDOR,LYMINGTON TECHNICAL SERVICES LTD,129180
Portsmouth City Council,PCC,Highways and Transport Services,"Airports, Harbours and Toll Facilities",Portsmouth International Port,Third Party Payments,Private contractors,05/03/2020,6351612,2300,VENDOR,LYMINGTON TECHNICAL SERVICES LTD,129180
Portsmouth City Council,PCC,Cultural and Related Services,Culture and Heritage,"Culture, Leisure & Regulatory Services",Supplies and Services,"Equipment, furniture and materials",05/03/2020,6351563,163.34,VENDOR,BFS GROUP LTD T/A BIDFOOD,100106
Portsmouth City Council,PCC,Adult Social Care,Physical Support Older People (85+),Adult Services,Third Party Payments,Other establishments,02/03/2020,6350745,105.5,VENDOR,B S CARE LTD,100114
Portsmouth City Council,PCC,Cultural and Related Services,Recreation and Sport,"Culture, Leisure & Regulatory Services",Supplies and Services,Catering,06/03/2020,6351669,52.79,VENDOR,BFS GROUP LTD T/A BIDFOOD,100106
Portsmouth City Council,PCC,Adult Social Care,Physical Support Older People (85+),Adult Services,Third Party Payments,Other establishments,02/03/2020,6350745,1063.44,VENDOR,B S CARE LTD,100114
Portsmouth City Council,PCC,Support Service / Transparency Costs Unallocated,Personnel,Corporate Services,Employees,Indirect employee expenses,06/03/2020,6351755,452,VENDOR,MG CARE EXECUTIVE LTD,145566
Portsmouth City Council,PCC,Support Service / Transparency Costs Unallocated,Personnel,Corporate Services,Employees,Indirect employee expenses,06/03/2020,6351755,52,VENDOR,MG CARE EXECUTIVE LTD,145566
Portsmouth City Council,PCC,Cultural and Related Services,Library Service,"Culture, Leisure & Regulatory Services",Supplies and Services,"Equipment, furniture and materials",24/03/2020,6354882,667.3,VENDOR,SCIENCE THEATRE,144197
Portsmouth City Council,PCC,Housing Revenue Account,Special Services,"Housing, Neighbourhood and Building Services",Supplies and Services,Catering,30/03/2020,6355431,474.67,VENDOR,BFS GROUP LTD T/A BIDFOOD,100106
Portsmouth City Council,PCC,Adult Social Care,Physical Support Older People (85+),Adult Services,Third Party Payments,Other establishments,02/03/2020,6350745,1198.48,VENDOR,B S CARE LTD,100114
Portsmouth City Council,PCC,Cultural and Related Services,Allocation of Management & Admin,"Housing, Neighbourhood and Building Services",Supplies and Services,Catering,05/03/2020,6351563,552.02,VENDOR,BFS GROUP LTD T/A BIDFOOD,100106
Portsmouth City Council,PCC,Housing Revenue Account,Special Services,"Housing, Neighbourhood and Building Services",Supplies and Services,Catering,30/03/2020,6355431,194.46,VENDOR,BFS GROUP LTD T/A BIDFOOD,100106
Portsmouth City Council,PCC,Cultural and Related Services,Allocation of Management & Admin,"Housing, Neighbourhood and Building Services",Supplies and Services,Catering,12/03/2020,6352746,775.95,VENDOR,BFS GROUP LTD T/A BIDFOOD,100106
Portsmouth City Council,PCC,Adult Social Care,Physical Support Older People (85+),Adult Services,Third Party Payments,Other establishments,02/03/2020,6350745,472.64,VENDOR,B S CARE LTD,100114
Portsmouth City Council,PCC,Adult Social Care,Physical Support Older People (85+),Adult Services,Third Party Payments,Other establishments,02/03/2020,6350745,708.96,VENDOR,B S CARE LTD,100114
Portsmouth City Council,PCC,Housing Revenue Account,Special Services,"Housing, Neighbourhood and Building Services",Supplies and Services,Catering,30/03/2020,6355431,461.49,VENDOR,BFS GROUP LTD T/A BIDFOOD,100106
Portsmouth City Council,PCC,Adult Social Care,Physical Support Older People (85+),Adult Services,Third Party Payments,Other establishments,02/03/2020,6350745,1367.28,VENDOR,B S CARE LTD,100114
Portsmouth City Council,PCC,Cultural and Related Services,Allocation of Management & Admin,"Housing, Neighbourhood and Building Services",Supplies and Services,Catering,12/03/2020,6352746,740.85,VENDOR,BFS GROUP LTD T/A BIDFOOD,100106
Portsmouth City Council,PCC,Cultural and Related Services,Allocation of Management & Admin,"Housing, Neighbourhood and Building Services",Supplies and Services,Catering,19/03/2020,6353912,716.41,VENDOR,BFS GROUP LTD T/A BIDFOOD,100106
Portsmouth City Council,PCC,Other,Suspense and Capital Schemes,Capital - Traffic & Transportation,Capital Charges,Capital Expenditure (WIP),30/03/2020,6355550,5500,COMPANY,WESTCOTEC LIMITED,130061
Portsmouth City Council,PCC,Support Service / Transparency Costs Unallocated,AMS,Regeneration,Supplies and Services,Services,20/03/2020,6354476,5078,VENDOR,BACA ARCHITECTS LIMITED,146684
Portsmouth City Council,PCC,Housing Revenue Account,Repairs and Maintenance,"Housing, Neighbourhood and Building Services",Premises-Related Expenditure,"Repairs, alterations and maintenance of buildings",17/03/2020,6353316,479424,COMPANY,LIBERTY GAS GROUP LIMITED,134977
Portsmouth City Council,PCC,Housing Services,Homelessness,"Housing, Neighbourhood and Building Services",Supplies and Services,Grants and subscriptions,04/03/2020,6351486,1710,VENDOR,LET CO,144441
Portsmouth City Council,PCC,Housing Revenue Account,Special Services,"Housing, Neighbourhood and Building Services",Supplies and Services,Catering,30/03/2020,6355431,468.86,VENDOR,BFS GROUP LTD T/A BIDFOOD,100106
Portsmouth City Council,PCC,Adult Social Care,Physical Support Older People (85+),Adult Services,Third Party Payments,Other establishments,02/03/2020,6350745,472.64,VENDOR,B S CARE LTD,100114
Portsmouth City Council,PCC,Cultural and Related Services,Allocation of Management & Admin,"Housing, Neighbourhood and Building Services",Supplies and Services,Catering,19/03/2020,6353912,673.08,VENDOR,BFS GROUP LTD T/A BIDFOOD,100106
Portsmouth City Council,PCC,Cultural and Related Services,Culture and Heritage,"Culture, Leisure & Regulatory Services",Supplies and Services,"Equipment, furniture and materials",19/03/2020,6353912,106.66,VENDOR,BFS GROUP LTD T/A BIDFOOD,100106
Portsmouth City Council,PCC,Support Service / Transparency Costs Unallocated,AMS,"Housing, Neighbourhood and Building Services",Supplies and Services,Services,10/03/2020,6352021,15832.1,VENDOR,BAKER STUART LIMITED,146369
Portsmouth City Council,PCC,Support Service / Transparency Costs Unallocated,AMS,"Housing, Neighbourhood and Building Services",Supplies and Services,Services,26/03/2020,6355112,15832.1,VENDOR,BAKER STUART LIMITED,146369
Portsmouth City Council,PCC,Cultural and Related Services,Allocation of Management & Admin,"Housing, Neighbourhood and Building Services",Supplies and Services,Catering,26/03/2020,6355113,737,VENDOR,BFS GROUP LTD T/A BIDFOOD,100106
Portsmouth City Council,PCC,Adult Social Care,Physical Support Older People (85+),Adult Services,Third Party Payments,Other establishments,02/03/2020,6350745,101.28,VENDOR,B S CARE LTD,100114
Portsmouth City Council,PCC,Adult Social Care,Physical Support Older People (85+),Adult Services,Third Party Payments,Other establishments,02/03/2020,6350745,472.64,VENDOR,B S CARE LTD,100114
Portsmouth City Council,PCC,Adult Social Care,Physical Support Older People (85+),Adult Services,Third Party Payments,Other establishments,02/03/2020,6350745,236.32,VENDOR,B S CARE LTD,100114
Portsmouth City Council,PCC,Adult Social Care,Physical Support Older People (85+),Adult Services,Third Party Payments,Other establishments,02/03/2020,6350745,662.54,VENDOR,B S CARE LTD,100114
Portsmouth City Council,PCC,Housing Revenue Account,Special Services,"Housing, Neighbourhood and Building Services",Employees,Direct employee expenses,16/03/2020,6353245,3529.44,VENDOR,SEVACARE (UK) LTD,136163
Portsmouth City Council,PCC,Adult Social Care,Physical Support Older People (85+),Adult Services,Third Party Payments,Other establishments,02/03/2020,6350745,236.32,VENDOR,B S CARE LTD,100114
Portsmouth City Council,PCC,Adult Social Care,Physical Support Older People (85+),Adult Services,Third Party Payments,Other establishments,02/03/2020,6350745,236.32,VENDOR,B S CARE LTD,100114
Portsmouth City Council,PCC,Adult Social Care,Physical Support Older People (85+),Adult Services,Third Party Payments,Other establishments,02/03/2020,6350745,227.88,VENDOR,B S CARE LTD,100114
Portsmouth City Council,PCC,Adult Social Care,Physical Support Older People (85+),Adult Services,Third Party Payments,Other establishments,02/03/2020,6350745,59.08,VENDOR,B S CARE LTD,100114
Portsmouth City Council,PCC,Adult Social Care,Physical Support Older People (85+),Adult Services,Third Party Payments,Other establishments,02/03/2020,6350745,472.64,VENDOR,B S CARE LTD,100114
Portsmouth City Council,PCC,Adult Social Care,Physical Support Older People (85+),Adult Services,Third Party Payments,Other establishments,02/03/2020,6350745,33.76,VENDOR,B S CARE LTD,100114
Portsmouth City Council,PCC,Cultural and Related Services,Culture and Heritage,"Culture, Leisure & Regulatory Services",Supplies and Services,"Equipment, furniture and materials",25/03/2020,6354935,218.77,VENDOR,BFS GROUP LTD T/A BIDFOOD,100106
Portsmouth City Council,PCC,Housing Revenue Account,Special Services,"Housing, Neighbourhood and Building Services",Supplies and Services,Catering,30/03/2020,6355431,558.31,VENDOR,BFS GROUP LTD T/A BIDFOOD,100106
Portsmouth City Council,PCC,Adult Social Care,Physical Support Older People (85+),Adult Services,Third Party Payments,Other establishments,02/03/2020,6350745,540.16,VENDOR,B S CARE LTD,100114
Portsmouth City Council,PCC,Cultural and Related Services,Allocation of Management & Admin,"Housing, Neighbourhood and Building Services",Supplies and Services,Catering,26/03/2020,6355113,525.84,VENDOR,BFS GROUP LTD T/A BIDFOOD,100106
Portsmouth City Council,PCC,Children's and Education Services,Management and Support Services,Children's Services and Education,Premises-Related Expenditure,Rents,27/03/2020,6355310,1866.66,VENDOR,GOLD DIAMOND D ABERDEEN 2005 LTD,100890
Portsmouth City Council,PCC,Support Service / Transparency Costs Unallocated,Financial Services,Finance & Resources,Premises-Related Expenditure,Rents,27/03/2020,6355310,250,VENDOR,GOLD DIAMOND D ABERDEEN 2005 LTD,100890
Portsmouth City Council,PCC,Adult Social Care,Physical Support Older People (85+),Adult Services,Third Party Payments,Other establishments,02/03/2020,6350745,995.92,VENDOR,B S CARE LTD,100114
Portsmouth City Council,PCC,Housing Revenue Account,Special Services,"Housing, Neighbourhood and Building Services",Supplies and Services,Catering,31/03/2020,6355571,279.27,VENDOR,BFS GROUP LTD T/A BIDFOOD,100106
Portsmouth City Council,PCC,Support Service / Transparency Costs Unallocated,AMS,Regeneration,Third Party Payments,Private contractors,04/03/2020,6351481,3209.44,VENDOR,INSIGHT EXECUTIVE GROUP LIMITED,146149
Portsmouth City Council,PCC,Adult Social Care,Physical Support Older People (85+),Adult Services,Third Party Payments,Other establishments,02/03/2020,6350745,708.96,VENDOR,B S CARE LTD,100114
Portsmouth City Council,PCC,Support Service / Transparency Costs Unallocated,AMS,Regeneration,Third Party Payments,Private contractors,09/03/2020,6351926,4011.8,VENDOR,INSIGHT EXECUTIVE GROUP LIMITED,146149
Portsmouth City Council,PCC,Support Service / Transparency Costs Unallocated,AMS,Regeneration,Third Party Payments,Private contractors,16/03/2020,6353192,3610.62,VENDOR,INSIGHT EXECUTIVE GROUP LIMITED,146149
Portsmouth City Council,PCC,Support Service / Transparency Costs Unallocated,AMS,Regeneration,Third Party Payments,Private contractors,23/03/2020,6354682,3209.44,VENDOR,INSIGHT EXECUTIVE GROUP LIMITED,146149
Portsmouth City Council,PCC,Adult Social Care,Physical Support Older People (85+),Adult Services,Third Party Payments,Other establishments,02/03/2020,6350745,472.64,VENDOR,B S CARE LTD,100114
Portsmouth City Council,PCC,Adult Social Care,Physical Support Older People (85+),Adult Services,Third Party Payments,Other establishments,02/03/2020,6350745,151.92,VENDOR,B S CARE LTD,100114
Portsmouth City Council,PCC,Adult Social Care,Physical Support Older People (85+),Adult Services,Third Party Payments,Other establishments,02/03/2020,6350745,472.64,VENDOR,B S CARE LTD,100114
Portsmouth City Council,PCC,Costs below Net Cost of Services,Trading,Regeneration,Third Party Payments,Private contractors,04/03/2020,6351535,1616,VENDOR,THE MINISTRY OF DEFENCE,114001
Portsmouth City Council,PCC,Environmental and Regulatory Services,Regulatory Services,"Culture, Leisure & Regulatory Services",Supplies and Services,Communications and computing,17/03/2020,6353313,2850,VENDOR,IDOX SOFTWARE LTD,113608
Portsmouth City Council,PCC,Environmental and Regulatory Services,Regulatory Services,"Housing, Neighbourhood and Building Services",Supplies and Services,Communications and computing,17/03/2020,6353313,950,VENDOR,IDOX SOFTWARE LTD,113608
Portsmouth City Council,PCC,Children's and Education Services,Asylum seekers,Children's Services and Education,Third Party Payments,Other establishments,25/03/2020,6355053,30244.97,VENDOR,SILVER BIRCH CARE LIMITED,146315
Portsmouth City Council,PCC,Children's and Education Services,Children Looked After,Children's Services and Education,Third Party Payments,Other establishments,25/03/2020,6355053,3417.86,VENDOR,SILVER BIRCH CARE LIMITED,146315
Portsmouth City Council,PCC,Children's and Education Services,Children Looked After,Children's Services and Education,Third Party Payments,Other establishments,25/03/2020,6355053,239.87,VENDOR,SILVER BIRCH CARE LIMITED,146315
Portsmouth City Council,PCC,Other,Suspense and Capital Schemes,Capital - Leader - Port,Capital Charges,Capital Expenditure (WIP),19/03/2020,6353999,165672.51,COMPANY,TARMAC BUILDING PRODUCTS LTD,122044
Portsmouth City Council,PCC,Housing Services,Homelessness,"Housing, Neighbourhood and Building Services",Supplies and Services,Grants and subscriptions,20/03/2020,6354491,840,VENDOR,CHRISTIES LETTING AGENTS,128708
Portsmouth City Council,PCC,Housing Services,Homelessness,"Housing, Neighbourhood and Building Services",Supplies and Services,Grants and subscriptions,20/03/2020,6354491,1200,VENDOR,CHRISTIES LETTING AGENTS,128708
Portsmouth City Council,PCC,Adult Social Care,Physical Support Older People (85+),Adult Services,Third Party Payments,Other establishments,02/03/2020,6350745,236.32,VENDOR,B S CARE LTD,100114
Portsmouth City Council,PCC,Adult Social Care,Physical Support Older People (85+),Adult Services,Third Party Payments,Other establishments,02/03/2020,6350745,945.28,VENDOR,B S CARE LTD,100114
Portsmouth City Council,PCC,Adult Social Care,Physical Support Older People (85+),Adult Services,Third Party Payments,Other establishments,02/03/2020,6350745,708.96,VENDOR,B S CARE LTD,100114
Portsmouth City Council,PCC,Housing Services,Homelessness,"Housing, Neighbourhood and Building Services",Supplies and Services,Grants and subscriptions,24/03/2020,6354872,580,VENDOR,POMPEY LETTINGS LTD,144692
Portsmouth City Council,PCC,Housing Services,Homelessness,"Housing, Neighbourhood and Building Services",Supplies and Services,Grants and subscriptions,24/03/2020,6354873,580,VENDOR,POMPEY LETTINGS LTD,144692
Portsmouth City Council,PCC,Other,Suspense and Capital Schemes,"Housing, Neighbourhood and Building Services",Third Party Payments,Private contractors,27/03/2020,6355314,450000,OTHER LOCAL AUTHORITY,HAMPSHIRE COUNTY COUNCIL,100030
Portsmouth City Council,PCC,Highways and Transport Services,Parking Services,Regeneration,Supplies and Services,Services,11/03/2020,6352647,3239.58,SOLETRADER,Classified as 'personal data' (under the Data Protection Act 2018),142601
Portsmouth City Council,PCC,Housing Services,Homelessness,"Housing, Neighbourhood and Building Services",Supplies and Services,Grants and subscriptions,06/03/2020,6351677,900,VENDOR,CHRISTIES LETTING AGENTS,128708
Portsmouth City Council,PCC,Housing Services,Homelessness,"Housing, Neighbourhood and Building Services",Premises-Related Expenditure,Rents,25/03/2020,6354957,1830,SOLETRADER,Classified as 'personal data' (under the Data Protection Act 2018),139708
Portsmouth City Council,PCC,Housing Revenue Account,Repairs and Maintenance,"Housing, Neighbourhood and Building Services",Premises-Related Expenditure,"Repairs, alterations and maintenance of buildings",30/03/2020,6355501,438766.11,COMPANY,LIBERTY GAS GROUP LIMITED,134977
Portsmouth City Council,PCC,Housing Revenue Account,Repairs and Maintenance,"Housing, Neighbourhood and Building Services",Premises-Related Expenditure,"Repairs, alterations and maintenance of buildings",27/03/2020,6355284,1405034.75,COMPANY,COMSERV (UK) LIMITED,120542
Portsmouth City Council,PCC,Planning Services,Business support,Regeneration,Premises-Related Expenditure,"Repairs, alterations and maintenance of buildings",12/03/2020,6352915,20.16,VENDOR,SIX DEGREES TECHNOLOGY GROUP LTD,137034
Portsmouth City Council,PCC,Planning Services,Business support,Regeneration,Premises-Related Expenditure,"Repairs, alterations and maintenance of buildings",12/03/2020,6352915,37.32,VENDOR,SIX DEGREES TECHNOLOGY GROUP LTD,137034
Portsmouth City Council,PCC,Cultural and Related Services,Recreation and Sport,"Culture, Leisure & Regulatory Services",Premises-Related Expenditure,"Repairs, alterations and maintenance of buildings",12/03/2020,6352915,37.36,VENDOR,SIX DEGREES TECHNOLOGY GROUP LTD,137034
Portsmouth City Council,PCC,Support Service / Transparency Costs Unallocated,LLM,"Housing, Neighbourhood and Building Services",Premises-Related Expenditure,"Repairs, alterations and maintenance of buildings",12/03/2020,6352915,57.48,VENDOR,SIX DEGREES TECHNOLOGY GROUP LTD,137034
Portsmouth City Council,PCC,Support Service / Transparency Costs Unallocated,LLM,"Housing, Neighbourhood and Building Services",Premises-Related Expenditure,"Repairs, alterations and maintenance of buildings",12/03/2020,6352915,18.67,VENDOR,SIX DEGREES TECHNOLOGY GROUP LTD,137034
Portsmouth City Council,PCC,Support Service / Transparency Costs Unallocated,LLM,"Housing, Neighbourhood and Building Services",Premises-Related Expenditure,"Repairs, alterations and maintenance of buildings",12/03/2020,6352915,18.66,VENDOR,SIX DEGREES TECHNOLOGY GROUP LTD,137034
Portsmouth City Council,PCC,Support Service / Transparency Costs Unallocated,LLM,"Housing, Neighbourhood and Building Services",Premises-Related Expenditure,"Repairs, alterations and maintenance of buildings",12/03/2020,6352915,18.66,VENDOR,SIX DEGREES TECHNOLOGY GROUP LTD,137034
Portsmouth City Council,PCC,Support Service / Transparency Costs Unallocated,LLM,"Housing, Neighbourhood and Building Services",Premises-Related Expenditure,"Repairs, alterations and maintenance of buildings",12/03/2020,6352915,40.32,VENDOR,SIX DEGREES TECHNOLOGY GROUP LTD,137034
Portsmouth City Council,PCC,Support Service / Transparency Costs Unallocated,LLM,"Housing, Neighbourhood and Building Services",Premises-Related Expenditure,"Repairs, alterations and maintenance of buildings",12/03/2020,6352915,40.33,VENDOR,SIX DEGREES TECHNOLOGY GROUP LTD,137034
Portsmouth City Council,PCC,Support Service / Transparency Costs Unallocated,LLM,"Housing, Neighbourhood and Building Services",Premises-Related Expenditure,"Repairs, alterations and maintenance of buildings",12/03/2020,6352915,20.16,VENDOR,SIX DEGREES TECHNOLOGY GROUP LTD,137034
Portsmouth City Council,PCC,Support Service / Transparency Costs Unallocated,LLM,"Housing, Neighbourhood and Building Services",Premises-Related Expenditure,"Repairs, alterations and maintenance of buildings",12/03/2020,6352915,20.18,VENDOR,SIX DEGREES TECHNOLOGY GROUP LTD,137034
Portsmouth City Council,PCC,Support Service / Transparency Costs Unallocated,LLM,"Housing, Neighbourhood and Building Services",Premises-Related Expenditure,"Repairs, alterations and maintenance of buildings",12/03/2020,6352915,20.18,VENDOR,SIX DEGREES TECHNOLOGY GROUP LTD,137034
Portsmouth City Council,PCC,Support Service / Transparency Costs Unallocated,LLM,"Housing, Neighbourhood and Building Services",Premises-Related Expenditure,"Repairs, alterations and maintenance of buildings",12/03/2020,6352915,18.66,VENDOR,SIX DEGREES TECHNOLOGY GROUP LTD,137034
Portsmouth City Council,PCC,Support Service / Transparency Costs Unallocated,LLM,"Housing, Neighbourhood and Building Services",Premises-Related Expenditure,"Repairs, alterations and maintenance of buildings",12/03/2020,6352915,18.66,VENDOR,SIX DEGREES TECHNOLOGY GROUP LTD,137034
Portsmouth City Council,PCC,Other,Suspense and Capital Schemes,"Housing, Neighbourhood and Building Services",Premises-Related Expenditure,"Repairs, alterations and maintenance of buildings",12/03/2020,6352915,1486.16,VENDOR,SIX DEGREES TECHNOLOGY GROUP LTD,137034
Portsmouth City Council,PCC,Cultural and Related Services,Culture and Heritage,"Culture, Leisure & Regulatory Services",Transport-Related Expenditure,Contract hire and operating leases,19/03/2020,6353923,2030,VENDOR,CONSTANTINE LTD,119820
Portsmouth City Council,PCC,Support Service / Transparency Costs Unallocated,Personnel,Corporate Services,Employees,Indirect employee expenses,13/03/2020,6353069,250,VENDOR,QUDOS,101590
Portsmouth City Council,PCC,Housing Revenue Account,Special Services,"Housing, Neighbourhood and Building Services",Employees,Indirect employee expenses,13/03/2020,6353069,250,VENDOR,QUDOS,101590
Portsmouth City Council,PCC,Children's and Education Services,Special Schools,Children's Services and Education,Third Party Payments,Other establishments,11/03/2020,6352196,1521,VENDOR,EQUAL EDUCATION LIMITED,144960
Portsmouth City Council,PCC,Children's and Education Services,Special Schools,Children's Services and Education,Third Party Payments,Other establishments,27/03/2020,6355304,877.5,VENDOR,EQUAL EDUCATION LIMITED,144960
Portsmouth City Council,PCC,Adult Social Care,Physical Support Older People (85+),Adult Services,Third Party Payments,Other establishments,02/03/2020,6350745,827.12,VENDOR,B S CARE LTD,100114
Portsmouth City Council,PCC,Housing Services,Homelessness,"Housing, Neighbourhood and Building Services",Third Party Payments,Private contractors,12/03/2020,6352709,220,VENDOR,A VAN PORTSMOUTH LIMITED,138694
Portsmouth City Council,PCC,Environmental and Regulatory Services,Community Safety (CCTV),"Housing, Neighbourhood and Building Services",Third Party Payments,Private contractors,26/03/2020,6355188,6685,VENDOR,RAPID VISION SYSTEMS LTD,137547
Portsmouth City Council,PCC,Support Service / Transparency Costs Unallocated,Information Services,Corporate Services,Supplies and Services,Communications and computing,27/03/2020,6355364,5647.95,COMPANY,POWERWORKS MAINTENANCE SERVICES LTD,141178
Portsmouth City Council,PCC,Highways and Transport Services,"Airports, Harbours and Toll Facilities",Portsmouth International Port,Supplies and Services,"Equipment, furniture and materials",19/03/2020,6353981,752.5,VENDOR,RAPISCAN SYSTEMS LIMITED,108247
Portsmouth City Council,PCC,Highways and Transport Services,"Airports, Harbours and Toll Facilities",Portsmouth International Port,Supplies and Services,"Equipment, furniture and materials",19/03/2020,6353981,52.5,VENDOR,RAPISCAN SYSTEMS LIMITED,108247
Portsmouth City Council,PCC,Children's and Education Services,Other Education and Community Budget,Children's Services and Education,Supplies and Services,Services,13/03/2020,6353042,425,SOLETRADER,Classified as 'personal data' (under the Data Protection Act 2018),146644
Portsmouth City Council,PCC,Costs below Net Cost of Services,Trading,Regeneration,Premises-Related Expenditure,"Repairs, alterations and maintenance of buildings",20/03/2020,6354559,597.52,VENDOR,PALMSTEAD NURSERIES LTD,135396
Portsmouth City Council,PCC,Other,Suspense and Capital Schemes,Capital - Housing RA,Capital Charges,Capital Expenditure (WIP),03/03/2020,6350949,-95,VENDOR,ELMHURST ENERGY SYSTEMS LTD,127591
Portsmouth City Council,PCC,Support Service / Transparency Costs Unallocated,Information Services,Corporate Services,Supplies and Services,"Printing, stationery and general office expenses",05/03/2020,6351606,1545,VENDOR,HUNGRY RAPTOR LTD T/A SME SUPPLIES,143884
Portsmouth City Council,PCC,Planning Services,Business support,Regeneration,Third Party Payments,Private contractors,18/03/2020,6353824,4338,COMPANY,HAMPSHIRE COMMERCIAL REFURBISHMENT LTD,139067
Portsmouth City Council,PCC,Planning Services,Business support,Regeneration,Third Party Payments,Private contractors,20/03/2020,6354522,750,COMPANY,HAMPSHIRE COMMERCIAL REFURBISHMENT LTD,139067
Portsmouth City Council,PCC,Planning Services,Business support,Regeneration,Third Party Payments,Private contractors,20/03/2020,6354522,925,COMPANY,HAMPSHIRE COMMERCIAL REFURBISHMENT LTD,139067
Portsmouth City Council,PCC,Planning Services,Business support,Regeneration,Premises-Related Expenditure,"Repairs, alterations and maintenance of buildings",20/03/2020,6354522,1547,COMPANY,HAMPSHIRE COMMERCIAL REFURBISHMENT LTD,139067
Portsmouth City Council,PCC,Planning Services,Business support,Regeneration,Premises-Related Expenditure,"Repairs, alterations and maintenance of buildings",20/03/2020,6354522,1190,COMPANY,HAMPSHIRE COMMERCIAL REFURBISHMENT LTD,139067
Portsmouth City Council,PCC,Highways and Transport Services,"Airports, Harbours and Toll Facilities",Portsmouth International Port,Supplies and Services,Miscellaneous expenses,19/03/2020,6354007,1607.5,VENDOR,WARRENS DISPLAY LTD,144281
Portsmouth City Council,PCC,Adult Social Care,Physical Support Older People (85+),Adult Services,Third Party Payments,Other establishments,02/03/2020,6350745,1055,VENDOR,B S CARE LTD,100114
Portsmouth City Council,PCC,Children's and Education Services,Other Children and Family Services,Children's Services and Education,Supplies and Services,Services,12/03/2020,6352710,505.91,VENDOR,ABSOLUTE TRANSLATIONS LTD,135789
Portsmouth City Council,PCC,Children's and Education Services,Other Children and Family Services,Children's Services and Education,Supplies and Services,Services,26/03/2020,6355100,605.29,VENDOR,ABSOLUTE TRANSLATIONS LTD,135789
Portsmouth City Council,PCC,Highways and Transport Services,Parking Services,Regeneration,Supplies and Services,"Printing, stationery and general office expenses",17/03/2020,6353322,1200,VENDOR,MCAARP HOLDINGS T/A INTEGRITY PRINT LTD,144547
Portsmouth City Council,PCC,Highways and Transport Services,Parking Services,Regeneration,Supplies and Services,"Printing, stationery and general office expenses",25/03/2020,6355021,461,VENDOR,MCAARP HOLDINGS T/A INTEGRITY PRINT LTD,144547
Portsmouth City Council,PCC,Cultural and Related Services,Recreation and Sport,"Culture, Leisure & Regulatory Services",Supplies and Services,"Printing, stationery and general office expenses",25/03/2020,6355021,315,VENDOR,MCAARP HOLDINGS T/A INTEGRITY PRINT LTD,144547
Portsmouth City Council,PCC,Highways and Transport Services,Traffic Management and Road Safety,Regeneration,Supplies and Services,Services,17/03/2020,6353284,2520,VENDOR,CHAMPION CONTRACT SERVICES LTD,146466
Portsmouth City Council,PCC,Children's and Education Services,Other Children and Family Services,Children's Services and Education,Employees,Indirect employee expenses,26/03/2020,6355189,60,VENDOR,RMC EMEA LIMITED,122070
Portsmouth City Council,PCC,Adult Social Care,Physical Support Older People (85+),Adult Services,Third Party Payments,Other establishments,02/03/2020,6350745,299.62,VENDOR,B S CARE LTD,100114
Portsmouth City Council,PCC,Housing Revenue Account,Supervision and Management,"Housing, Neighbourhood and Building Services",Employees,Indirect employee expenses,26/03/2020,6355189,60,VENDOR,RMC EMEA LIMITED,122070
Portsmouth City Council,PCC,Support Service / Transparency Costs Unallocated,Financial Services,Finance & Resources,Employees,Indirect employee expenses,26/03/2020,6355189,120,VENDOR,RMC EMEA LIMITED,122070
Portsmouth City Council,PCC,Support Service / Transparency Costs Unallocated,Personnel,Corporate Services,Employees,Indirect employee expenses,26/03/2020,6355189,60,VENDOR,RMC EMEA LIMITED,122070
Portsmouth City Council,PCC,Adult Social Care,Physical Support Older People (85+),Adult Services,Third Party Payments,Other establishments,02/03/2020,6350745,177.24,VENDOR,B S CARE LTD,100114
Portsmouth City Council,PCC,Cultural and Related Services,Allocation of Management & Admin,Corporate Services,Employees,Indirect employee expenses,26/03/2020,6355189,144,VENDOR,RMC EMEA LIMITED,122070
Portsmouth City Council,PCC,Adult Social Care,Physical Support Older People (85+),Adult Services,Third Party Payments,Other establishments,02/03/2020,6350745,413.56,VENDOR,B S CARE LTD,100114
Portsmouth City Council,PCC,Cultural and Related Services,Culture and Heritage,"Culture, Leisure & Regulatory Services",Employees,Indirect employee expenses,26/03/2020,6355189,60,VENDOR,RMC EMEA LIMITED,122070
Portsmouth City Council,PCC,Support Service / Transparency Costs Unallocated,Personnel,Corporate Services,Employees,Indirect employee expenses,26/03/2020,6355189,120,VENDOR,RMC EMEA LIMITED,122070
Portsmouth City Council,PCC,Other,Suspense and Capital Schemes,Corporate Services,Employees,Indirect employee expenses,26/03/2020,6355189,347.52,VENDOR,RMC EMEA LIMITED,122070
Portsmouth City Council,PCC,Support Service / Transparency Costs Unallocated,Personnel,Corporate Services,Employees,Indirect employee expenses,26/03/2020,6355189,133.74,VENDOR,RMC EMEA LIMITED,122070
Portsmouth City Council,PCC,Support Service / Transparency Costs Unallocated,Personnel,Corporate Services,Employees,Indirect employee expenses,26/03/2020,6355189,103.77,VENDOR,RMC EMEA LIMITED,122070
Portsmouth City Council,PCC,Highways and Transport Services,"Airports, Harbours and Toll Facilities",Portsmouth International Port,Premises-Related Expenditure,Cleaning and domestic supplies,26/03/2020,6355173,17336.33,VENDOR,NVIRO LTD,124507
Portsmouth City Council,PCC,Highways and Transport Services,"Airports, Harbours and Toll Facilities",Portsmouth International Port,Premises-Related Expenditure,Cleaning and domestic supplies,26/03/2020,6355173,2167,VENDOR,NVIRO LTD,124507
Portsmouth City Council,PCC,Housing Services,Homelessness,"Housing, Neighbourhood and Building Services",Premises-Related Expenditure,Rents,25/03/2020,6354997,2490,SOLETRADER,Classified as 'personal data' (under the Data Protection Act 2018),135979
Portsmouth City Council,PCC,Adult Social Care,Physical Support Older People (85+),Adult Services,Third Party Payments,Other establishments,02/03/2020,6350745,472.64,VENDOR,B S CARE LTD,100114
Portsmouth City Council,PCC,Adult Social Care,Physical Support Older People (85+),Adult Services,Third Party Payments,Other establishments,02/03/2020,6350745,472.64,VENDOR,B S CARE LTD,100114
Portsmouth City Council,PCC,Adult Social Care,Physical Support Older People (85+),Adult Services,Third Party Payments,Other establishments,02/03/2020,6350745,911.52,VENDOR,B S CARE LTD,100114
Portsmouth City Council,PCC,Adult Social Care,Physical Support Older People (85+),Adult Services,Third Party Payments,Other establishments,02/03/2020,6350745,911.52,VENDOR,B S CARE LTD,100114
Portsmouth City Council,PCC,Adult Social Care,Physical Support Older People (85+),Adult Services,Third Party Payments,Other establishments,02/03/2020,6350745,759.6,VENDOR,B S CARE LTD,100114
Portsmouth City Council,PCC,Adult Social Care,Learning Disability Support  Adults (18 - 64),Adult Services,Third Party Payments,Other establishments,02/03/2020,6350745,67.52,VENDOR,B S CARE LTD,100114
Portsmouth City Council,PCC,Adult Social Care,Social Support - Support for Carer,Adult Services,Third Party Payments,Other establishments,02/03/2020,6350745,319.44,VENDOR,B S CARE LTD,100114
Portsmouth City Council,PCC,Adult Social Care,Social Support - Support for Carer,Adult Services,Third Party Payments,Other establishments,02/03/2020,6350745,116.16,VENDOR,B S CARE LTD,100114
Portsmouth City Council,PCC,Adult Social Care,Social Support - Support for Carer,Adult Services,Third Party Payments,Other establishments,02/03/2020,6350745,261.36,VENDOR,B S CARE LTD,100114
Portsmouth City Council,PCC,Adult Social Care,Social Support - Support for Carer,Adult Services,Third Party Payments,Other establishments,02/03/2020,6350745,348.48,VENDOR,B S CARE LTD,100114
Portsmouth City Council,PCC,Adult Social Care,Mental Health Support Older People (65 - 74),Adult Services,Third Party Payments,Other establishments,27/03/2020,6355236,607.68,VENDOR,B S CARE LTD,100114
Portsmouth City Council,PCC,Adult Social Care,Social Care Activities,Adult Services,Third Party Payments,Other establishments,27/03/2020,6355236,949.5,VENDOR,B S CARE LTD,100114
Portsmouth City Council,PCC,Adult Social Care,Social Care Activities,Adult Services,Third Party Payments,Other establishments,27/03/2020,6355236,949.5,VENDOR,B S CARE LTD,100114
Portsmouth City Council,PCC,Adult Social Care,Social Care Activities,Adult Services,Third Party Payments,Other establishments,27/03/2020,6355236,1063.44,VENDOR,B S CARE LTD,100114
Portsmouth City Council,PCC,Adult Social Care,Social Care Activities,Adult Services,Third Party Payments,Other establishments,27/03/2020,6355236,116.16,VENDOR,B S CARE LTD,100114
Portsmouth City Council,PCC,Adult Social Care,Social Care Activities,Adult Services,Third Party Payments,Other establishments,27/03/2020,6355236,696.3,VENDOR,B S CARE LTD,100114
Portsmouth City Council,PCC,Adult Social Care,Social Care Activities,Adult Services,Third Party Payments,Other establishments,27/03/2020,6355236,116.16,VENDOR,B S CARE LTD,100114
Portsmouth City Council,PCC,Adult Social Care,Social Care Activities,Adult Services,Third Party Payments,Other establishments,27/03/2020,6355236,-147.7,VENDOR,B S CARE LTD,100114
Portsmouth City Council,PCC,Adult Social Care,Social Care Activities,Adult Services,Third Party Payments,Other establishments,27/03/2020,6355236,-253.2,VENDOR,B S CARE LTD,100114
Portsmouth City Council,PCC,Adult Social Care,Social Care Activities,Adult Services,Third Party Payments,Other establishments,27/03/2020,6355236,1063.44,VENDOR,B S CARE LTD,100114
Portsmouth City Council,PCC,Adult Social Care,Social Care Activities,Adult Services,Third Party Payments,Other establishments,27/03/2020,6355236,1063.44,VENDOR,B S CARE LTD,100114
Portsmouth City Council,PCC,Adult Social Care,Physical Support Adults (18 - 64),Adult Services,Third Party Payments,Other establishments,27/03/2020,6355236,232.1,VENDOR,B S CARE LTD,100114
Portsmouth City Council,PCC,Adult Social Care,Physical Support Adults (18 - 64),Adult Services,Third Party Payments,Other establishments,27/03/2020,6355236,236.32,VENDOR,B S CARE LTD,100114
Portsmouth City Council,PCC,Adult Social Care,Physical Support Adults (18 - 64),Adult Services,Third Party Payments,Other establishments,27/03/2020,6355236,67.52,VENDOR,B S CARE LTD,100114
Portsmouth City Council,PCC,Adult Social Care,Physical Support Adults (18 - 64),Adult Services,Third Party Payments,Other establishments,27/03/2020,6355236,168.8,VENDOR,B S CARE LTD,100114
Portsmouth City Council,PCC,Adult Social Care,Physical Support Adults (18 - 64),Adult Services,Third Party Payments,Other establishments,27/03/2020,6355236,506.4,VENDOR,B S CARE LTD,100114
Portsmouth City Council,PCC,Adult Social Care,Physical Support Adults (18 - 64),Adult Services,Third Party Payments,Other establishments,27/03/2020,6355236,844,VENDOR,B S CARE LTD,100114
Portsmouth City Council,PCC,Adult Social Care,Physical Support Adults (18 - 64),Adult Services,Third Party Payments,Other establishments,27/03/2020,6355236,844,VENDOR,B S CARE LTD,100114
Portsmouth City Council,PCC,Adult Social Care,Physical Support Adults (18 - 64),Adult Services,Third Party Payments,Other establishments,27/03/2020,6355236,270.08,VENDOR,B S CARE LTD,100114
Portsmouth City Council,PCC,Adult Social Care,Physical Support Adults (18 - 64),Adult Services,Third Party Payments,Other establishments,27/03/2020,6355236,354.48,VENDOR,B S CARE LTD,100114
Portsmouth City Council,PCC,Adult Social Care,Physical Support Adults (18 - 64),Adult Services,Third Party Payments,Other establishments,27/03/2020,6355236,751.16,VENDOR,B S CARE LTD,100114
Portsmouth City Council,PCC,Adult Social Care,Physical Support Adults (18 - 64),Adult Services,Third Party Payments,Other establishments,27/03/2020,6355236,751.16,VENDOR,B S CARE LTD,100114
Portsmouth City Council,PCC,Adult Social Care,Physical Support Adults (18 - 64),Adult Services,Third Party Payments,Other establishments,27/03/2020,6355236,590.8,VENDOR,B S CARE LTD,100114
Portsmouth City Council,PCC,Adult Social Care,Physical Support Adults (18 - 64),Adult Services,Third Party Payments,Other establishments,27/03/2020,6355236,219.44,VENDOR,B S CARE LTD,100114
Portsmouth City Council,PCC,Adult Social Care,Physical Support Adults (18 - 64),Adult Services,Third Party Payments,Other establishments,27/03/2020,6355236,189.9,VENDOR,B S CARE LTD,100114
Portsmouth City Council,PCC,Adult Social Care,Physical Support Older People (85+),Adult Services,Third Party Payments,Other establishments,27/03/2020,6355236,1021.24,VENDOR,B S CARE LTD,100114
Portsmouth City Council,PCC,Adult Social Care,Physical Support Older People (85+),Adult Services,Third Party Payments,Other establishments,27/03/2020,6355236,1021.24,VENDOR,B S CARE LTD,100114
Portsmouth City Council,PCC,Adult Social Care,Physical Support Older People (85+),Adult Services,Third Party Payments,Other establishments,27/03/2020,6355236,236.32,VENDOR,B S CARE LTD,100114
Portsmouth City Council,PCC,Adult Social Care,Physical Support Older People (85+),Adult Services,Third Party Payments,Other establishments,27/03/2020,6355236,590.8,VENDOR,B S CARE LTD,100114
Portsmouth City Council,PCC,Adult Social Care,Physical Support Older People (85+),Adult Services,Third Party Payments,Other establishments,27/03/2020,6355236,236.32,VENDOR,B S CARE LTD,100114
Portsmouth City Council,PCC,Adult Social Care,Physical Support Older People (85+),Adult Services,Third Party Payments,Other establishments,27/03/2020,6355236,827.12,VENDOR,B S CARE LTD,100114
Portsmouth City Council,PCC,Adult Social Care,Physical Support Older People (85+),Adult Services,Third Party Payments,Other establishments,27/03/2020,6355236,236.32,VENDOR,B S CARE LTD,100114
Portsmouth City Council,PCC,Adult Social Care,Physical Support Older People (85+),Adult Services,Third Party Payments,Other establishments,27/03/2020,6355236,1181.6,VENDOR,B S CARE LTD,100114
Portsmouth City Council,PCC,Adult Social Care,Physical Support Older People (85+),Adult Services,Third Party Payments,Other establishments,27/03/2020,6355236,1181.6,VENDOR,B S CARE LTD,100114
Portsmouth City Council,PCC,Adult Social Care,Physical Support Older People (85+),Adult Services,Third Party Payments,Other establishments,27/03/2020,6355236,253.2,VENDOR,B S CARE LTD,100114
Portsmouth City Council,PCC,Adult Social Care,Physical Support Older People (85+),Adult Services,Third Party Payments,Other establishments,27/03/2020,6355236,455.76,VENDOR,B S CARE LTD,100114
Portsmouth City Council,PCC,Adult Social Care,Physical Support Older People (85+),Adult Services,Third Party Payments,Other establishments,27/03/2020,6355236,135.04,VENDOR,B S CARE LTD,100114
Portsmouth City Council,PCC,Adult Social Care,Physical Support Older People (85+),Adult Services,Third Party Payments,Other establishments,27/03/2020,6355236,987.48,VENDOR,B S CARE LTD,100114
Portsmouth City Council,PCC,Adult Social Care,Physical Support Older People (85+),Adult Services,Third Party Payments,Other establishments,27/03/2020,6355236,236.32,VENDOR,B S CARE LTD,100114
Portsmouth City Council,PCC,Adult Social Care,Physical Support Older People (85+),Adult Services,Third Party Payments,Other establishments,27/03/2020,6355236,708.96,VENDOR,B S CARE LTD,100114
Portsmouth City Council,PCC,Adult Social Care,Physical Support Older People (85+),Adult Services,Third Party Payments,Other establishments,27/03/2020,6355236,1139.4,VENDOR,B S CARE LTD,100114
Portsmouth City Council,PCC,Adult Social Care,Physical Support Older People (85+),Adult Services,Third Party Payments,Other establishments,27/03/2020,6355236,270.08,VENDOR,B S CARE LTD,100114
Portsmouth City Council,PCC,Adult Social Care,Physical Support Older People (85+),Adult Services,Third Party Payments,Other establishments,27/03/2020,6355236,202.56,VENDOR,B S CARE LTD,100114
Portsmouth City Council,PCC,Adult Social Care,Physical Support Older People (85+),Adult Services,Third Party Payments,Other establishments,27/03/2020,6355236,455.76,VENDOR,B S CARE LTD,100114
Portsmouth City Council,PCC,Adult Social Care,Physical Support Older People (85+),Adult Services,Third Party Payments,Other establishments,27/03/2020,6355236,455.76,VENDOR,B S CARE LTD,100114
Portsmouth City Council,PCC,Adult Social Care,Physical Support Older People (85+),Adult Services,Third Party Payments,Other establishments,27/03/2020,6355236,101.28,VENDOR,B S CARE LTD,100114
Portsmouth City Council,PCC,Adult Social Care,Physical Support Older People (85+),Adult Services,Third Party Payments,Other establishments,27/03/2020,6355236,236.32,VENDOR,B S CARE LTD,100114
Portsmouth City Council,PCC,Adult Social Care,Physical Support Older People (85+),Adult Services,Third Party Payments,Other establishments,27/03/2020,6355236,286.96,VENDOR,B S CARE LTD,100114
Portsmouth City Council,PCC,Adult Social Care,Physical Support Older People (85+),Adult Services,Third Party Payments,Other establishments,27/03/2020,6355236,725.84,VENDOR,B S CARE LTD,100114
Portsmouth City Council,PCC,Adult Social Care,Physical Support Older People (85+),Adult Services,Third Party Payments,Other establishments,27/03/2020,6355236,725.84,VENDOR,B S CARE LTD,100114
Portsmouth City Council,PCC,Adult Social Care,Physical Support Older People (85+),Adult Services,Third Party Payments,Other establishments,27/03/2020,6355236,236.32,VENDOR,B S CARE LTD,100114
Portsmouth City Council,PCC,Adult Social Care,Physical Support Older People (85+),Adult Services,Third Party Payments,Other establishments,27/03/2020,6355236,84.4,VENDOR,B S CARE LTD,100114
Portsmouth City Council,PCC,Adult Social Care,Physical Support Older People (85+),Adult Services,Third Party Payments,Other establishments,27/03/2020,6355236,367.14,VENDOR,B S CARE LTD,100114
Portsmouth City Council,PCC,Adult Social Care,Physical Support Older People (85+),Adult Services,Third Party Payments,Other establishments,27/03/2020,6355236,101.28,VENDOR,B S CARE LTD,100114
Portsmouth City Council,PCC,Adult Social Care,Physical Support Older People (85+),Adult Services,Third Party Payments,Other establishments,27/03/2020,6355236,945.28,VENDOR,B S CARE LTD,100114
Portsmouth City Council,PCC,Adult Social Care,Physical Support Older People (85+),Adult Services,Third Party Payments,Other establishments,27/03/2020,6355236,945.28,VENDOR,B S CARE LTD,100114
Portsmouth City Council,PCC,Adult Social Care,Physical Support Older People (85+),Adult Services,Third Party Payments,Other establishments,27/03/2020,6355236,-12.66,VENDOR,B S CARE LTD,100114
Portsmouth City Council,PCC,Adult Social Care,Physical Support Older People (85+),Adult Services,Third Party Payments,Other establishments,27/03/2020,6355236,126.6,VENDOR,B S CARE LTD,100114
Portsmouth City Council,PCC,Adult Social Care,Physical Support Older People (85+),Adult Services,Third Party Payments,Other establishments,27/03/2020,6355236,413.56,VENDOR,B S CARE LTD,100114
Portsmouth City Council,PCC,Adult Social Care,Physical Support Older People (85+),Adult Services,Third Party Payments,Other establishments,27/03/2020,6355236,130.68,VENDOR,B S CARE LTD,100114
Portsmouth City Council,PCC,Adult Social Care,Physical Support Older People (85+),Adult Services,Third Party Payments,Other establishments,27/03/2020,6355236,-50.64,VENDOR,B S CARE LTD,100114
Portsmouth City Council,PCC,Adult Social Care,Physical Support Older People (85+),Adult Services,Third Party Payments,Other establishments,27/03/2020,6355236,810.24,VENDOR,B S CARE LTD,100114
Portsmouth City Council,PCC,Adult Social Care,Physical Support Older People (85+),Adult Services,Third Party Payments,Other establishments,27/03/2020,6355236,202.56,VENDOR,B S CARE LTD,100114
Portsmouth City Council,PCC,Adult Social Care,Physical Support Older People (85+),Adult Services,Third Party Payments,Other establishments,27/03/2020,6355236,236.32,VENDOR,B S CARE LTD,100114
Portsmouth City Council,PCC,Adult Social Care,Physical Support Older People (85+),Adult Services,Third Party Payments,Other establishments,27/03/2020,6355236,1063.44,VENDOR,B S CARE LTD,100114
Portsmouth City Council,PCC,Adult Social Care,Physical Support Older People (85+),Adult Services,Third Party Payments,Other establishments,27/03/2020,6355236,194.12,VENDOR,B S CARE LTD,100114
Portsmouth City Council,PCC,Adult Social Care,Physical Support Older People (85+),Adult Services,Third Party Payments,Other establishments,27/03/2020,6355236,67.52,VENDOR,B S CARE LTD,100114
Portsmouth City Council,PCC,Adult Social Care,Physical Support Older People (85+),Adult Services,Third Party Payments,Other establishments,27/03/2020,6355236,708.96,VENDOR,B S CARE LTD,100114
Portsmouth City Council,PCC,Adult Social Care,Physical Support Older People (85+),Adult Services,Third Party Payments,Other establishments,27/03/2020,6355236,472.64,VENDOR,B S CARE LTD,100114
Portsmouth City Council,PCC,Adult Social Care,Physical Support Older People (85+),Adult Services,Third Party Payments,Other establishments,27/03/2020,6355236,67.52,VENDOR,B S CARE LTD,100114
Portsmouth City Council,PCC,Adult Social Care,Physical Support Older People (85+),Adult Services,Third Party Payments,Other establishments,27/03/2020,6355236,1063.44,VENDOR,B S CARE LTD,100114
Portsmouth City Council,PCC,Adult Social Care,Physical Support Older People (85+),Adult Services,Third Party Payments,Other establishments,27/03/2020,6355236,1198.48,VENDOR,B S CARE LTD,100114
Portsmouth City Council,PCC,Adult Social Care,Physical Support Older People (85+),Adult Services,Third Party Payments,Other establishments,27/03/2020,6355236,472.64,VENDOR,B S CARE LTD,100114
Portsmouth City Council,PCC,Adult Social Care,Physical Support Older People (85+),Adult Services,Third Party Payments,Other establishments,27/03/2020,6355236,708.96,VENDOR,B S CARE LTD,100114
Portsmouth City Council,PCC,Adult Social Care,Physical Support Older People (85+),Adult Services,Third Party Payments,Other establishments,27/03/2020,6355236,1363.06,VENDOR,B S CARE LTD,100114
Portsmouth City Council,PCC,Adult Social Care,Physical Support Older People (85+),Adult Services,Third Party Payments,Other establishments,27/03/2020,6355236,472.64,VENDOR,B S CARE LTD,100114
Portsmouth City Council,PCC,Adult Social Care,Physical Support Older People (85+),Adult Services,Third Party Payments,Other establishments,27/03/2020,6355236,101.28,VENDOR,B S CARE LTD,100114
Portsmouth City Council,PCC,Adult Social Care,Physical Support Older People (85+),Adult Services,Third Party Payments,Other establishments,27/03/2020,6355236,616.12,VENDOR,B S CARE LTD,100114
Portsmouth City Council,PCC,Adult Social Care,Physical Support Older People (85+),Adult Services,Third Party Payments,Other establishments,27/03/2020,6355236,236.32,VENDOR,B S CARE LTD,100114
Portsmouth City Council,PCC,Adult Social Care,Physical Support Older People (85+),Adult Services,Third Party Payments,Other establishments,27/03/2020,6355236,708.96,VENDOR,B S CARE LTD,100114
Portsmouth City Council,PCC,Adult Social Care,Physical Support Older People (85+),Adult Services,Third Party Payments,Other establishments,27/03/2020,6355236,168.8,VENDOR,B S CARE LTD,100114
Portsmouth City Council,PCC,Adult Social Care,Physical Support Older People (85+),Adult Services,Third Party Payments,Other establishments,27/03/2020,6355236,236.32,VENDOR,B S CARE LTD,100114
Portsmouth City Council,PCC,Adult Social Care,Physical Support Older People (85+),Adult Services,Third Party Payments,Other establishments,27/03/2020,6355236,236.32,VENDOR,B S CARE LTD,100114
Portsmouth City Council,PCC,Adult Social Care,Physical Support Older People (85+),Adult Services,Third Party Payments,Other establishments,27/03/2020,6355236,113.94,VENDOR,B S CARE LTD,100114
Portsmouth City Council,PCC,Adult Social Care,Physical Support Older People (85+),Adult Services,Third Party Payments,Other establishments,27/03/2020,6355236,67.52,VENDOR,B S CARE LTD,100114
Portsmouth City Council,PCC,Adult Social Care,Physical Support Older People (85+),Adult Services,Third Party Payments,Other establishments,27/03/2020,6355236,337.6,VENDOR,B S CARE LTD,100114
Portsmouth City Council,PCC,Adult Social Care,Physical Support Older People (85+),Adult Services,Third Party Payments,Other establishments,27/03/2020,6355236,33.76,VENDOR,B S CARE LTD,100114
Portsmouth City Council,PCC,Adult Social Care,Physical Support Older People (85+),Adult Services,Third Party Payments,Other establishments,27/03/2020,6355236,540.16,VENDOR,B S CARE LTD,100114
Portsmouth City Council,PCC,Adult Social Care,Physical Support Older People (85+),Adult Services,Third Party Payments,Other establishments,27/03/2020,6355236,1012.8,VENDOR,B S CARE LTD,100114
Portsmouth City Council,PCC,Adult Social Care,Physical Support Older People (85+),Adult Services,Third Party Payments,Other establishments,27/03/2020,6355236,708.96,VENDOR,B S CARE LTD,100114
Portsmouth City Council,PCC,Adult Social Care,Physical Support Older People (85+),Adult Services,Third Party Payments,Other establishments,27/03/2020,6355236,472.64,VENDOR,B S CARE LTD,100114
Portsmouth City Council,PCC,Adult Social Care,Physical Support Older People (85+),Adult Services,Third Party Payments,Other establishments,27/03/2020,6355236,455.76,VENDOR,B S CARE LTD,100114
Portsmouth City Council,PCC,Adult Social Care,Physical Support Older People (85+),Adult Services,Third Party Payments,Other establishments,27/03/2020,6355236,236.32,VENDOR,B S CARE LTD,100114
Portsmouth City Council,PCC,Adult Social Care,Physical Support Older People (85+),Adult Services,Third Party Payments,Other establishments,27/03/2020,6355236,945.28,VENDOR,B S CARE LTD,100114
Portsmouth City Council,PCC,Environmental and Regulatory Services,Flood Defence and Land Drainage,Regeneration,Third Party Payments,Private contractors,06/03/2020,6351808,2941.08,VENDOR,UNIVERSITY OF GLASGOW,116291
Portsmouth City Council,PCC,Other,Suspense and Capital Schemes,Capital - Leader,Capital Charges,Capital Expenditure (WIP),04/03/2020,6351055,11098.6,VENDOR,ECD ARCHITECTS LTD,136285
Portsmouth City Council,PCC,Other,Suspense and Capital Schemes,Capital - Leader,Capital Charges,Capital Expenditure (WIP),04/03/2020,6351055,9000,VENDOR,ECD ARCHITECTS LTD,136285
Portsmouth City Council,PCC,Highways and Transport Services,"Airports, Harbours and Toll Facilities",Portsmouth International Port,Premises-Related Expenditure,Cleaning and domestic supplies,26/03/2020,6355173,17138.33,VENDOR,NVIRO LTD,124507
Portsmouth City Council,PCC,Highways and Transport Services,"Airports, Harbours and Toll Facilities",Portsmouth International Port,Premises-Related Expenditure,Cleaning and domestic supplies,26/03/2020,6355173,2167,VENDOR,NVIRO LTD,124507
Portsmouth City Council,PCC,Other,Suspense and Capital Schemes,Capital - Leader,Capital Charges,Capital Expenditure (WIP),04/03/2020,6351055,4098.6,VENDOR,ECD ARCHITECTS LTD,136285
Portsmouth City Council,PCC,Other,Suspense and Capital Schemes,Capital - Leader,Capital Charges,Capital Expenditure (WIP),04/03/2020,6351055,3901.4,VENDOR,ECD ARCHITECTS LTD,136285
Portsmouth City Council,PCC,Highways and Transport Services,"Transport Planning, Policy and Strategy",Regeneration,Supplies and Services,Communications and computing,31/03/2020,6355617,7193.58,VENDOR,KAPPA LAMBDA SQUARED,131634
Portsmouth City Council,PCC,Other,Suspense and Capital Schemes,Capital - Leader,Capital Charges,Capital Expenditure (WIP),16/03/2020,6353180,4000,VENDOR,ECD ARCHITECTS LTD,136285
Portsmouth City Council,PCC,Housing Services,Homelessness,"Housing, Neighbourhood and Building Services",Premises-Related Expenditure,Rents,25/03/2020,6354983,2220,SOLETRADER,Classified as 'personal data' (under the Data Protection Act 2018),146056
Portsmouth City Council,PCC,Environmental and Regulatory Services,Regulatory Services,"Culture, Leisure & Regulatory Services",Third Party Payments,Private contractors,06/03/2020,6351660,208,VENDOR,ADAMS MOREY LTD,100446
Portsmouth City Council,PCC,Environmental and Regulatory Services,Regulatory Services,"Culture, Leisure & Regulatory Services",Third Party Payments,Private contractors,06/03/2020,6351660,1248,VENDOR,ADAMS MOREY LTD,100446
Portsmouth City Council,PCC,Environmental and Regulatory Services,Regulatory Services,"Culture, Leisure & Regulatory Services",Third Party Payments,Private contractors,13/03/2020,6352956,416,VENDOR,ADAMS MOREY LTD,100446
Portsmouth City Council,PCC,Environmental and Regulatory Services,Regulatory Services,"Culture, Leisure & Regulatory Services",Third Party Payments,Private contractors,13/03/2020,6352956,1404,VENDOR,ADAMS MOREY LTD,100446
Portsmouth City Council,PCC,Environmental and Regulatory Services,Regulatory Services,"Culture, Leisure & Regulatory Services",Third Party Payments,Private contractors,23/03/2020,6354602,-156,VENDOR,ADAMS MOREY LTD,100446
Portsmouth City Council,PCC,Environmental and Regulatory Services,Regulatory Services,"Culture, Leisure & Regulatory Services",Third Party Payments,Private contractors,23/03/2020,6354602,416,VENDOR,ADAMS MOREY LTD,100446
Portsmouth City Council,PCC,Environmental and Regulatory Services,Regulatory Services,"Culture, Leisure & Regulatory Services",Third Party Payments,Private contractors,23/03/2020,6354602,156,VENDOR,ADAMS MOREY LTD,100446
Portsmouth City Council,PCC,Environmental and Regulatory Services,Regulatory Services,"Culture, Leisure & Regulatory Services",Third Party Payments,Private contractors,23/03/2020,6354602,1612,VENDOR,ADAMS MOREY LTD,100446
Portsmouth City Council,PCC,Environmental and Regulatory Services,Regulatory Services,"Culture, Leisure & Regulatory Services",Third Party Payments,Private contractors,27/03/2020,6355224,364,VENDOR,ADAMS MOREY LTD,100446
Portsmouth City Council,PCC,Environmental and Regulatory Services,Regulatory Services,"Culture, Leisure & Regulatory Services",Third Party Payments,Private contractors,27/03/2020,6355224,1196,VENDOR,ADAMS MOREY LTD,100446
Portsmouth City Council,PCC,Adult Social Care,Physical Support Older People (85+),Adult Services,Third Party Payments,Other establishments,27/03/2020,6355236,708.96,VENDOR,B S CARE LTD,100114
Portsmouth City Council,PCC,Housing Revenue Account,Repairs and Maintenance,"Housing, Neighbourhood and Building Services",Premises-Related Expenditure,"Repairs, alterations and maintenance of buildings",03/03/2020,6350949,559.58,VENDOR,ELMHURST ENERGY SYSTEMS LTD,127591
Portsmouth City Council,PCC,Housing Revenue Account,Repairs and Maintenance,"Housing, Neighbourhood and Building Services",Premises-Related Expenditure,"Repairs, alterations and maintenance of buildings",03/03/2020,6350949,143.26,VENDOR,ELMHURST ENERGY SYSTEMS LTD,127591
Portsmouth City Council,PCC,Adult Social Care,Physical Support Older People (85+),Adult Services,Third Party Payments,Other establishments,27/03/2020,6355236,827.12,VENDOR,B S CARE LTD,100114
Portsmouth City Council,PCC,Highways and Transport Services,"Airports, Harbours and Toll Facilities",Portsmouth International Port,Third Party Payments,Private contractors,05/03/2020,6351639,1521.75,VENDOR,SOUTHERN MARITIME SERVICES LIMITED,120765
Portsmouth City Council,PCC,Children's and Education Services,Other Children and Family Services,Children's Services and Education,Employees,Indirect employee expenses,27/03/2020,6355237,220,VENDOR,BARNARDO SERVICES LTD,107155
Portsmouth City Council,PCC,Housing Services,Homelessness,"Housing, Neighbourhood and Building Services",Premises-Related Expenditure,Rents,25/03/2020,6355045,1920,SOLETRADER,Classified as 'personal data' (under the Data Protection Act 2018),139696
Portsmouth City Council,PCC,Housing Revenue Account,HRA services share of CDC,"Housing, Neighbourhood and Building Services",Premises-Related Expenditure,"Repairs, alterations and maintenance of buildings",06/03/2020,6351753,2000,VENDOR,MARTIN RALPH GROUP,127283
Portsmouth City Council,PCC,Housing Revenue Account,HRA services share of CDC,"Housing, Neighbourhood and Building Services",Supplies and Services,Services,24/03/2020,6354858,485,VENDOR,MARTIN RALPH GROUP,127283
Portsmouth City Council,PCC,Children's and Education Services,Children Looked After,Children's Services and Education,Supplies and Services,Grants and subscriptions,27/03/2020,6355237,1276.19,VENDOR,BARNARDO SERVICES LTD,107155
Portsmouth City Council,PCC,Children's and Education Services,Children Looked After,Children's Services and Education,Supplies and Services,Grants and subscriptions,27/03/2020,6355237,1276.19,VENDOR,BARNARDO SERVICES LTD,107155
Portsmouth City Council,PCC,Children's and Education Services,Children Looked After,Children's Services and Education,Third Party Payments,Other establishments,27/03/2020,6355237,-1348.78,VENDOR,BARNARDO SERVICES LTD,107155
Portsmouth City Council,PCC,Children's and Education Services,Children Looked After,Children's Services and Education,Third Party Payments,Other establishments,27/03/2020,6355237,-224.8,VENDOR,BARNARDO SERVICES LTD,107155
Portsmouth City Council,PCC,Cultural and Related Services,Recreation and Sport,"Culture, Leisure & Regulatory Services",Supplies and Services,"Equipment, furniture and materials",18/03/2020,6353381,189,VENDOR,CMW EQUIPMENT HOLDINGS LTD,134444
Portsmouth City Council,PCC,Cultural and Related Services,Recreation and Sport,"Culture, Leisure & Regulatory Services",Supplies and Services,"Equipment, furniture and materials",18/03/2020,6353381,41.7,VENDOR,CMW EQUIPMENT HOLDINGS LTD,134444
Portsmouth City Council,PCC,Cultural and Related Services,Recreation and Sport,"Culture, Leisure & Regulatory Services",Supplies and Services,"Equipment, furniture and materials",18/03/2020,6353381,73.9,VENDOR,CMW EQUIPMENT HOLDINGS LTD,134444
Portsmouth City Council,PCC,Cultural and Related Services,Recreation and Sport,"Culture, Leisure & Regulatory Services",Supplies and Services,"Equipment, furniture and materials",18/03/2020,6353381,54.5,VENDOR,CMW EQUIPMENT HOLDINGS LTD,134444
Portsmouth City Council,PCC,Cultural and Related Services,Recreation and Sport,"Culture, Leisure & Regulatory Services",Supplies and Services,"Equipment, furniture and materials",18/03/2020,6353381,125.1,VENDOR,CMW EQUIPMENT HOLDINGS LTD,134444
Portsmouth City Council,PCC,Cultural and Related Services,Recreation and Sport,"Culture, Leisure & Regulatory Services",Supplies and Services,"Equipment, furniture and materials",18/03/2020,6353381,279,VENDOR,CMW EQUIPMENT HOLDINGS LTD,134444
Portsmouth City Council,PCC,Cultural and Related Services,Recreation and Sport,"Culture, Leisure & Regulatory Services",Supplies and Services,"Equipment, furniture and materials",18/03/2020,6353381,45.5,VENDOR,CMW EQUIPMENT HOLDINGS LTD,134444
Portsmouth City Council,PCC,Cultural and Related Services,Recreation and Sport,"Culture, Leisure & Regulatory Services",Supplies and Services,"Printing, stationery and general office expenses",18/03/2020,6353381,14.95,VENDOR,CMW EQUIPMENT HOLDINGS LTD,134444
Portsmouth City Council,PCC,Highways and Transport Services,"Transport Planning, Policy and Strategy",Regeneration,Third Party Payments,Private contractors,30/03/2020,6355546,25882.5,VENDOR,VESPASIAN SECURITY LTD,126345
Portsmouth City Council,PCC,Highways and Transport Services,"Transport Planning, Policy and Strategy",Regeneration,Third Party Payments,Private contractors,30/03/2020,6355546,112617,VENDOR,VESPASIAN SECURITY LTD,126345
Portsmouth City Council,PCC,Support Service / Transparency Costs Unallocated,AMS,"Housing, Neighbourhood and Building Services",Third Party Payments,Private contractors,06/03/2020,6351812,620.78,VENDOR,VESPASIAN SECURITY LTD,126345
Portsmouth City Council,PCC,Cultural and Related Services,Tourism,"Culture, Leisure & Regulatory Services",Supplies and Services,"Printing, stationery and general office expenses",06/03/2020,6351731,15708,VENDOR,HOLBROOKS PRINTERS LTD,100893
Portsmouth City Council,PCC,Cultural and Related Services,Allocation of Management & Admin,Corporate Services,Supplies and Services,"Printing, stationery and general office expenses",17/03/2020,6353308,2671,VENDOR,HOLBROOKS PRINTERS LTD,100893
Portsmouth City Council,PCC,Central Services,Coroners' Court Services,"Culture, Leisure & Regulatory Services",Supplies and Services,Services,31/03/2020,6355651,595.9,SOLETRADER,Classified as 'personal data' (under the Data Protection Act 2018),140278
Portsmouth City Council,PCC,Adult Social Care,Physical Support Older People (85+),Adult Services,Third Party Payments,Other establishments,27/03/2020,6355236,962.16,VENDOR,B S CARE LTD,100114
Portsmouth City Council,PCC,Other,Suspense and Capital Schemes,Capital - Culture & City Development,Capital Charges,Capital Expenditure (WIP),04/03/2020,6351504,4385,COMPANY,REDS BUILDERS LTD,108228
Portsmouth City Council,PCC,Children's and Education Services,Other Education and Community Budget,Regeneration,Third Party Payments,Private contractors,31/03/2020,6355632,600,VENDOR,MONTERPOINT TECHNOLOGIES LTD,110204
Portsmouth City Council,PCC,Support Service / Transparency Costs Unallocated,AMS,"Housing, Neighbourhood and Building Services",Third Party Payments,Private contractors,13/03/2020,6353115,151.67,VENDOR,VESPASIAN SECURITY LTD,126345
Portsmouth City Council,PCC,Support Service / Transparency Costs Unallocated,AMS,"Housing, Neighbourhood and Building Services",Third Party Payments,Private contractors,13/03/2020,6353115,671.38,VENDOR,VESPASIAN SECURITY LTD,126345
Portsmouth City Council,PCC,Housing Revenue Account,Special Services,"Housing, Neighbourhood and Building Services",Employees,Direct employee expenses,10/03/2020,6352127,3956.56,VENDOR,THE PORTSMOUTH SITTING SERVICE AND COMMUNITY CARE SERVICES LTD T/A ASSURED CARE,100201
Portsmouth City Council,PCC,Adult Social Care,Physical Support Older People (85+),Adult Services,Third Party Payments,Other establishments,27/03/2020,6355236,194.12,VENDOR,B S CARE LTD,100114
Portsmouth City Council,PCC,Adult Social Care,Physical Support Older People (85+),Adult Services,Third Party Payments,Other establishments,27/03/2020,6355236,561.26,VENDOR,B S CARE LTD,100114
Portsmouth City Council,PCC,Adult Social Care,Physical Support Older People (85+),Adult Services,Third Party Payments,Other establishments,27/03/2020,6355236,472.64,VENDOR,B S CARE LTD,100114
Portsmouth City Council,PCC,Adult Social Care,Physical Support Older People (85+),Adult Services,Third Party Payments,Other establishments,27/03/2020,6355236,472.64,VENDOR,B S CARE LTD,100114
Portsmouth City Council,PCC,Adult Social Care,Physical Support Older People (85+),Adult Services,Third Party Payments,Other establishments,27/03/2020,6355236,472.64,VENDOR,B S CARE LTD,100114
Portsmouth City Council,PCC,Adult Social Care,Physical Support Older People (85+),Adult Services,Third Party Payments,Other establishments,27/03/2020,6355236,1274.44,VENDOR,B S CARE LTD,100114
Portsmouth City Council,PCC,Adult Social Care,Physical Support Older People (85+),Adult Services,Third Party Payments,Other establishments,27/03/2020,6355236,1274.44,VENDOR,B S CARE LTD,100114
Portsmouth City Council,PCC,Adult Social Care,Physical Support Older People (85+),Adult Services,Third Party Payments,Other establishments,27/03/2020,6355236,742.72,VENDOR,B S CARE LTD,100114
Portsmouth City Council,PCC,Adult Social Care,Learning Disability Support  Adults (18 - 64),Adult Services,Third Party Payments,Other establishments,27/03/2020,6355236,67.52,VENDOR,B S CARE LTD,100114
Portsmouth City Council,PCC,Adult Social Care,Social Support - Support for Carer,Adult Services,Third Party Payments,Other establishments,27/03/2020,6355236,319.44,VENDOR,B S CARE LTD,100114
Portsmouth City Council,PCC,Adult Social Care,Social Support - Support for Carer,Adult Services,Third Party Payments,Other establishments,27/03/2020,6355236,116.16,VENDOR,B S CARE LTD,100114
Portsmouth City Council,PCC,Adult Social Care,Social Support - Support for Carer,Adult Services,Third Party Payments,Other establishments,27/03/2020,6355236,65.34,VENDOR,B S CARE LTD,100114
Portsmouth City Council,PCC,Adult Social Care,Social Support - Support for Carer,Adult Services,Third Party Payments,Other establishments,27/03/2020,6355236,21.78,VENDOR,B S CARE LTD,100114
Portsmouth City Council,PCC,Adult Social Care,Social Support - Support for Carer,Adult Services,Third Party Payments,Other establishments,27/03/2020,6355236,348.48,VENDOR,B S CARE LTD,100114
Portsmouth City Council,PCC,Adult Social Care,Social Care Activities,Adult Services,Third Party Payments,Other establishments,12/03/2020,6352741,3327.23,VENDOR,BEACONSFIELD RESIDENTIAL CARE HOME,100568
Portsmouth City Council,PCC,Adult Social Care,Learning Disability Support  Adults (18 - 64),Adult Services,Third Party Payments,Other establishments,12/03/2020,6352741,3420.85,VENDOR,BEACONSFIELD RESIDENTIAL CARE HOME,100568
Portsmouth City Council,PCC,Adult Social Care,Learning Disability Support  Adults (18 - 64),Adult Services,Third Party Payments,Other establishments,12/03/2020,6352741,2509.14,VENDOR,BEACONSFIELD RESIDENTIAL CARE HOME,100568
Portsmouth City Council,PCC,Adult Social Care,Mental Health Support Adults (18 - 64),Adult Services,Third Party Payments,Other establishments,12/03/2020,6352741,1824.97,VENDOR,BEACONSFIELD RESIDENTIAL CARE HOME,100568
Portsmouth City Council,PCC,Adult Social Care,Mental Health Support Adults (18 - 64),Adult Services,Third Party Payments,Other establishments,12/03/2020,6352741,1896.58,VENDOR,BEACONSFIELD RESIDENTIAL CARE HOME,100568
Portsmouth City Council,PCC,Adult Social Care,Mental Health Support Adults (18 - 64),Adult Services,Third Party Payments,Other establishments,12/03/2020,6352741,1771.03,VENDOR,BEACONSFIELD RESIDENTIAL CARE HOME,100568
Portsmouth City Council,PCC,Adult Social Care,Mental Health Support Adults (18 - 64),Adult Services,Third Party Payments,Other establishments,12/03/2020,6352741,2435.98,VENDOR,BEACONSFIELD RESIDENTIAL CARE HOME,100568
Portsmouth City Council,PCC,Adult Social Care,Mental Health Support Adults (18 - 64),Adult Services,Third Party Payments,Other establishments,12/03/2020,6352741,1860.93,VENDOR,BEACONSFIELD RESIDENTIAL CARE HOME,100568
Portsmouth City Council,PCC,Adult Social Care,Mental Health Support Adults (18 - 64),Adult Services,Third Party Payments,Other establishments,12/03/2020,6352741,2382.66,VENDOR,BEACONSFIELD RESIDENTIAL CARE HOME,100568
Portsmouth City Council,PCC,Adult Social Care,Mental Health Support Adults (18 - 64),Adult Services,Third Party Payments,Other establishments,12/03/2020,6352741,1860.93,VENDOR,BEACONSFIELD RESIDENTIAL CARE HOME,100568
Portsmouth City Council,PCC,Adult Social Care,Mental Health Support Adults (18 - 64),Adult Services,Third Party Payments,Other establishments,12/03/2020,6352741,1860.93,VENDOR,BEACONSFIELD RESIDENTIAL CARE HOME,100568
Portsmouth City Council,PCC,Adult Social Care,Mental Health Support Adults (18 - 64),Adult Services,Third Party Payments,Other establishments,12/03/2020,6352741,1789.32,VENDOR,BEACONSFIELD RESIDENTIAL CARE HOME,100568
Portsmouth City Council,PCC,Adult Social Care,Mental Health Support Adults (18 - 64),Adult Services,Third Party Payments,Other establishments,12/03/2020,6352741,2605.55,VENDOR,BEACONSFIELD RESIDENTIAL CARE HOME,100568
Portsmouth City Council,PCC,Adult Social Care,Mental Health Support Adults (18 - 64),Adult Services,Third Party Payments,Other establishments,12/03/2020,6352741,1824.97,VENDOR,BEACONSFIELD RESIDENTIAL CARE HOME,100568
Portsmouth City Council,PCC,Adult Social Care,Mental Health Support Adults (18 - 64),Adult Services,Third Party Payments,Other establishments,12/03/2020,6352741,1860.93,VENDOR,BEACONSFIELD RESIDENTIAL CARE HOME,100568
Portsmouth City Council,PCC,Adult Social Care,Mental Health Support Adults (18 - 64),Adult Services,Third Party Payments,Other establishments,12/03/2020,6352741,1824.97,VENDOR,BEACONSFIELD RESIDENTIAL CARE HOME,100568
Portsmouth City Council,PCC,Adult Social Care,Mental Health Support Adults (18 - 64),Adult Services,Third Party Payments,Other establishments,12/03/2020,6352741,1967.88,VENDOR,BEACONSFIELD RESIDENTIAL CARE HOME,100568
Portsmouth City Council,PCC,Adult Social Care,Mental Health Support Adults (18 - 64),Adult Services,Third Party Payments,Other establishments,12/03/2020,6352741,2023.37,VENDOR,BEACONSFIELD RESIDENTIAL CARE HOME,100568
Portsmouth City Council,PCC,Adult Social Care,Mental Health Support Adults (18 - 64),Adult Services,Third Party Payments,Other establishments,12/03/2020,6352741,1860.93,VENDOR,BEACONSFIELD RESIDENTIAL CARE HOME,100568
Portsmouth City Council,PCC,Adult Social Care,Mental Health Support Adults (18 - 64),Adult Services,Third Party Payments,Other establishments,12/03/2020,6352741,1932.23,VENDOR,BEACONSFIELD RESIDENTIAL CARE HOME,100568
Portsmouth City Council,PCC,Adult Social Care,Physical Support Older People (85+),Adult Services,Third Party Payments,Other establishments,12/03/2020,6352742,3210.98,VENDOR,BEAUMONT LODGE LIMITED,146467
Portsmouth City Council,PCC,Adult Social Care,Social Care Activities,Adult Services,Third Party Payments,Other establishments,12/03/2020,6352743,11455.43,VENDOR,BEDHAMPTON NURSING HOME,100569
Portsmouth City Council,PCC,Adult Social Care,Social Care Activities,Adult Services,Third Party Payments,Other establishments,12/03/2020,6352743,4582.73,VENDOR,BEDHAMPTON NURSING HOME,100569
Portsmouth City Council,PCC,Adult Social Care,Social Care Activities,Adult Services,Third Party Payments,Other establishments,12/03/2020,6352743,5757.32,VENDOR,BEDHAMPTON NURSING HOME,100569
Portsmouth City Council,PCC,Adult Social Care,Social Care Activities,Adult Services,Third Party Payments,Other establishments,12/03/2020,6352743,591.29,VENDOR,BEDHAMPTON NURSING HOME,100569
Portsmouth City Council,PCC,Adult Social Care,Social Care Activities,Adult Services,Third Party Payments,Other establishments,12/03/2020,6352743,733.19,VENDOR,BEDHAMPTON NURSING HOME,100569
Portsmouth City Council,PCC,Adult Social Care,Social Care Activities,Adult Services,Third Party Payments,Other establishments,12/03/2020,6352743,733.19,VENDOR,BEDHAMPTON NURSING HOME,100569
Portsmouth City Council,PCC,Adult Social Care,Social Care Activities,Adult Services,Third Party Payments,Other establishments,12/03/2020,6352743,733.19,VENDOR,BEDHAMPTON NURSING HOME,100569
Portsmouth City Council,PCC,Other,Suspense and Capital Schemes,Capital - Leader,Capital Charges,Capital Expenditure (WIP),04/03/2020,6351056,950,VENDOR,ECOSUPPORT LTD,139549
Portsmouth City Council,PCC,Support Service / Transparency Costs Unallocated,AMS,"Housing, Neighbourhood and Building Services",Third Party Payments,Private contractors,27/03/2020,6355409,488.25,VENDOR,VESPASIAN SECURITY LTD,126345
Portsmouth City Council,PCC,Costs below Net Cost of Services,Trading,Finance & Resources,Supplies and Services,Miscellaneous expenses,12/03/2020,6352810,978.5,VENDOR,DWF LLP,138783
Portsmouth City Council,PCC,Cultural and Related Services,Open Spaces,"Culture, Leisure & Regulatory Services",Premises-Related Expenditure,Grounds maintenance costs,09/03/2020,6351838,1040.89,COMPANY,BARHILL PLANT LTD,100355
Portsmouth City Council,PCC,Cultural and Related Services,Open Spaces,"Culture, Leisure & Regulatory Services",Third Party Payments,Private contractors,02/03/2020,6350749,208.5,COMPANY,BARHILL PLANT LTD,100355
Portsmouth City Council,PCC,Cultural and Related Services,Open Spaces,"Culture, Leisure & Regulatory Services",Premises-Related Expenditure,"Repairs, alterations and maintenance of buildings",02/03/2020,6350749,2405.5,COMPANY,BARHILL PLANT LTD,100355
Portsmouth City Council,PCC,Cultural and Related Services,Open Spaces,"Culture, Leisure & Regulatory Services",Third Party Payments,Private contractors,02/03/2020,6350749,637.96,COMPANY,BARHILL PLANT LTD,100355
Portsmouth City Council,PCC,Cultural and Related Services,Recreation and Sport,"Culture, Leisure & Regulatory Services",Premises-Related Expenditure,Grounds maintenance costs,09/03/2020,6351839,365.57,COMPANY,BARHILL PLANT LTD,100355
Portsmouth City Council,PCC,Cultural and Related Services,Open Spaces,"Culture, Leisure & Regulatory Services",Premises-Related Expenditure,Grounds maintenance costs,09/03/2020,6351839,2407.5,COMPANY,BARHILL PLANT LTD,100355
Portsmouth City Council,PCC,Cultural and Related Services,Open Spaces,"Culture, Leisure & Regulatory Services",Premises-Related Expenditure,Grounds maintenance costs,09/03/2020,6351838,1130.13,COMPANY,BARHILL PLANT LTD,100355
Portsmouth City Council,PCC,Housing Services,Homelessness,"Housing, Neighbourhood and Building Services",Premises-Related Expenditure,Rents,25/03/2020,6355011,2400,SOLETRADER,Classified as 'personal data' (under the Data Protection Act 2018),137146
Portsmouth City Council,PCC,Housing Services,Homelessness,"Housing, Neighbourhood and Building Services",Premises-Related Expenditure,Rents,25/03/2020,6354988,5130,SOLETRADER,Classified as 'personal data' (under the Data Protection Act 2018),114064
Portsmouth City Council,PCC,Adult Social Care,Social Care Activities,Adult Services,Third Party Payments,Other establishments,12/03/2020,6352743,283.82,VENDOR,BEDHAMPTON NURSING HOME,100569
Portsmouth City Council,PCC,Adult Social Care,Social Care Activities,Adult Services,Third Party Payments,Other establishments,12/03/2020,6352743,733.19,VENDOR,BEDHAMPTON NURSING HOME,100569
Portsmouth City Council,PCC,Adult Social Care,Social Care Activities,Adult Services,Third Party Payments,Other establishments,12/03/2020,6352743,-236.51,VENDOR,BEDHAMPTON NURSING HOME,100569
Portsmouth City Council,PCC,Adult Social Care,Physical Support Older People (85+),Adult Services,Third Party Payments,Other establishments,12/03/2020,6352743,5766,VENDOR,BEDHAMPTON NURSING HOME,100569
Portsmouth City Council,PCC,Adult Social Care,Physical Support Older People (85+),Adult Services,Third Party Payments,Other establishments,12/03/2020,6352743,2771.4,VENDOR,BEDHAMPTON NURSING HOME,100569
Portsmouth City Council,PCC,Adult Social Care,Support with Memory and Cognition Older People (85+),Adult Services,Third Party Payments,Other establishments,12/03/2020,6352745,3056.6,VENDOR,BETHESDA HEALTHCARE,143824
Portsmouth City Council,PCC,Adult Social Care,Support with Memory and Cognition Older People (85+),Adult Services,Third Party Payments,Other establishments,12/03/2020,6352745,2657.32,VENDOR,BETHESDA HEALTHCARE,143824
Portsmouth City Council,PCC,Adult Social Care,Support with Memory and Cognition Older People (85+),Adult Services,Third Party Payments,Other establishments,12/03/2020,6352745,1295.49,VENDOR,BETHESDA HEALTHCARE,143824
Portsmouth City Council,PCC,Adult Social Care,Support with Memory and Cognition Older People (85+),Adult Services,Third Party Payments,Other establishments,12/03/2020,6352745,3542.99,VENDOR,BETHESDA HEALTHCARE,143824
Portsmouth City Council,PCC,Adult Social Care,Support with Memory and Cognition Older People (85+),Adult Services,Third Party Payments,Other establishments,12/03/2020,6352745,2244.4,VENDOR,BETHESDA HEALTHCARE,143824
Portsmouth City Council,PCC,Adult Social Care,Support with Memory and Cognition Older People (85+),Adult Services,Third Party Payments,Other establishments,12/03/2020,6352745,-1065.15,VENDOR,BETHESDA HEALTHCARE,143824
Portsmouth City Council,PCC,Adult Social Care,Support with Memory and Cognition Older People (85+),Adult Services,Third Party Payments,Other establishments,12/03/2020,6352745,2244.4,VENDOR,BETHESDA HEALTHCARE,143824
Portsmouth City Council,PCC,Adult Social Care,Support with Memory and Cognition Older People (85+),Adult Services,Third Party Payments,Other establishments,12/03/2020,6352744,3321.65,VENDOR,BETHESDA HEALTHCARE,143824
Portsmouth City Council,PCC,Adult Social Care,Physical Support Older People (65-74),Adult Services,Supplies and Services,Catering,31/03/2020,6355571,-12.3,VENDOR,BFS GROUP LTD T/A BIDFOOD,100106
Portsmouth City Council,PCC,Adult Social Care,Support with Memory and Cognition Older People (65 - 74),Adult Services,Supplies and Services,Catering,03/03/2020,6350926,174.84,VENDOR,BFS GROUP LTD T/A BIDFOOD,100106
Portsmouth City Council,PCC,Adult Social Care,Physical Support Older People (65-74),Adult Services,Supplies and Services,Catering,04/03/2020,6351021,115.29,VENDOR,BFS GROUP LTD T/A BIDFOOD,100106
Portsmouth City Council,PCC,Adult Social Care,Support with Memory and Cognition Older People (65 - 74),Adult Services,Supplies and Services,Catering,05/03/2020,6351563,360.83,VENDOR,BFS GROUP LTD T/A BIDFOOD,100106
Portsmouth City Council,PCC,Adult Social Care,Support with Memory and Cognition Older People (65 - 74),Adult Services,Supplies and Services,Catering,10/03/2020,6352022,316.37,VENDOR,BFS GROUP LTD T/A BIDFOOD,100106
Portsmouth City Council,PCC,Adult Social Care,Physical Support Older People (65-74),Adult Services,Supplies and Services,Catering,11/03/2020,6352149,113.1,VENDOR,BFS GROUP LTD T/A BIDFOOD,100106
Portsmouth City Council,PCC,Adult Social Care,Support with Memory and Cognition Older People (65 - 74),Adult Services,Supplies and Services,Catering,12/03/2020,6352746,585.51,VENDOR,BFS GROUP LTD T/A BIDFOOD,100106
Portsmouth City Council,PCC,Adult Social Care,Support with Memory and Cognition Older People (65 - 74),Adult Services,Supplies and Services,Catering,26/03/2020,6355113,319.42,VENDOR,BFS GROUP LTD T/A BIDFOOD,100106
Portsmouth City Council,PCC,Adult Social Care,Support with Memory and Cognition Older People (65 - 74),Adult Services,Supplies and Services,Catering,26/03/2020,6355113,525.13,VENDOR,BFS GROUP LTD T/A BIDFOOD,100106
Portsmouth City Council,PCC,Adult Social Care,Physical Support Older People (65-74),Adult Services,Supplies and Services,Catering,25/03/2020,6354935,133.69,VENDOR,BFS GROUP LTD T/A BIDFOOD,100106
Portsmouth City Council,PCC,Adult Social Care,Support with Memory and Cognition Older People (65 - 74),Adult Services,Supplies and Services,Catering,26/03/2020,6355113,547.43,VENDOR,BFS GROUP LTD T/A BIDFOOD,100106
Portsmouth City Council,PCC,Adult Social Care,Physical Support Older People (65-74),Adult Services,Supplies and Services,Catering,31/03/2020,6355571,201.32,VENDOR,BFS GROUP LTD T/A BIDFOOD,100106
Portsmouth City Council,PCC,Adult Social Care,Physical Support Older People (65-74),Adult Services,Supplies and Services,Catering,31/03/2020,6355571,121.21,VENDOR,BFS GROUP LTD T/A BIDFOOD,100106
Portsmouth City Council,PCC,Adult Social Care,Physical Support Older People (65-74),Adult Services,Supplies and Services,Catering,31/03/2020,6355571,-6.66,VENDOR,BFS GROUP LTD T/A BIDFOOD,100106
Portsmouth City Council,PCC,Adult Social Care,Social Care Activities,Adult Services,Third Party Payments,Other establishments,12/03/2020,6352747,1500,VENDOR,BLUEBELL NURSING HOME,100112
Portsmouth City Council,PCC,Adult Social Care,Social Care Activities,Adult Services,Third Party Payments,Other establishments,12/03/2020,6352747,750,VENDOR,BLUEBELL NURSING HOME,100112
Portsmouth City Council,PCC,Adult Social Care,Social Care Activities,Adult Services,Third Party Payments,Other establishments,12/03/2020,6352747,4565.99,VENDOR,BLUEBELL NURSING HOME,100112
Portsmouth City Council,PCC,Adult Social Care,Social Care Activities,Adult Services,Third Party Payments,Other establishments,12/03/2020,6352747,5159.95,VENDOR,BLUEBELL NURSING HOME,100112
Portsmouth City Council,PCC,Adult Social Care,Social Care Activities,Adult Services,Third Party Payments,Other establishments,12/03/2020,6352747,4629.85,VENDOR,BLUEBELL NURSING HOME,100112
Portsmouth City Council,PCC,Adult Social Care,Social Care Activities,Adult Services,Third Party Payments,Other establishments,12/03/2020,6352747,3999,VENDOR,BLUEBELL NURSING HOME,100112
Portsmouth City Council,PCC,Adult Social Care,Social Care Activities,Adult Services,Third Party Payments,Other establishments,12/03/2020,6352747,4371,VENDOR,BLUEBELL NURSING HOME,100112
Portsmouth City Council,PCC,Adult Social Care,Social Care Activities,Adult Services,Third Party Payments,Other establishments,12/03/2020,6352747,4310.55,VENDOR,BLUEBELL NURSING HOME,100112
Portsmouth City Council,PCC,Adult Social Care,Social Care Activities,Adult Services,Third Party Payments,Other establishments,12/03/2020,6352747,5308.75,VENDOR,BLUEBELL NURSING HOME,100112
Portsmouth City Council,PCC,Adult Social Care,Social Care Activities,Adult Services,Third Party Payments,Other establishments,12/03/2020,6352747,3999,VENDOR,BLUEBELL NURSING HOME,100112
Portsmouth City Council,PCC,Adult Social Care,Social Care Activities,Adult Services,Third Party Payments,Other establishments,12/03/2020,6352747,4324.5,VENDOR,BLUEBELL NURSING HOME,100112
Portsmouth City Council,PCC,Adult Social Care,Social Care Activities,Adult Services,Third Party Payments,Other establishments,12/03/2020,6352747,5587.75,VENDOR,BLUEBELL NURSING HOME,100112
Portsmouth City Council,PCC,Highways and Transport Services,"Airports, Harbours and Toll Facilities",Portsmouth International Port,Premises-Related Expenditure,"Repairs, alterations and maintenance of buildings",12/03/2020,6352846,365,VENDOR,KEN BROWN BOATS LTD,100926
Portsmouth City Council,PCC,Highways and Transport Services,"Airports, Harbours and Toll Facilities",Portsmouth International Port,Premises-Related Expenditure,"Repairs, alterations and maintenance of buildings",12/03/2020,6352846,52.89,VENDOR,KEN BROWN BOATS LTD,100926
Portsmouth City Council,PCC,Environmental and Regulatory Services,Agricultural and Fisheries Services,Portsmouth International Port,Third Party Payments,Private contractors,26/03/2020,6355152,2949.8,VENDOR,KEN BROWN BOATS LTD,100926
Portsmouth City Council,PCC,Adult Social Care,Social Care Activities,Adult Services,Third Party Payments,Other establishments,12/03/2020,6352747,5048.04,VENDOR,BLUEBELL NURSING HOME,100112
Portsmouth City Council,PCC,Central Services,"Registration of Births, Deaths and Marriages","Culture, Leisure & Regulatory Services",Transport-Related Expenditure,Direct transport costs,05/03/2020,6351556,52,VENDOR,AQUA CARS LIMITED,100011
Portsmouth City Council,PCC,Environmental and Regulatory Services,Agricultural and Fisheries Services,Portsmouth International Port,Third Party Payments,Private contractors,26/03/2020,6355152,258.16,VENDOR,KEN BROWN BOATS LTD,100926
Portsmouth City Council,PCC,Housing Services,Homelessness,"Housing, Neighbourhood and Building Services",Transport-Related Expenditure,Direct transport costs,02/03/2020,6350742,76.5,VENDOR,AQUA CARS LIMITED,100011
Portsmouth City Council,PCC,Highways and Transport Services,"Airports, Harbours and Toll Facilities",Portsmouth International Port,Premises-Related Expenditure,"Repairs, alterations and maintenance of buildings",26/03/2020,6355165,4995,COMPANY,ML (UK) LTD,101018
Portsmouth City Council,PCC,Support Service / Transparency Costs Unallocated,Financial Services,Finance & Resources,Transport-Related Expenditure,Direct transport costs,02/03/2020,6350742,44.8,VENDOR,AQUA CARS LIMITED,100011
Portsmouth City Council,PCC,Support Service / Transparency Costs Unallocated,Information Services,Corporate Services,Transport-Related Expenditure,Direct transport costs,02/03/2020,6350742,-44.8,VENDOR,AQUA CARS LIMITED,100011
Portsmouth City Council,PCC,Support Service / Transparency Costs Unallocated,Information Services,Corporate Services,Transport-Related Expenditure,Direct transport costs,02/03/2020,6350742,319.6,VENDOR,AQUA CARS LIMITED,100011
Portsmouth City Council,PCC,Cultural and Related Services,Tourism,"Culture, Leisure & Regulatory Services",Transport-Related Expenditure,Public transport,05/03/2020,6351556,134.6,VENDOR,AQUA CARS LIMITED,100011
Portsmouth City Council,PCC,Cultural and Related Services,Culture and Heritage,"Culture, Leisure & Regulatory Services",Transport-Related Expenditure,Public transport,05/03/2020,6351556,137.7,VENDOR,AQUA CARS LIMITED,100011
Portsmouth City Council,PCC,Cultural and Related Services,Culture and Heritage,"Culture, Leisure & Regulatory Services",Transport-Related Expenditure,Public transport,05/03/2020,6351556,12.9,VENDOR,AQUA CARS LIMITED,100011
Portsmouth City Council,PCC,Children's and Education Services,Children Looked After,Children's Services and Education,Transport-Related Expenditure,Direct transport costs,05/03/2020,6351556,3243.3,VENDOR,AQUA CARS LIMITED,100011
Portsmouth City Council,PCC,Children's and Education Services,Family Support Services,Children's Services and Education,Transport-Related Expenditure,Direct transport costs,02/03/2020,6350742,17.1,VENDOR,AQUA CARS LIMITED,100011
Portsmouth City Council,PCC,Housing Services,Homelessness,"Housing, Neighbourhood and Building Services",Premises-Related Expenditure,Rents,25/03/2020,6354937,1380,SOLETRADER,Classified as 'personal data' (under the Data Protection Act 2018),146402
Portsmouth City Council,PCC,Children's and Education Services,Family Support Services,Children's Services and Education,Transport-Related Expenditure,Direct transport costs,02/03/2020,6350742,6.8,VENDOR,AQUA CARS LIMITED,100011
Portsmouth City Council,PCC,Adult Social Care,Social Care Activities,Adult Services,Third Party Payments,Other establishments,12/03/2020,6352747,5428.1,VENDOR,BLUEBELL NURSING HOME,100112
Portsmouth City Council,PCC,Adult Social Care,Social Care Activities,Adult Services,Third Party Payments,Other establishments,12/03/2020,6352747,2771.4,VENDOR,BLUEBELL NURSING HOME,100112
Portsmouth City Council,PCC,Adult Social Care,Social Care Activities,Adult Services,Third Party Payments,Other establishments,12/03/2020,6352747,5270,VENDOR,BLUEBELL NURSING HOME,100112
Portsmouth City Council,PCC,Adult Social Care,Social Care Activities,Adult Services,Third Party Payments,Other establishments,12/03/2020,6352747,733.19,VENDOR,BLUEBELL NURSING HOME,100112
Portsmouth City Council,PCC,Adult Social Care,Social Care Activities,Adult Services,Third Party Payments,Other establishments,12/03/2020,6352747,733.19,VENDOR,BLUEBELL NURSING HOME,100112
Portsmouth City Council,PCC,Adult Social Care,Social Care Activities,Adult Services,Third Party Payments,Other establishments,12/03/2020,6352747,733.19,VENDOR,BLUEBELL NURSING HOME,100112
Portsmouth City Council,PCC,Adult Social Care,Social Care Activities,Adult Services,Third Party Payments,Other establishments,12/03/2020,6352747,733.19,VENDOR,BLUEBELL NURSING HOME,100112
Portsmouth City Council,PCC,Adult Social Care,Social Care Activities,Adult Services,Third Party Payments,Other establishments,12/03/2020,6352747,733.19,VENDOR,BLUEBELL NURSING HOME,100112
Portsmouth City Council,PCC,Adult Social Care,Social Care Activities,Adult Services,Third Party Payments,Other establishments,12/03/2020,6352747,733.19,VENDOR,BLUEBELL NURSING HOME,100112
Portsmouth City Council,PCC,Adult Social Care,Social Care Activities,Adult Services,Third Party Payments,Other establishments,12/03/2020,6352747,733.19,VENDOR,BLUEBELL NURSING HOME,100112
Portsmouth City Council,PCC,Adult Social Care,Social Care Activities,Adult Services,Third Party Payments,Other establishments,12/03/2020,6352747,733.19,VENDOR,BLUEBELL NURSING HOME,100112
Portsmouth City Council,PCC,Adult Social Care,Social Care Activities,Adult Services,Third Party Payments,Other establishments,12/03/2020,6352747,733.19,VENDOR,BLUEBELL NURSING HOME,100112
Portsmouth City Council,PCC,Adult Social Care,Social Care Activities,Adult Services,Third Party Payments,Other establishments,12/03/2020,6352747,733.19,VENDOR,BLUEBELL NURSING HOME,100112
Portsmouth City Council,PCC,Adult Social Care,Social Care Activities,Adult Services,Third Party Payments,Other establishments,12/03/2020,6352747,733.19,VENDOR,BLUEBELL NURSING HOME,100112
Portsmouth City Council,PCC,Adult Social Care,Social Care Activities,Adult Services,Third Party Payments,Other establishments,12/03/2020,6352747,733.19,VENDOR,BLUEBELL NURSING HOME,100112
Portsmouth City Council,PCC,Cultural and Related Services,Culture and Heritage,"Culture, Leisure & Regulatory Services",Transport-Related Expenditure,Direct transport costs,30/03/2020,6355427,127,VENDOR,AQUA CARS LIMITED,100011
Portsmouth City Council,PCC,Central Services,"Registration of Births, Deaths and Marriages","Culture, Leisure & Regulatory Services",Transport-Related Expenditure,Direct transport costs,30/03/2020,6355427,34.2,VENDOR,AQUA CARS LIMITED,100011
Portsmouth City Council,PCC,Housing Services,Homelessness,"Housing, Neighbourhood and Building Services",Transport-Related Expenditure,Direct transport costs,30/03/2020,6355427,276.5,VENDOR,AQUA CARS LIMITED,100011
Portsmouth City Council,PCC,Support Service / Transparency Costs Unallocated,Information Services,Corporate Services,Transport-Related Expenditure,Direct transport costs,30/03/2020,6355427,199.8,VENDOR,AQUA CARS LIMITED,100011
Portsmouth City Council,PCC,Support Service / Transparency Costs Unallocated,Information Services,Corporate Services,Transport-Related Expenditure,Direct transport costs,30/03/2020,6355427,304.7,VENDOR,AQUA CARS LIMITED,100011
Portsmouth City Council,PCC,Support Service / Transparency Costs Unallocated,Information Services,Corporate Services,Transport-Related Expenditure,Direct transport costs,30/03/2020,6355427,-304.7,VENDOR,AQUA CARS LIMITED,100011
Portsmouth City Council,PCC,Support Service / Transparency Costs Unallocated,Information Services,Corporate Services,Transport-Related Expenditure,Direct transport costs,30/03/2020,6355427,104.9,VENDOR,AQUA CARS LIMITED,100011
Portsmouth City Council,PCC,Adult Social Care,Social Care Activities,Adult Services,Third Party Payments,Other establishments,12/03/2020,6352747,733.19,VENDOR,BLUEBELL NURSING HOME,100112
Portsmouth City Council,PCC,Housing Services,Homelessness,"Housing, Neighbourhood and Building Services",Third Party Payments,Private contractors,17/03/2020,6353273,465.5,VENDOR,Classified as 'personal data' (under the Data Protection Act 2018),141332
Portsmouth City Council,PCC,Children's and Education Services,Family Support Services,Children's Services and Education,Transport-Related Expenditure,Direct transport costs,30/03/2020,6355427,296.4,VENDOR,AQUA CARS LIMITED,100011
Portsmouth City Council,PCC,Housing Services,Homelessness,"Housing, Neighbourhood and Building Services",Third Party Payments,Private contractors,17/03/2020,6353273,332.5,VENDOR,Classified as 'personal data' (under the Data Protection Act 2018),141332
Portsmouth City Council,PCC,Housing Services,Homelessness,"Housing, Neighbourhood and Building Services",Third Party Payments,Private contractors,17/03/2020,6353273,465.5,VENDOR,Classified as 'personal data' (under the Data Protection Act 2018),141332
Portsmouth City Council,PCC,Housing Services,Homelessness,"Housing, Neighbourhood and Building Services",Third Party Payments,Private contractors,17/03/2020,6353273,232.75,VENDOR,Classified as 'personal data' (under the Data Protection Act 2018),141332
Portsmouth City Council,PCC,Children's and Education Services,Family Support Services,Children's Services and Education,Third Party Payments,Other establishments,04/03/2020,6351502,84.45,VENDOR,PREPAID FINANCIAL SERVICES,137139
Portsmouth City Council,PCC,Children's and Education Services,Children Looked After,Children's Services and Education,Third Party Payments,Other establishments,04/03/2020,6351502,36,VENDOR,PREPAID FINANCIAL SERVICES,137139
Portsmouth City Council,PCC,Children's and Education Services,Other Education and Community Budget,Children's Services and Education,Third Party Payments,Other establishments,04/03/2020,6351502,90.77,VENDOR,PREPAID FINANCIAL SERVICES,137139
Portsmouth City Council,PCC,Children's and Education Services,Other Education and Community Budget,Children's Services and Education,Third Party Payments,Other establishments,04/03/2020,6351502,775.84,VENDOR,PREPAID FINANCIAL SERVICES,137139
Portsmouth City Council,PCC,Adult Social Care,Social Care Activities,Adult Services,Third Party Payments,Other establishments,12/03/2020,6352747,733.19,VENDOR,BLUEBELL NURSING HOME,100112
Portsmouth City Council,PCC,Housing Services,Homelessness,"Housing, Neighbourhood and Building Services",Third Party Payments,Private contractors,17/03/2020,6353273,465.5,VENDOR,Classified as 'personal data' (under the Data Protection Act 2018),141332
Portsmouth City Council,PCC,Housing Services,Homelessness,"Housing, Neighbourhood and Building Services",Third Party Payments,Private contractors,17/03/2020,6353273,465.5,VENDOR,Classified as 'personal data' (under the Data Protection Act 2018),141332
Portsmouth City Council,PCC,Housing Services,Homelessness,"Housing, Neighbourhood and Building Services",Third Party Payments,Private contractors,17/03/2020,6353273,465.5,VENDOR,Classified as 'personal data' (under the Data Protection Act 2018),141332
Portsmouth City Council,PCC,Housing Services,Homelessness,"Housing, Neighbourhood and Building Services",Premises-Related Expenditure,Rents,25/03/2020,6354928,1900.03,SOLETRADER,Classified as 'personal data' (under the Data Protection Act 2018),114289
Portsmouth City Council,PCC,Adult Social Care,Social Care Activities,Adult Services,Third Party Payments,Other establishments,12/03/2020,6352747,733.19,VENDOR,BLUEBELL NURSING HOME,100112
Portsmouth City Council,PCC,Adult Social Care,Social Care Activities,Adult Services,Third Party Payments,Other establishments,12/03/2020,6352747,733.19,VENDOR,BLUEBELL NURSING HOME,100112
Portsmouth City Council,PCC,Adult Social Care,Social Care Activities,Adult Services,Third Party Payments,Other establishments,12/03/2020,6352747,-425.73,VENDOR,BLUEBELL NURSING HOME,100112
Portsmouth City Council,PCC,Adult Social Care,Social Care Activities,Adult Services,Third Party Payments,Other establishments,12/03/2020,6352747,733.19,VENDOR,BLUEBELL NURSING HOME,100112
Portsmouth City Council,PCC,Adult Social Care,Social Care Activities,Adult Services,Third Party Payments,Other establishments,12/03/2020,6352747,733.19,VENDOR,BLUEBELL NURSING HOME,100112
Portsmouth City Council,PCC,Adult Social Care,Social Care Activities,Adult Services,Third Party Payments,Other establishments,12/03/2020,6352747,733.19,VENDOR,BLUEBELL NURSING HOME,100112
Portsmouth City Council,PCC,Adult Social Care,Social Care Activities,Adult Services,Third Party Payments,Other establishments,12/03/2020,6352747,733.19,VENDOR,BLUEBELL NURSING HOME,100112
Portsmouth City Council,PCC,Adult Social Care,Social Care Activities,Adult Services,Third Party Payments,Other establishments,12/03/2020,6352747,733.19,VENDOR,BLUEBELL NURSING HOME,100112
Portsmouth City Council,PCC,Adult Social Care,Social Care Activities,Adult Services,Third Party Payments,Other establishments,12/03/2020,6352747,733.19,VENDOR,BLUEBELL NURSING HOME,100112
Portsmouth City Council,PCC,Adult Social Care,Social Care Activities,Adult Services,Third Party Payments,Other establishments,12/03/2020,6352747,733.19,VENDOR,BLUEBELL NURSING HOME,100112
Portsmouth City Council,PCC,Adult Social Care,Social Care Activities,Adult Services,Third Party Payments,Other establishments,12/03/2020,6352747,733.19,VENDOR,BLUEBELL NURSING HOME,100112
Portsmouth City Council,PCC,Adult Social Care,Social Care Activities,Adult Services,Third Party Payments,Other establishments,12/03/2020,6352747,733.19,VENDOR,BLUEBELL NURSING HOME,100112
Portsmouth City Council,PCC,Adult Social Care,Social Care Activities,Adult Services,Third Party Payments,Other establishments,12/03/2020,6352747,733.19,VENDOR,BLUEBELL NURSING HOME,100112
Portsmouth City Council,PCC,Adult Social Care,Social Care Activities,Adult Services,Third Party Payments,Other establishments,12/03/2020,6352747,733.19,VENDOR,BLUEBELL NURSING HOME,100112
Portsmouth City Council,PCC,Adult Social Care,Social Care Activities,Adult Services,Third Party Payments,Other establishments,12/03/2020,6352747,733.19,VENDOR,BLUEBELL NURSING HOME,100112
Portsmouth City Council,PCC,Adult Social Care,Social Care Activities,Adult Services,Third Party Payments,Other establishments,12/03/2020,6352747,733.19,VENDOR,BLUEBELL NURSING HOME,100112
Portsmouth City Council,PCC,Adult Social Care,Social Care Activities,Adult Services,Third Party Payments,Other establishments,12/03/2020,6352747,-47.3,VENDOR,BLUEBELL NURSING HOME,100112
Portsmouth City Council,PCC,Adult Social Care,Physical Support Older People (85+),Adult Services,Third Party Payments,Other establishments,12/03/2020,6352747,3317,VENDOR,BLUEBELL NURSING HOME,100112
Portsmouth City Council,PCC,Adult Social Care,Physical Support Older People (85+),Adult Services,Third Party Payments,Other establishments,12/03/2020,6352747,2465.12,VENDOR,BLUEBELL NURSING HOME,100112
Portsmouth City Council,PCC,Adult Social Care,Physical Support Older People (85+),Adult Services,Third Party Payments,Other establishments,12/03/2020,6352747,4312.72,VENDOR,BLUEBELL NURSING HOME,100112
Portsmouth City Council,PCC,Adult Social Care,Physical Support Older People (85+),Adult Services,Third Party Payments,Other establishments,12/03/2020,6352747,2771.4,VENDOR,BLUEBELL NURSING HOME,100112
Portsmouth City Council,PCC,Adult Social Care,Physical Support Older People (85+),Adult Services,Third Party Payments,Other establishments,12/03/2020,6352747,4092,VENDOR,BLUEBELL NURSING HOME,100112
Portsmouth City Council,PCC,Adult Social Care,Physical Support Older People (85+),Adult Services,Third Party Payments,Other establishments,12/03/2020,6352747,2771.4,VENDOR,BLUEBELL NURSING HOME,100112
Portsmouth City Council,PCC,Adult Social Care,Physical Support Older People (85+),Adult Services,Third Party Payments,Other establishments,12/03/2020,6352747,2771.4,VENDOR,BLUEBELL NURSING HOME,100112
Portsmouth City Council,PCC,Adult Social Care,Physical Support Older People (85+),Adult Services,Third Party Payments,Other establishments,12/03/2020,6352747,2465.12,VENDOR,BLUEBELL NURSING HOME,100112
Portsmouth City Council,PCC,Adult Social Care,Physical Support Older People (85+),Adult Services,Third Party Payments,Other establishments,12/03/2020,6352747,2771.4,VENDOR,BLUEBELL NURSING HOME,100112
Portsmouth City Council,PCC,Adult Social Care,Physical Support Older People (85+),Adult Services,Third Party Payments,Other establishments,12/03/2020,6352747,2771.4,VENDOR,BLUEBELL NURSING HOME,100112
Portsmouth City Council,PCC,Adult Social Care,Support with Memory and Cognition Older People (65 - 74),Adult Services,Supplies and Services,"Equipment, furniture and materials",11/03/2020,6352150,1331.88,VENDOR,BLUELEAF LTD,100625
Portsmouth City Council,PCC,Adult Social Care,Support with Memory and Cognition Older People (65 - 74),Adult Services,Supplies and Services,"Equipment, furniture and materials",20/03/2020,6354480,1316.45,VENDOR,BLUELEAF LTD,100625
Portsmouth City Council,PCC,Adult Social Care,Support with Memory and Cognition Older People (65 - 74),Adult Services,Supplies and Services,"Equipment, furniture and materials",27/03/2020,6355240,1054.16,VENDOR,BLUELEAF LTD,100625
Portsmouth City Council,PCC,Adult Social Care,Physical Support Older People (85+),Adult Services,Third Party Payments,Other establishments,12/03/2020,6352748,480,VENDOR,BLUEWATER CARE HOME LTD,139925
Portsmouth City Council,PCC,Adult Social Care,Physical Support Older People (85+),Adult Services,Third Party Payments,Other establishments,12/03/2020,6352748,3240,VENDOR,BLUEWATER CARE HOME LTD,139925
Portsmouth City Council,PCC,Adult Social Care,Physical Support Older People (85+),Adult Services,Third Party Payments,Other establishments,12/03/2020,6352748,3720,VENDOR,BLUEWATER CARE HOME LTD,139925
Portsmouth City Council,PCC,Adult Social Care,Support with Memory and Cognition Older People (85+),Adult Services,Third Party Payments,Other establishments,12/03/2020,6352748,2244.4,VENDOR,BLUEWATER CARE HOME LTD,139925
Portsmouth City Council,PCC,Adult Social Care,Support with Memory and Cognition Older People (85+),Adult Services,Third Party Payments,Other establishments,12/03/2020,6352748,4162.68,VENDOR,BLUEWATER CARE HOME LTD,139925
Portsmouth City Council,PCC,Adult Social Care,Support with Memory and Cognition Older People (85+),Adult Services,Third Party Payments,Other establishments,12/03/2020,6352748,3669.16,VENDOR,BLUEWATER CARE HOME LTD,139925
Portsmouth City Council,PCC,Public Health,Miscellaneous Public Services,Public Health,Third Party Payments,Other establishments,18/03/2020,6353374,2127.46,VENDOR,BOOTS THE CHEMIST LTD,117323
Portsmouth City Council,PCC,Public Health,Miscellaneous Public Services,Public Health,Third Party Payments,Other establishments,18/03/2020,6353373,618.5,VENDOR,BOOTS THE CHEMIST LTD,117323
Portsmouth City Council,PCC,Public Health,Miscellaneous Public Services,Public Health,Third Party Payments,Other establishments,16/03/2020,6353147,1385.36,VENDOR,BOOTS THE CHEMIST LTD,117323
Portsmouth City Council,PCC,Public Health,Miscellaneous Public Services,Public Health,Third Party Payments,Other establishments,16/03/2020,6353148,644.5,VENDOR,BOOTS THE CHEMIST LTD,117323
Portsmouth City Council,PCC,Adult Social Care,Social Care Activities,Adult Services,Third Party Payments,Other establishments,12/03/2020,6352750,3193,VENDOR,BRAEMAR RCH LIMITED,102015
Portsmouth City Council,PCC,Adult Social Care,Physical Support Older People (85+),Adult Services,Third Party Payments,Other establishments,12/03/2020,6352750,2099.6,VENDOR,BRAEMAR RCH LIMITED,102015
Portsmouth City Council,PCC,Adult Social Care,Physical Support Older People (85+),Adult Services,Third Party Payments,Other establishments,12/03/2020,6352750,72.4,VENDOR,BRAEMAR RCH LIMITED,102015
Portsmouth City Council,PCC,Adult Social Care,Physical Support Older People (85+),Adult Services,Third Party Payments,Other establishments,12/03/2020,6352750,868.8,VENDOR,BRAEMAR RCH LIMITED,102015
Portsmouth City Council,PCC,Adult Social Care,Support with Memory and Cognition Older People (85+),Adult Services,Third Party Payments,Other establishments,12/03/2020,6352750,2244.4,VENDOR,BRAEMAR RCH LIMITED,102015
Portsmouth City Council,PCC,Adult Social Care,Support with Memory and Cognition Older People (85+),Adult Services,Third Party Payments,Other establishments,12/03/2020,6352750,2244.4,VENDOR,BRAEMAR RCH LIMITED,102015
Portsmouth City Council,PCC,Adult Social Care,Support with Memory and Cognition Older People (85+),Adult Services,Third Party Payments,Other establishments,12/03/2020,6352750,2244.4,VENDOR,BRAEMAR RCH LIMITED,102015
Portsmouth City Council,PCC,Adult Social Care,Support with Memory and Cognition Older People (85+),Adult Services,Third Party Payments,Other establishments,12/03/2020,6352750,1953.31,VENDOR,BRAEMAR RCH LIMITED,102015
Portsmouth City Council,PCC,Adult Social Care,Support with Memory and Cognition Older People (85+),Adult Services,Third Party Payments,Other establishments,12/03/2020,6352750,1245.27,VENDOR,BRAEMAR RCH LIMITED,102015
Portsmouth City Council,PCC,Adult Social Care,Support with Memory and Cognition Older People (85+),Adult Services,Third Party Payments,Other establishments,12/03/2020,6352750,3410,VENDOR,BRAEMAR RCH LIMITED,102015
Portsmouth City Council,PCC,Adult Social Care,Support with Memory and Cognition Older People (85+),Adult Services,Third Party Payments,Other establishments,12/03/2020,6352750,2244.4,VENDOR,BRAEMAR RCH LIMITED,102015
Portsmouth City Council,PCC,Adult Social Care,Support with Memory and Cognition Older People (85+),Adult Services,Third Party Payments,Other establishments,12/03/2020,6352750,2244.4,VENDOR,BRAEMAR RCH LIMITED,102015
Portsmouth City Council,PCC,Adult Social Care,Support with Memory and Cognition Older People (85+),Adult Services,Third Party Payments,Other establishments,12/03/2020,6352750,2244.4,VENDOR,BRAEMAR RCH LIMITED,102015
Portsmouth City Council,PCC,Adult Social Care,Support with Memory and Cognition Older People (85+),Adult Services,Third Party Payments,Other establishments,12/03/2020,6352750,3547.64,VENDOR,BRAEMAR RCH LIMITED,102015
Portsmouth City Council,PCC,Adult Social Care,Support with Memory and Cognition Older People (85+),Adult Services,Third Party Payments,Other establishments,12/03/2020,6352750,2244.4,VENDOR,BRAEMAR RCH LIMITED,102015
Portsmouth City Council,PCC,Adult Social Care,Support with Memory and Cognition Older People (85+),Adult Services,Third Party Payments,Other establishments,12/03/2020,6352750,3720,VENDOR,BRAEMAR RCH LIMITED,102015
Portsmouth City Council,PCC,Adult Social Care,Support with Memory and Cognition Older People (85+),Adult Services,Third Party Payments,Other establishments,12/03/2020,6352750,2852,VENDOR,BRAEMAR RCH LIMITED,102015
Portsmouth City Council,PCC,Adult Social Care,Support with Memory and Cognition Older People (85+),Adult Services,Third Party Payments,Other establishments,12/03/2020,6352750,4030,VENDOR,BRAEMAR RCH LIMITED,102015
Portsmouth City Council,PCC,Adult Social Care,Support with Memory and Cognition Older People (85+),Adult Services,Third Party Payments,Other establishments,12/03/2020,6352750,2244.4,VENDOR,BRAEMAR RCH LIMITED,102015
Portsmouth City Council,PCC,Public Health,Miscellaneous Public Services,Public Health,Third Party Payments,Other establishments,18/03/2020,6353376,1264.93,VENDOR,BRIGHTON COURT LIMITED T/A MERALI PHARMACY,137773
Portsmouth City Council,PCC,Public Health,Miscellaneous Public Services,Public Health,Third Party Payments,Other establishments,16/03/2020,6353152,1082.02,VENDOR,BRIGHTON COURT LIMITED T/A MERALI PHARMACY,137773
Portsmouth City Council,PCC,Adult Social Care,Physical Support Adults (18 - 64),Adult Services,Third Party Payments,Other establishments,04/03/2020,6351025,37500,VENDOR,BRITISH RED CROSS SOCIETY,100243
Portsmouth City Council,PCC,Adult Social Care,Physical Support Adults (18 - 64),Adult Services,Third Party Payments,Other establishments,04/03/2020,6351025,27500,VENDOR,BRITISH RED CROSS SOCIETY,100243
Portsmouth City Council,PCC,Adult Social Care,Commissioning & service delivery,Adult Services,Supplies and Services,Communications and computing,05/03/2020,6351565,669.84,COMPANY,BRITISH TELECOMMUNICATIONS PLC,100132
Portsmouth City Council,PCC,Adult Social Care,Learning Disability Support  Adults (18 - 64),Adult Services,Third Party Payments,Other establishments,12/03/2020,6352753,11567.03,VENDOR,BROOKLANDS CARE LIMITED,128129
Portsmouth City Council,PCC,Adult Social Care,Social Care Activities,Adult Services,Third Party Payments,Other establishments,12/03/2020,6352754,5426.02,VENDOR,BROOKVALE HEALTHCARE,101126
Portsmouth City Council,PCC,Adult Social Care,Social Care Activities,Adult Services,Third Party Payments,Other establishments,12/03/2020,6352754,8281.82,VENDOR,BROOKVALE HEALTHCARE,101126
Portsmouth City Council,PCC,Adult Social Care,Social Care Activities,Adult Services,Third Party Payments,Other establishments,12/03/2020,6352754,8852.98,VENDOR,BROOKVALE HEALTHCARE,101126
Portsmouth City Council,PCC,Adult Social Care,Social Care Activities,Adult Services,Third Party Payments,Other establishments,12/03/2020,6352754,2111.04,VENDOR,BROOKVALE HEALTHCARE,101126
Portsmouth City Council,PCC,Adult Social Care,Social Care Activities,Adult Services,Third Party Payments,Other establishments,12/03/2020,6352754,543.98,VENDOR,BROOKVALE HEALTHCARE,101126
Portsmouth City Council,PCC,Adult Social Care,Social Care Activities,Adult Services,Third Party Payments,Other establishments,12/03/2020,6352754,331.12,VENDOR,BROOKVALE HEALTHCARE,101126
Portsmouth City Council,PCC,Adult Social Care,Social Care Activities,Adult Services,Third Party Payments,Other establishments,12/03/2020,6352754,-449.38,VENDOR,BROOKVALE HEALTHCARE,101126
Portsmouth City Council,PCC,Adult Social Care,Social Care Activities,Adult Services,Third Party Payments,Other establishments,12/03/2020,6352754,-685.89,VENDOR,BROOKVALE HEALTHCARE,101126
Portsmouth City Council,PCC,Adult Social Care,Social Care Activities,Adult Services,Third Party Payments,Other establishments,12/03/2020,6352754,-733.19,VENDOR,BROOKVALE HEALTHCARE,101126
Portsmouth City Council,PCC,Adult Social Care,Support with Memory and Cognition Older People (85+),Adult Services,Third Party Payments,Other establishments,12/03/2020,6352754,1599.99,VENDOR,BROOKVALE HEALTHCARE,101126
Portsmouth City Council,PCC,Adult Social Care,Physical Support Older People (85+),Adult Services,Third Party Payments,Other establishments,12/03/2020,6352755,-775.17,VENDOR,BROOKVALE HEALTHCARE,101126
Portsmouth City Council,PCC,Adult Social Care,Physical Support Older People (85+),Adult Services,Third Party Payments,Other establishments,12/03/2020,6352755,-106.92,VENDOR,BROOKVALE HEALTHCARE,101126
Portsmouth City Council,PCC,Adult Social Care,Physical Support Older People (85+),Adult Services,Third Party Payments,Other establishments,12/03/2020,6352755,8192.99,VENDOR,BROOKVALE HEALTHCARE,101126
Portsmouth City Council,PCC,Adult Social Care,Social Care Activities,Adult Services,Third Party Payments,Other establishments,12/03/2020,6352754,6842.32,VENDOR,BROOKVALE HEALTHCARE,101126
Portsmouth City Council,PCC,Adult Social Care,Social Care Activities,Adult Services,Third Party Payments,Other establishments,12/03/2020,6352754,7266.71,VENDOR,BROOKVALE HEALTHCARE,101126
Portsmouth City Council,PCC,Adult Social Care,Social Care Activities,Adult Services,Third Party Payments,Other establishments,12/03/2020,6352754,6200,VENDOR,BROOKVALE HEALTHCARE,101126
Portsmouth City Council,PCC,Adult Social Care,Social Care Activities,Adult Services,Third Party Payments,Other establishments,12/03/2020,6352754,8414.33,VENDOR,BROOKVALE HEALTHCARE,101126
Portsmouth City Council,PCC,Adult Social Care,Social Care Activities,Adult Services,Third Party Payments,Other establishments,12/03/2020,6352754,8852.98,VENDOR,BROOKVALE HEALTHCARE,101126
Portsmouth City Council,PCC,Adult Social Care,Social Care Activities,Adult Services,Third Party Payments,Other establishments,12/03/2020,6352754,6979.03,VENDOR,BROOKVALE HEALTHCARE,101126
Portsmouth City Council,PCC,Adult Social Care,Social Care Activities,Adult Services,Third Party Payments,Other establishments,12/03/2020,6352754,6456.68,VENDOR,BROOKVALE HEALTHCARE,101126
Portsmouth City Council,PCC,Adult Social Care,Social Care Activities,Adult Services,Third Party Payments,Other establishments,12/03/2020,6352754,5732.21,VENDOR,BROOKVALE HEALTHCARE,101126
Portsmouth City Council,PCC,Adult Social Care,Social Care Activities,Adult Services,Third Party Payments,Other establishments,12/03/2020,6352754,7271.36,VENDOR,BROOKVALE HEALTHCARE,101126
Portsmouth City Council,PCC,Adult Social Care,Social Care Activities,Adult Services,Third Party Payments,Other establishments,12/03/2020,6352754,6613.85,VENDOR,BROOKVALE HEALTHCARE,101126
Portsmouth City Council,PCC,Adult Social Care,Social Care Activities,Adult Services,Third Party Payments,Other establishments,12/03/2020,6352754,6842.01,VENDOR,BROOKVALE HEALTHCARE,101126
Portsmouth City Council,PCC,Adult Social Care,Social Care Activities,Adult Services,Third Party Payments,Other establishments,12/03/2020,6352754,5394,VENDOR,BROOKVALE HEALTHCARE,101126
Portsmouth City Council,PCC,Adult Social Care,Social Care Activities,Adult Services,Third Party Payments,Other establishments,12/03/2020,6352754,733.19,VENDOR,BROOKVALE HEALTHCARE,101126
Portsmouth City Council,PCC,Adult Social Care,Social Care Activities,Adult Services,Third Party Payments,Other establishments,12/03/2020,6352754,733.19,VENDOR,BROOKVALE HEALTHCARE,101126
Portsmouth City Council,PCC,Adult Social Care,Social Care Activities,Adult Services,Third Party Payments,Other establishments,12/03/2020,6352754,733.19,VENDOR,BROOKVALE HEALTHCARE,101126
Portsmouth City Council,PCC,Adult Social Care,Social Care Activities,Adult Services,Third Party Payments,Other establishments,12/03/2020,6352754,733.19,VENDOR,BROOKVALE HEALTHCARE,101126
Portsmouth City Council,PCC,Adult Social Care,Social Care Activities,Adult Services,Third Party Payments,Other establishments,12/03/2020,6352754,733.19,VENDOR,BROOKVALE HEALTHCARE,101126
Portsmouth City Council,PCC,Adult Social Care,Social Care Activities,Adult Services,Third Party Payments,Other establishments,12/03/2020,6352754,733.19,VENDOR,BROOKVALE HEALTHCARE,101126
Portsmouth City Council,PCC,Adult Social Care,Social Care Activities,Adult Services,Third Party Payments,Other establishments,12/03/2020,6352754,733.19,VENDOR,BROOKVALE HEALTHCARE,101126
Portsmouth City Council,PCC,Adult Social Care,Social Care Activities,Adult Services,Third Party Payments,Other establishments,12/03/2020,6352754,733.19,VENDOR,BROOKVALE HEALTHCARE,101126
Portsmouth City Council,PCC,Adult Social Care,Social Care Activities,Adult Services,Third Party Payments,Other establishments,12/03/2020,6352754,733.19,VENDOR,BROOKVALE HEALTHCARE,101126
Portsmouth City Council,PCC,Adult Social Care,Social Care Activities,Adult Services,Third Party Payments,Other establishments,12/03/2020,6352754,733.19,VENDOR,BROOKVALE HEALTHCARE,101126
Portsmouth City Council,PCC,Adult Social Care,Social Care Activities,Adult Services,Third Party Payments,Other establishments,12/03/2020,6352754,733.19,VENDOR,BROOKVALE HEALTHCARE,101126
Portsmouth City Council,PCC,Adult Social Care,Social Care Activities,Adult Services,Third Party Payments,Other establishments,12/03/2020,6352754,733.19,VENDOR,BROOKVALE HEALTHCARE,101126
Portsmouth City Council,PCC,Adult Social Care,Social Care Activities,Adult Services,Third Party Payments,Other establishments,12/03/2020,6352754,733.19,VENDOR,BROOKVALE HEALTHCARE,101126
Portsmouth City Council,PCC,Adult Social Care,Social Care Activities,Adult Services,Third Party Payments,Other establishments,12/03/2020,6352754,733.19,VENDOR,BROOKVALE HEALTHCARE,101126
